date,department/service,beneficiary,amount, summary of purpose,category,transaction number,SAP vendor number
01.03.2019,ASSET MANAGEMENT,UNIVERSA LAW LTD,"1,690.23",DISREPAIR,BUILDING R&M,5902345811,1000081466
01.03.2019,ASSET MANAGEMENT,ESENDEX LTD,"7,000.00",ENG CONTRACTS (NORTH),DATA COMMUNICATIONS,5902345734,1000056911
01.03.2019,CHIEF EXECUTIVE,PROJECT CENTRE LTD,"3,830.00",CAPITAL PS (REGEN),CONSTR'N SUB CONTRACT - NON CERTIFICATED,5902346055,1000072621
01.03.2019,CHILDREN'S SERVICES,LONDON BUBBLE THEATRE COMPANY,"2,500.00",CARE GRPS  4 TO 6,EXTERNAL AGENCIES AND BODIES,5902346210,11022517
01.03.2019,CHILDREN'S SERVICES,THE BEACON FOLKESTONE,395.95,PUPIL PREMIUM CURRENT YEAR,SCHOOLS CAPITATION,2102927607,1000080829
01.03.2019,CHILDREN'S SERVICES,COPFORD C OF E (VC) PRIMARY SCHOOL,600,PUPIL PREMIUM CURRENT YEAR,SCHOOLS CAPITATION,2102927606,1000081092
01.03.2019,CHILDREN'S SERVICES,CITY OF LONDON ACADEMY,"1,100.00",PUPIL PREMIUM CURRENT YEAR,SCHOOLS CAPITATION,2102927588,1000049128
01.03.2019,CHILDREN'S SERVICES,CITY OF LONDON ACADEMY,"1,100.00",PUPIL PREMIUM CURRENT YEAR,SCHOOLS CAPITATION,2102927589,1000049128
01.03.2019,CHILDREN'S SERVICES,CITY OF LONDON ACADEMY,"1,100.00",PUPIL PREMIUM CURRENT YEAR,SCHOOLS CAPITATION,2102927590,1000049128
01.03.2019,CHILDREN'S SERVICES,CITY OF LONDON ACADEMY,"1,100.00",PUPIL PREMIUM CURRENT YEAR,SCHOOLS CAPITATION,2102927591,1000049128
01.03.2019,CHILDREN'S SERVICES,CITY OF LONDON ACADEMY,"1,200.00",PUPIL PREMIUM CURRENT YEAR,SCHOOLS CAPITATION,2102927592,1000049128
01.03.2019,CHILDREN'S SERVICES,COPFORD C OF E (VC) PRIMARY SCHOOL,"1,200.00",PUPIL PREMIUM CURRENT YEAR,SCHOOLS CAPITATION,2102927608,1000081092
01.03.2019,CHILDREN'S SERVICES,PRENDERGAST HILLY FIELDS COLLEGE,"1,500.00",PUPIL PREMIUM CURRENT YEAR,SCHOOLS CAPITATION,2102927598,1000065358
01.03.2019,CHILDREN'S SERVICES,RISE PARK ACADEMY TRUST,"1,500.00",PUPIL PREMIUM CURRENT YEAR,SCHOOLS CAPITATION,2102927604,1000082329
01.03.2019,CHILDREN'S SERVICES,ADDEY AND STANHOPE SCHOOL,"1,500.00",PUPIL PREMIUM CURRENT YEAR,SCHOOLS CAPITATION,2102927593,1000063554
01.03.2019,CHILDREN'S SERVICES,ROCKMOUNT PRIMARY SCHOOL,"1,500.00",PUPIL PREMIUM CURRENT YEAR,SCHOOLS CAPITATION,2102927599,1000073237
01.03.2019,COMMUNITIES,WATERSIDE CONSTRUCTION LTD,437.5,TENANT MGT INITITIVES,DISCRETIONARY AWARDS AND FEES,5902345962,1000059396
01.03.2019,CUSTOMER EXPERIENCE HGF,KENT COUNTY COUNCIL - LASER,790.16,CORONER'S,ELECTRICITY,5902346047,1000012926
01.03.2019,CUSTOMER EXPERIENCE HGF,KENT COUNTY COUNCIL - LASER,840.87,CORONER'S,ELECTRICITY,5902346043,1000012926
01.03.2019,CUSTOMER EXPERIENCE HGF,KENT COUNTY COUNCIL - LASER,865.45,CORONER'S,ELECTRICITY,5902346051,1000012926
01.03.2019,CUSTOMER EXPERIENCE HGF,IMPERIAL COLLEGE PROJECTS LTD,436,CORONER'S,PROFESSIONAL FEES,5902346092,1000080106
01.03.2019,ENVIRONMENT AND LEISURE,LAND USE CONSULTANTS LTD,"2,454.00",CAPITAL PS (LEISURE),CONSTRUCTION FEES  - EXTERNAL,5902345211,11132526
01.03.2019,ENVIRONMENT DIRECTORATE,GREENHAM TRADING LTD,"1,292.03",ESTATE CLEANING-GENERAL,MATERIALS,5902346482,1000006610
01.03.2019,HOUSING HRA,TRINITY CONSTRUCTION SERVICES LTD,"-8,671.00",CAPITAL PS (HRA),CONST'N MAIN CONTRACT - NON CERTIFICATED,2102928342,3000001416
01.03.2019,HOUSING HRA,TRINITY CONSTRUCTION SERVICES LTD,"8,671.00",CAPITAL PS (HRA),CONST'N MAIN CONTRACT - NON CERTIFICATED,2102928253,3000001416
01.03.2019,HOUSING HRA,POTTER RAPER AND PARTNERS,"6,373.55",CAPITAL PS (HRA),CONSTRUCTION FEES  - EXTERNAL,5902345531,1009369
01.03.2019,HOUSING HRA,POTTER RAPER AND PARTNERS,"18,832.03",CAPITAL PS (HRA),CONSTRUCTION FEES  - EXTERNAL,5902345772,1009369
01.03.2019,HOUSING HRA,POTTER RAPER AND PARTNERS,"37,063.31",CAPITAL PS (HRA),CONSTRUCTION FEES  - EXTERNAL,5902345816,1009369
01.03.2019,HOUSING HRA,POTTER RAPER AND PARTNERS,"37,533.42",CAPITAL PS (HRA),CONSTRUCTION FEES  - EXTERNAL,5902345529,1009369
01.03.2019,PUBLIC HEALTH,KINGS COLLEGE LONDON,420,SEXUAL HEALTH - CONTRACEPTION,EXTERNAL AGENCIES AND BODIES,5902346274,1000021115
01.03.2019,RESIDENT SERVICES,THAMES WATER UTILITIES LTD,777.48,SUPPORTED HOSTELS,WATER,5902345886,11003005
02.03.2019,CHILDREN'S SERVICES,LONDON BOROUGH OF BROMLEY,650.92,SCH TRANS - CONTRACT COST,RECOUPMENT,5902346515,1061538
02.03.2019,COMMUNITIES,FALCON POINT MANAGEMENT GROUP LTD,"4,996.00",FALCON POINT TMO,M&M ALLOWANCE CO-OPS,5902345632,11117573
02.03.2019,COMMUNITIES,WILLOWBROOK TENANT MANAGEMENT CO-OP LTD,"1,404.00",WILLOWBROOK CO-OP,M&M ALLOWANCE CO-OPS,5902345715,11311402
02.03.2019,CUSTOMER EXPERIENCE HGF,KENT COUNTY COUNCIL - LASER,977.64,CORONER'S,ELECTRICITY,5902346041,1000012926
02.03.2019,ENVIRONMENT AND LEISURE,KINNEAR LANDSCAPE ARCHITECTS LTD,"3,508.50",CAPITAL PS (LEISURE),CONSTRUCTION FEES  - EXTERNAL,5902345860,1000076981
02.03.2019,F & C S EXCLUDING CORPORATE BUDGETS,OCEAN MEDIA GROUP LIMITED,636.67,ADMINISTRATIVE SUPPORT,SUBSCRIPTIONS,5902345283,1000003205
02.03.2019,HOUSING GENERAL FUND,INTERSERVE (FACILITIES MANAGEMENT),530.6,CAPITAL PS (REGEN),CONSTRUCTION,5902346528,1000070792
02.03.2019,HOUSING GENERAL FUND,INTERSERVE (FACILITIES MANAGEMENT),"5,402.89",CAPITAL PS (REGEN),CONSTRUCTION,5902346532,1000070792
02.03.2019,LEISURE DIRECTORATE,INFINITY NETWORKS LTD,286,CANADA WATER LIBRARY,EQUIPMENT PURCHASE & REPAIR,5902345744,1000035571
02.03.2019,LEISURE DIRECTORATE,YOUTH SPORT TRUST,"7,000.00",COMMUNITY SPORTS DEVELOPMENT,TRAINING,5902346065,1000081296
03.03.2019,CHILDREN'S SERVICES,KIDS,"3,170.00",CENTRAL COSTS - SEN,PROFESSIONAL FEES,5902346477,1000030036
03.03.2019,COMMUNITIES,BRENCHLEY GARDENS MANAGEMENT ASSOCIATION,"6,912.00",BRENCHLEY GARDENS,M&M ALLOWANCE CO-OPS,5902345750,11324247
03.03.2019,COMMUNITIES,BROWNING EST MGMT ASSN,"4,104.00",BROWNING EMB,M&M ALLOWANCE CO-OPS,5902346625,1000059362
03.03.2019,ENVIRONMENT DIRECTORATE,FUTURE GARMENTS LTD T/A EUROX,"1,208.52",MANAGEMENT TEAM,"CLOTHING, UNIFORMS & LAUNDRY",5902346112,1000080983
03.03.2019,ENVIRONMENT DIRECTORATE,NPOWER,504.53,POLLUTION CONTROL,STATIONERY,5902346272,1000032342
03.03.2019,ENVIRONMENT DIRECTORATE,SOUTHWARK NEWSPAPER LTD,252,STREET WORKS OVERHEADS,MARKETING & PUBLICITY SERVICES,5902346589,1556957
03.03.2019,ENVIRONMENT DIRECTORATE,SOUTHWARK NEWSPAPER LTD,276,STREET WORKS OVERHEADS,MARKETING & PUBLICITY SERVICES,5902346592,1556957
03.03.2019,ENVIRONMENT DIRECTORATE,SOUTHWARK NEWSPAPER LTD,288,STREET WORKS OVERHEADS,MARKETING & PUBLICITY SERVICES,5902346590,1556957
03.03.2019,ENVIRONMENT DIRECTORATE,SOUTHWARK NEWSPAPER LTD,288,STREET WORKS OVERHEADS,MARKETING & PUBLICITY SERVICES,5902346595,1556957
03.03.2019,ENVIRONMENT DIRECTORATE,SOUTHWARK NEWSPAPER LTD,288,STREET WORKS OVERHEADS,MARKETING & PUBLICITY SERVICES,5902346596,1556957
03.03.2019,ENVIRONMENT DIRECTORATE,SOUTHWARK NEWSPAPER LTD,300,STREET WORKS OVERHEADS,MARKETING & PUBLICITY SERVICES,5902346290,1556957
03.03.2019,ENVIRONMENT DIRECTORATE,SOUTHWARK NEWSPAPER LTD,300,STREET WORKS OVERHEADS,MARKETING & PUBLICITY SERVICES,5902346588,1556957
03.03.2019,ENVIRONMENT DIRECTORATE,SOUTHWARK NEWSPAPER LTD,336,STREET WORKS OVERHEADS,MARKETING & PUBLICITY SERVICES,5902346591,1556957
03.03.2019,ENVIRONMENT DIRECTORATE,SOUTHWARK NEWSPAPER LTD,336,STREET WORKS OVERHEADS,MARKETING & PUBLICITY SERVICES,5902346593,1556957
03.03.2019,HOUSING HRA,ECOLOGY CONSULTANCY LTD,625,CAPITAL PS (HRA),CONSTRUCTION FEES  - EXTERNAL,5902346609,1000060693
03.03.2019,LEISURE DIRECTORATE,TGL GROUP LTD,"2,700.00",TREES PRINCIPAL ROADS,EQUIPMENT PURCHASE & REPAIR,5902345827,1000081990
03.03.2019,PUBLIC HEALTH,CLYDE & CO,"1,500.00","COURAGE YARD, SHAD THAMES",PROFESSIONAL FEES,5902346556,1000067838
04.03.2019,ADULT SOCIAL CARE,REDACTED PERSONAL DATA,266.65,APPOINTEESHIPS,OTHER PAYMENTS FOR CLIENTS,REDACTED,REDACTED
04.03.2019,ADULT SOCIAL CARE,THE NEW SHOOTS,300,LD LTS 18-64,DAYCARE,2102928330,1000073970
04.03.2019,ADULT SOCIAL CARE,THE CAMDEN SOCIETY (SOCIAL CARE),384,LD LTS 18-64,DAYCARE,2102928285,1000036369
04.03.2019,ADULT SOCIAL CARE,OUT AND ABOUT COMMUNITY SERVICES,425,LD LTS 18-64,DAYCARE,2102928261,1000078603
04.03.2019,ADULT SOCIAL CARE,OUT AND ABOUT COMMUNITY SERVICES,425,LD LTS 18-64,DAYCARE,2102928264,1000078603
04.03.2019,ADULT SOCIAL CARE,THE CAMDEN SOCIETY (SOCIAL CARE),465.6,LD LTS 18-64,DAYCARE,2102928288,1000036369
04.03.2019,ADULT SOCIAL CARE,THE CAMDEN SOCIETY (SOCIAL CARE),465.6,LD LTS 18-64,DAYCARE,2102928303,1000036369
04.03.2019,ADULT SOCIAL CARE,THE CAMDEN SOCIETY (SOCIAL CARE),480.57,LD LTS 18-64,DAYCARE,2102928276,1000036369
04.03.2019,ADULT SOCIAL CARE,THE CAMDEN SOCIETY (SOCIAL CARE),609.6,LD LTS 18-64,DAYCARE,2102928287,1000036369
04.03.2019,ADULT SOCIAL CARE,THE CAMDEN SOCIETY (SOCIAL CARE),676.8,LD LTS 18-64,DAYCARE,2102928272,1000036369
04.03.2019,ADULT SOCIAL CARE,THE CAMDEN SOCIETY (SOCIAL CARE),705.6,LD LTS 18-64,DAYCARE,2102928294,1000036369
04.03.2019,ADULT SOCIAL CARE,THE CAMDEN SOCIETY (SOCIAL CARE),753.6,LD LTS 18-64,DAYCARE,2102928273,1000036369
04.03.2019,ADULT SOCIAL CARE,THE CAMDEN SOCIETY (SOCIAL CARE),753.6,LD LTS 18-64,DAYCARE,2102928279,1000036369
04.03.2019,ADULT SOCIAL CARE,THE CAMDEN SOCIETY (SOCIAL CARE),753.6,LD LTS 18-64,DAYCARE,2102928286,1000036369
04.03.2019,ADULT SOCIAL CARE,THE CAMDEN SOCIETY (SOCIAL CARE),753.6,LD LTS 18-64,DAYCARE,2102928291,1000036369
04.03.2019,ADULT SOCIAL CARE,THE CAMDEN SOCIETY (SOCIAL CARE),960,LD LTS 18-64,DAYCARE,2102928283,1000036369
04.03.2019,ADULT SOCIAL CARE,THE CAMDEN SOCIETY (SOCIAL CARE),960,LD LTS 18-64,DAYCARE,2102928290,1000036369
04.03.2019,ADULT SOCIAL CARE,THE CAMDEN SOCIETY (SOCIAL CARE),988,LD LTS 18-64,DAYCARE,2102928289,1000036369
04.03.2019,ADULT SOCIAL CARE,THE CAMDEN SOCIETY (SOCIAL CARE),988,LD LTS 18-64,DAYCARE,2102928304,1000036369
04.03.2019,ADULT SOCIAL CARE,THE CAMDEN SOCIETY (SOCIAL CARE),"1,056.00",LD LTS 18-64,DAYCARE,2102928269,1000036369
04.03.2019,ADULT SOCIAL CARE,THE CAMDEN SOCIETY (SOCIAL CARE),"1,128.00",LD LTS 18-64,DAYCARE,2102928280,1000036369
04.03.2019,ADULT SOCIAL CARE,THE CAMDEN SOCIETY (SOCIAL CARE),"1,128.00",LD LTS 18-64,DAYCARE,2102928284,1000036369
04.03.2019,ADULT SOCIAL CARE,THE CAMDEN SOCIETY (SOCIAL CARE),"1,408.00",LD LTS 18-64,DAYCARE,2102928296,1000036369
04.03.2019,ADULT SOCIAL CARE,THE CAMDEN SOCIETY (SOCIAL CARE),"1,451.52",LD LTS 18-64,DAYCARE,2102928277,1000036369
04.03.2019,ADULT SOCIAL CARE,THE CAMDEN SOCIETY (SOCIAL CARE),"1,473.60",LD LTS 18-64,DAYCARE,2102928297,1000036369
04.03.2019,ADULT SOCIAL CARE,THE CAMDEN SOCIETY (SOCIAL CARE),"1,500.00",LD LTS 18-64,DAYCARE,2102928270,1000036369
04.03.2019,ADULT SOCIAL CARE,THE CAMDEN SOCIETY (SOCIAL CARE),"1,536.00",LD LTS 18-64,DAYCARE,2102928302,1000036369
04.03.2019,ADULT SOCIAL CARE,THE CAMDEN SOCIETY (SOCIAL CARE),"1,634.76",LD LTS 18-64,DAYCARE,2102928300,1000036369
04.03.2019,ADULT SOCIAL CARE,THE CAMDEN SOCIETY (SOCIAL CARE),"1,760.00",LD LTS 18-64,DAYCARE,2102928275,1000036369
04.03.2019,ADULT SOCIAL CARE,THE CAMDEN SOCIETY (SOCIAL CARE),"1,760.00",LD LTS 18-64,DAYCARE,2102928292,1000036369
04.03.2019,ADULT SOCIAL CARE,THE CAMDEN SOCIETY (SOCIAL CARE),"1,848.00",LD LTS 18-64,DAYCARE,2102928274,1000036369
04.03.2019,ADULT SOCIAL CARE,THE CAMDEN SOCIETY (SOCIAL CARE),"1,848.00",LD LTS 18-64,DAYCARE,2102928278,1000036369
04.03.2019,ADULT SOCIAL CARE,THE CAMDEN SOCIETY (SOCIAL CARE),"2,374.00",LD LTS 18-64,DAYCARE,2102928293,1000036369
04.03.2019,ADULT SOCIAL CARE,THE CAMDEN SOCIETY (SOCIAL CARE),"2,448.00",LD LTS 18-64,DAYCARE,2102928295,1000036369
04.03.2019,ADULT SOCIAL CARE,THE CAMDEN SOCIETY (SOCIAL CARE),"2,489.68",LD LTS 18-64,DAYCARE,2102928301,1000036369
04.03.2019,ADULT SOCIAL CARE,THE CAMDEN SOCIETY (SOCIAL CARE),"2,760.48",LD LTS 18-64,DAYCARE,2102928299,1000036369
04.03.2019,ADULT SOCIAL CARE,LONDON CARE LTD,266.4,LD LTS 18-64,HOMECARE - C&V,2102928321,1000003398
04.03.2019,ADULT SOCIAL CARE,LONDON CARE LTD,749.25,LD LTS 18-64,HOMECARE - C&V,2102928323,1000003398
04.03.2019,ADULT SOCIAL CARE,FRESH IDEAS & SOLUTIONS SERVICES CIC,-502.76,LD LTS 18-64,PAYMENTS TO CLIENTS (DIRECT PAYMENTS),2102928311,1000070832
04.03.2019,ADULT SOCIAL CARE,FRESH IDEAS & SOLUTIONS SERVICES CIC,523.76,LD LTS 18-64,PAYMENTS TO CLIENTS (DIRECT PAYMENTS),2102928320,1000070832
04.03.2019,ADULT SOCIAL CARE,PEOPLEPLUS ILS,"1,147.00",LD LTS 18-64,PAYMENTS TO CLIENTS (DIRECT PAYMENTS),2102928319,1000061886
04.03.2019,ADULT SOCIAL CARE,PEOPLEPLUS ILS,"2,928.42",LD LTS 18-64,PAYMENTS TO CLIENTS (DIRECT PAYMENTS),2102928310,1000061886
04.03.2019,ADULT SOCIAL CARE,CONTACT PROFESSIONALS,465,LD LTS 18-64,SUPPORTED LIVING,2102928329,1000057263
04.03.2019,ADULT SOCIAL CARE,INSPIRE SUPPORT WORKERS LTD,816,LD LTS 18-64,SUPPORTED LIVING,2102928262,1000080725
04.03.2019,ADULT SOCIAL CARE,CONTACT PROFESSIONALS,"1,489.00",LD LTS 18-64,SUPPORTED LIVING,2102928328,1000057263
04.03.2019,ADULT SOCIAL CARE,THE CAMDEN SOCIETY (SOCIAL CARE),897.6,LD LTS 65+,DAYCARE,2102928282,1000036369
04.03.2019,ADULT SOCIAL CARE,BLACK ELDER GROUP SWK,"1,708.57",MEM LTS 65+,DAYCARE,2102928307,1000067369
04.03.2019,ADULT SOCIAL CARE,PEOPLEPLUS ILS,402,MH LTS 18-64,PAYMENTS TO CLIENTS (DIRECT PAYMENTS),2102928313,1000061886
04.03.2019,ADULT SOCIAL CARE,PHOENIX HEALTHCARE & RECRUITMENT,358.86,PHY LTS 18-64,DAYCARE,2102928263,1000065636
04.03.2019,ADULT SOCIAL CARE,THE CAMDEN SOCIETY (SOCIAL CARE),705.6,PHY LTS 18-64,DAYCARE,2102928298,1000036369
04.03.2019,ADULT SOCIAL CARE,AGE UK  LEWISHAM & SOUTHWARK,"5,342.14",PHY LTS 18-64,DAYCARE,2102928305,1000066751
04.03.2019,ADULT SOCIAL CARE,THE RIVERSIDE GROUP LTD,"11,605.23",PHY LTS 18-64,EXTERNAL AGENCIES AND BODIES,2102928327,1000069625
04.03.2019,ADULT SOCIAL CARE,LONDON CARE LTD,366.44,PHY LTS 18-64,HOMECARE - C&V,2102928324,1000003398
04.03.2019,ADULT SOCIAL CARE,LONDON CARE LTD,437.14,PHY LTS 18-64,HOMECARE - C&V,2102928325,1000003398
04.03.2019,ADULT SOCIAL CARE,LONDON CARE LTD,682.88,PHY LTS 18-64,HOMECARE - C&V,2102928326,1000003398
04.03.2019,ADULT SOCIAL CARE,INSPIRE SUPPORT WORKERS LTD,304,PHY LTS 18-64,HOMECARE - SPOT,2102928267,1000080725
04.03.2019,ADULT SOCIAL CARE,REDACTED PERSONAL DATA,"3,083.48",PHY LTS 18-64,PAYMENTS TO CLIENTS (DIRECT PAYMENTS),REDACTED,REDACTED
04.03.2019,ADULT SOCIAL CARE,PEOPLEPLUS ILS,-630.98,PHY LTS 65+,DISCRETIONARY FLEXIBLE FEES & INCOME,2102928309,1000061886
04.03.2019,ADULT SOCIAL CARE,PEOPLEPLUS ILS,"1,968.40",PHY LTS 65+,DISCRETIONARY FLEXIBLE FEES & INCOME,2102928318,1000061886
04.03.2019,ADULT SOCIAL CARE,SAGECARE LTD,699.72,PHY LTS 65+,HOMECARE - C&V,2102928337,1000080924
04.03.2019,ADULT SOCIAL CARE,SAGECARE LTD,766.32,PHY LTS 65+,HOMECARE - C&V,2102928334,1000080924
04.03.2019,ADULT SOCIAL CARE,SAGECARE LTD,949.4,PHY LTS 65+,HOMECARE - C&V,2102928336,1000080924
04.03.2019,ADULT SOCIAL CARE,SAGECARE LTD,"1,749.07",PHY LTS 65+,HOMECARE - C&V,2102928335,1000080924
04.03.2019,ADULT SOCIAL CARE,SAGECARE LTD,"1,940.63",PHY LTS 65+,HOMECARE - C&V,2102928341,1000080924
04.03.2019,ADULT SOCIAL CARE,SAGECARE LTD,"2,078.06",PHY LTS 65+,HOMECARE - C&V,2102928339,1000080924
04.03.2019,ADULT SOCIAL CARE,PEOPLEPLUS ILS,"-4,052.52",PHY LTS 65+,PAYMENTS TO CLIENTS (DIRECT PAYMENTS),2102928312,1000061886
04.03.2019,ADULT SOCIAL CARE,PEOPLEPLUS ILS,"1,604.59",PHY LTS 65+,PAYMENTS TO CLIENTS (DIRECT PAYMENTS),2102928308,1000061886
04.03.2019,ADULT SOCIAL CARE,PEOPLEPLUS ILS,"3,297.14",PHY LTS 65+,PAYMENTS TO CLIENTS (DIRECT PAYMENTS),2102928317,1000061886
04.03.2019,ADULT SOCIAL CARE,REDACTED PERSONAL DATA,"-1,894.47",PHY LTS 65+,PAYMENTS TO CLIENTS (DIRECT PAYMENTS),REDACTED,REDACTED
04.03.2019,ADULT SOCIAL CARE,STREETSCENE ADDICTION RECOVERY,"2,839.29",SUB LTS 18-64,PLACEMENTS - REHAB,2102928331,11221787
04.03.2019,ASSET MANAGEMENT,JUDGE AND PRIESTLEY SOLICITORS,"2,797.50",DISREPAIR,BUILDING R&M,5902346963,1472217
04.03.2019,ASSET MANAGEMENT,JUDGE AND PRIESTLEY SOLICITORS,"42,354.00",DISREPAIR,BUILDING R&M,5902346963,1472217
04.03.2019,ASSET MANAGEMENT,LAMBERT SMITH HAMPTON GROUP LTD,"3,500.00",DISREPAIR,LEGAL FEES & COURT COSTS,5902346951,1000060045
04.03.2019,ASSET MANAGEMENT,LAMBERT SMITH HAMPTON GROUP LTD,"3,500.00",DISREPAIR,LEGAL FEES & COURT COSTS,5902346953,1000060045
04.03.2019,ASSET MANAGEMENT,OCO LIMITED,"134,597.71",ENG CONTRACTS (NORTH),HEATING - INDIVIDUAL SYSTEM SERVICE,5902346745,1006066
04.03.2019,ASSET MANAGEMENT,SMITH & BYFORD LTD,"118,055.31",ENG CONTRACTS (SOUTH),HEATING - INDIVIDUAL SYSTEM SERVICE,5902346746,11212119
04.03.2019,ASSET MANAGEMENT,POTTER RAPER AND PARTNERS,"20,553.15",HIP MAJOR WORKS,PLANNED MAINTENANCE,5902346885,1009369
04.03.2019,CENTRAL FUNCTIONS,BIFFA WASTE SERVICES LTD,890.89,COMMERCIAL PROPERTIES,REFUSE COLLECTION CONTRACT,5902346655,1147051
04.03.2019,CENTRAL FUNCTIONS,BIFFA WASTE SERVICES LTD,"1,261.65",COMMERCIAL PROPERTIES,REFUSE COLLECTION CONTRACT,5902346653,1147051
04.03.2019,CENTRAL FUNCTIONS,STEPHANIE LOVEGROVE,900,HOME OWNERSHIP,LEGAL FEES & COURT COSTS,5902346878,1000079610
04.03.2019,CENTRAL FUNCTIONS,NORTHGATE PUBLIC SERVICES (UK) LTD,"24,900.00",HOME OWNERSHIP,OFFICE EXPENSES,5902346894,1000037405
04.03.2019,CENTRAL FUNCTIONS,COLLABORATIVE CHANGE LTD,"1,375.00",HOME OWNERSHIP,TRAINING,5902346694,1000081462
04.03.2019,CENTRAL FUNCTIONS,COLLABORATIVE CHANGE LTD,"1,375.00",HOME OWNERSHIP,TRAINING,5902346718,1000081462
04.03.2019,CENTRAL FUNCTIONS,COLLABORATIVE CHANGE LTD,"2,125.00",HOME OWNERSHIP,TRAINING,5902346718,1000081462
04.03.2019,CENTRAL FUNCTIONS,COLLABORATIVE CHANGE LTD,"3,500.00",OPERATIONAL TEAM,TRAINING,5902346718,1000081462
04.03.2019,CHIEF EXECUTIVE,WYNNE-WILLIAMS ASSOCIATES LTD,346.25,CAPITAL PS (REGEN),CONSTRUCTION FEES  - EXTERNAL,5902346697,1000081419
04.03.2019,CHIEF EXECUTIVE,WYNNE-WILLIAMS ASSOCIATES LTD,"1,755.75",CAPITAL PS (REGEN),CONSTRUCTION FEES  - EXTERNAL,5902346697,1000081419
04.03.2019,CHILDREN AND ADULT,RUSSELL TREW LIMITED,770.63,CAPITAL PS (EDUCATION),CONSTRUCTION,2102928241,3000001855
04.03.2019,CHILDREN AND ADULT,RUSSELL TREW LIMITED,"1,071.00",CAPITAL PS (EDUCATION),CONSTRUCTION,2102928240,3000001855
04.03.2019,CHILDREN AND ADULT,SHARPE PRITCHARD LLP,304,CAPITAL PS (EDUCATION),CONSTRUCTION FEES,5902346832,1790085
04.03.2019,CHILDREN AND ADULT,SHARPE PRITCHARD LLP,320,CAPITAL PS (EDUCATION),CONSTRUCTION FEES,5902346831,1790085
04.03.2019,CHILDREN AND ADULT,HAVERSTOCK,"1,016.67",CAPITAL PS (EDUCATION),CONSTRUCTION FEES - ARCHITECT,5902346553,1000074288
04.03.2019,CHILDREN AND ADULT,HAVERSTOCK,"3,432.00",CAPITAL PS (EDUCATION),CONSTRUCTION FEES - ARCHITECT,5902346537,1000074288
04.03.2019,CHILDREN AND ADULT,HAVERSTOCK,"3,432.00",CAPITAL PS (EDUCATION),CONSTRUCTION FEES - ARCHITECT,5902346547,1000074288
04.03.2019,CHILDREN AND ADULT,RUSSELL TREW LIMITED,"4,293.29",CAPITAL PS (EDUCATION),CONSTRUCTION MAIN CONTRACT,2102928254,3000001855
04.03.2019,CHILDREN'S SERVICES,AV OUTCOMES LTD,"2,400.00",ANALYSTS,PROFESSIONAL FEES,5902346241,1000054641
04.03.2019,CHILDREN'S SERVICES,COIN STREET CENTRE TRUST,"28,491.50",CHILDREN'S CENTRE COMMISSIONING,EXTERNAL AGENCIES AND BODIES,2102928377,1000046703
04.03.2019,CHILDREN'S SERVICES,1ST PLACE CHILDREN & PARENTS CENTRE,"105,115.75",CHILDREN'S CENTRE COMMISSIONING,EXTERNAL AGENCIES AND BODIES,2102928376,1000049952
04.03.2019,CHILDREN'S SERVICES,DULWICH WOOD CHILDRENS CENTRE,"148,740.50",CHILDREN'S CENTRE COMMISSIONING,EXTERNAL AGENCIES AND BODIES,2102928378,5001000099
04.03.2019,CHILDREN'S SERVICES,PILGRIM'S WAY PRIMARY SCHOOL,"133,308.75",CHILDREN'S CENTRE COMMISSIONING,EXTERNAL AGENCIES AND BODIES,2102928380,5001000054
04.03.2019,CHILDREN'S SERVICES,IVYDALE PRIMARY SCHOOL,"163,121.75",CHILDREN'S CENTRE COMMISSIONING,EXTERNAL AGENCIES AND BODIES,2102928379,5001000038
04.03.2019,CHILDREN'S SERVICES,CHARLOTTE NOYES LTD,782.3,CLA TEAM SAFEGUARDING,PROFESSIONAL FEES,5902346903,1000055677
04.03.2019,CHILDREN'S SERVICES,CHARLOTTE NOYES LTD,"1,364.60",CLA TEAM SAFEGUARDING,PROFESSIONAL FEES,5902346901,1000055677
04.03.2019,CHILDREN'S SERVICES,ACTION TRANSFORMATION LEADERSHIP,"1,153.12",FAMILY GROUP CONFERENCES,EXTERNAL AGENCIES AND BODIES,5902345757,1000081394
04.03.2019,CHILDREN'S SERVICES,E4 LAW LTD,305.64,LEGAL,LEGAL FEES & COURT COSTS,2102928407,1000072222
04.03.2019,CHILDREN'S SERVICES,MC MEDICAL CONSULTING LTD,482.05,LEGAL,LEGAL FEES & COURT COSTS,2102928408,1000074284
04.03.2019,CHILDREN'S SERVICES,REDACTED PERSONAL DATA,325,LEGAL,LEGAL FEES & COURT COSTS,REDACTED,REDACTED
04.03.2019,CHILDREN'S SERVICES,LAUREN SUDING,325,LEGAL,LEGAL FEES & COURT COSTS,2102928406,1000079692
04.03.2019,CHILDREN'S SERVICES,RICHARD HARRIS,325,LEGAL,LEGAL FEES & COURT COSTS,2102928412,1000075786
04.03.2019,CHILDREN'S SERVICES,SARAH HUNWICK,350,LEGAL,LEGAL FEES & COURT COSTS,2102928413,1000073789
04.03.2019,CHILDREN'S SERVICES,ELIZABETH NARTEY,375,LEGAL,LEGAL FEES & COURT COSTS,2102928399,1000075833
04.03.2019,CHILDREN'S SERVICES,LAURA HIBBERD,375,LEGAL,LEGAL FEES & COURT COSTS,2102928404,1000076749
04.03.2019,CHILDREN'S SERVICES,LAURA HIBBERD,375,LEGAL,LEGAL FEES & COURT COSTS,2102928405,1000076749
04.03.2019,CHILDREN'S SERVICES,NOAH WEINIGER,375,LEGAL,LEGAL FEES & COURT COSTS,2102928409,1000057066
04.03.2019,CHILDREN'S SERVICES,TOM RESTALL,475,LEGAL,LEGAL FEES & COURT COSTS,2102928423,1000063020
04.03.2019,CHILDREN'S SERVICES,DEBORAH SEITLER,600,LEGAL,LEGAL FEES & COURT COSTS,2102928395,1000059125
04.03.2019,CHILDREN'S SERVICES,KIERAN COLEMAN,850,LEGAL,LEGAL FEES & COURT COSTS,2102928403,1000074145
04.03.2019,CHILDREN'S SERVICES,FRANCIS WILKINSON,863.33,LEGAL,LEGAL FEES & COURT COSTS,2102928402,1000068760
04.03.2019,CHILDREN'S SERVICES,EMILY RADCLIFFE,"1,050.00",LEGAL,LEGAL FEES & COURT COSTS,2102928400,1000047317
04.03.2019,CHILDREN'S SERVICES,DEBORAH SEITLER,"1,800.00",LEGAL,LEGAL FEES & COURT COSTS,2102928396,1000059125
04.03.2019,CHILDREN'S SERVICES,DEBORAH SEITLER,"4,550.00",LEGAL,LEGAL FEES & COURT COSTS,2102928397,1000059125
04.03.2019,CHILDREN'S SERVICES,SOUTHWARK INCLUSIVE LEARNING SERVICE,"15,194.00",PUPIL PREMIUM,"SCHOOLS CAPITATION, STANDARDS FUND",5902346818,5001000105
04.03.2019,CHILDREN'S SERVICES,EVELINA HOSPITAL SCHOOL,"2,104.00",PUPIL PREMIUM,"SCHOOLS CAPITATION, STANDARDS FUND",5902346775,5001000031
04.03.2019,CHILDREN'S SERVICES,BETHLEM & MAUDSLEY HOSPITAL SCHOOL,"2,338.00",PUPIL PREMIUM,"SCHOOLS CAPITATION, STANDARDS FUND",5902346756,5001000010
04.03.2019,CHILDREN'S SERVICES,BEORMUND PRIMARY SCHOOL,"9,240.00",PUPIL PREMIUM,"SCHOOLS CAPITATION, STANDARDS FUND",5902346754,5001000008
04.03.2019,CHILDREN'S SERVICES,CHERRY GARDEN SCHOOL,"9,240.00",PUPIL PREMIUM,"SCHOOLS CAPITATION, STANDARDS FUND",5902346765,5001000020
04.03.2019,CHILDREN'S SERVICES,DULWICH VILLAGE CE INFANTS SCHOOL,"10,125.00",PUPIL PREMIUM,"SCHOOLS CAPITATION, STANDARDS FUND",5902346771,5001000027
04.03.2019,CHILDREN'S SERVICES,CATHEDRAL SCHOOL OF ST SAVIOUR & MARY,"10,230.00",PUPIL PREMIUM,"SCHOOLS CAPITATION, STANDARDS FUND",5902346814,5001000088
04.03.2019,CHILDREN'S SERVICES,ST JOSEPHS CATHOLIC INFANTS SCHOOL,"11,465.00",PUPIL PREMIUM,"SCHOOLS CAPITATION, STANDARDS FUND",5902346763,5001000018
04.03.2019,CHILDREN'S SERVICES,HIGHSHORE SCHOOL,"14,726.00",PUPIL PREMIUM,"SCHOOLS CAPITATION, STANDARDS FUND",5902346787,5001000046
04.03.2019,CHILDREN'S SERVICES,ST JUDES CHURCH OF ENGLAND PRIMARY,"16,830.00",PUPIL PREMIUM,"SCHOOLS CAPITATION, STANDARDS FUND",5902346764,5001000019
04.03.2019,CHILDREN'S SERVICES,ST GEORGES RC SCHOOL,"18,065.00",PUPIL PREMIUM,"SCHOOLS CAPITATION, STANDARDS FUND",5902346801,5001000068
04.03.2019,CHILDREN'S SERVICES,ST ANTHONYS RC SCHOOL,"18,310.00",PUPIL PREMIUM,"SCHOOLS CAPITATION, STANDARDS FUND",5902346798,5001000064
04.03.2019,CHILDREN'S SERVICES,ST JOSEPHS CATHOLIC PRIMARY SCHOOL,"18,640.00",PUPIL PREMIUM,"SCHOOLS CAPITATION, STANDARDS FUND",5902346810,5001000078
04.03.2019,CHILDREN'S SERVICES,ST GEORGES CE SCHOOL,"18,725.00",PUPIL PREMIUM,"SCHOOLS CAPITATION, STANDARDS FUND",5902346802,5001000069
04.03.2019,CHILDREN'S SERVICES,CRAMPTON PRIMARY SCHOOL,"19,140.00",PUPIL PREMIUM,"SCHOOLS CAPITATION, STANDARDS FUND",5902346768,5001000023
04.03.2019,CHILDREN'S SERVICES,BOUCHER C OF E PRIMARY SCHOOL,"19,800.00",PUPIL PREMIUM,"SCHOOLS CAPITATION, STANDARDS FUND",5902346757,5001000011
04.03.2019,CHILDREN'S SERVICES,HAYMERLE SCHOOL,"20,460.00",PUPIL PREMIUM,"SCHOOLS CAPITATION, STANDARDS FUND",5902346786,5001000045
04.03.2019,CHILDREN'S SERVICES,PETER HILLS CE SCHOOL,"21,120.00",PUPIL PREMIUM,"SCHOOLS CAPITATION, STANDARDS FUND",5902346791,5001000053
04.03.2019,CHILDREN'S SERVICES,HEBER PRIMARY SCHOOL,"21,450.00",PUPIL PREMIUM,"SCHOOLS CAPITATION, STANDARDS FUND",5902346778,5001000035
04.03.2019,CHILDREN'S SERVICES,BELLENDEN PRIMARY SCHOOL,"21,940.00",PUPIL PREMIUM,"SCHOOLS CAPITATION, STANDARDS FUND",5902346753,5001000007
04.03.2019,CHILDREN'S SERVICES,VICTORY SCHOOL,"22,110.00",PUPIL PREMIUM,"SCHOOLS CAPITATION, STANDARDS FUND",5902346817,5001000098
04.03.2019,CHILDREN'S SERVICES,ST JOSEPHS CATHOLIC SCHOOL,"23,100.00",PUPIL PREMIUM,"SCHOOLS CAPITATION, STANDARDS FUND",5902346808,5001000076
04.03.2019,CHILDREN'S SERVICES,ST PETERS CE SCHOOL,"23,345.00",PUPIL PREMIUM,"SCHOOLS CAPITATION, STANDARDS FUND",5902346812,5001000083
04.03.2019,CHILDREN'S SERVICES,ST JAMES THE GREAT RC SCHOOL,"23,760.00",PUPIL PREMIUM,"SCHOOLS CAPITATION, STANDARDS FUND",5902346804,5001000071
04.03.2019,CHILDREN'S SERVICES,SNOWSFIELDS PRIMARY SCHOOL,"25,080.00",PUPIL PREMIUM,"SCHOOLS CAPITATION, STANDARDS FUND",5902346796,5001000061
04.03.2019,CHILDREN'S SERVICES,FRIARS PRIMARY SCHOOL,"25,740.00",PUPIL PREMIUM,"SCHOOLS CAPITATION, STANDARDS FUND",5902346777,5001000033
04.03.2019,CHILDREN'S SERVICES,ST JOSEPHS RC PRIMARY SCHOOL,"25,740.00",PUPIL PREMIUM,"SCHOOLS CAPITATION, STANDARDS FUND",5902346809,5001000077
04.03.2019,CHILDREN'S SERVICES,ST JOHNS & ST CLEMENTS CE SCHOOL,"26,455.00",PUPIL PREMIUM,"SCHOOLS CAPITATION, STANDARDS FUND",5902346805,5001000073
04.03.2019,CHILDREN'S SERVICES,COMBER GROVE PRIMARY SCHOOL,"27,060.00",PUPIL PREMIUM,"SCHOOLS CAPITATION, STANDARDS FUND",5902346767,5001000022
04.03.2019,CHILDREN'S SERVICES,ST JOSEPHS RC JUNIOR  SCHOOL,"27,635.00",PUPIL PREMIUM,"SCHOOLS CAPITATION, STANDARDS FUND",5902346762,5001000017
04.03.2019,CHILDREN'S SERVICES,ST JOHNS RC PRIMARY SCHOOL,"28,050.00",PUPIL PREMIUM,"SCHOOLS CAPITATION, STANDARDS FUND",5902346807,5001000075
04.03.2019,CHILDREN'S SERVICES,TOWNSEND PRIMARY SCHOOL,"28,380.00",PUPIL PREMIUM,"SCHOOLS CAPITATION, STANDARDS FUND",5902346816,5001000096
04.03.2019,CHILDREN'S SERVICES,TOWER BRIDGE PRIMARY SCHOOL,"32,010.00",PUPIL PREMIUM,"SCHOOLS CAPITATION, STANDARDS FUND",5902346815,5001000095
04.03.2019,CHILDREN'S SERVICES,ST FRANCIS'S RC PRIMARY SCHOOL,"32,670.00",PUPIL PREMIUM,"SCHOOLS CAPITATION, STANDARDS FUND",5902346800,5001000067
04.03.2019,CHILDREN'S SERVICES,HOLLYDALE PRIMARY SCHOOL,"34,065.00",PUPIL PREMIUM,"SCHOOLS CAPITATION, STANDARDS FUND",5902346779,5001000036
04.03.2019,CHILDREN'S SERVICES,DULWICH WOOD PRIMARY SCHOOL,"34,320.00",PUPIL PREMIUM,"SCHOOLS CAPITATION, STANDARDS FUND",5902346784,5001000042
04.03.2019,CHILDREN'S SERVICES,PILGRIM'S WAY PRIMARY SCHOOL,"35,310.00",PUPIL PREMIUM,"SCHOOLS CAPITATION, STANDARDS FUND",5902346792,5001000054
04.03.2019,CHILDREN'S SERVICES,DOG KENNEL HILL PRIMARY SCHOOL,"35,640.00",PUPIL PREMIUM,"SCHOOLS CAPITATION, STANDARDS FUND",5902346770,5001000025
04.03.2019,CHILDREN'S SERVICES,LYNDHURST PRIMARY SCHOOL,"35,970.00",PUPIL PREMIUM,"SCHOOLS CAPITATION, STANDARDS FUND",5902346785,5001000043
04.03.2019,CHILDREN'S SERVICES,ENGLISH MARTYRS RC PRIMARY SCHOOL,"37,365.00",PUPIL PREMIUM,"SCHOOLS CAPITATION, STANDARDS FUND",5902346774,5001000030
04.03.2019,CHILDREN'S SERVICES,BESSEMER GRANGE PRIMARY SCHOOL,"37,950.00",PUPIL PREMIUM,"SCHOOLS CAPITATION, STANDARDS FUND",5902346755,5001000009
04.03.2019,CHILDREN'S SERVICES,SOUTHWARK PARK PRIMARY SCHOOL,"39,100.00",PUPIL PREMIUM,"SCHOOLS CAPITATION, STANDARDS FUND",5902346797,5001000062
04.03.2019,CHILDREN'S SERVICES,IVYDALE PRIMARY SCHOOL,"40,985.00",PUPIL PREMIUM,"SCHOOLS CAPITATION, STANDARDS FUND",5902346781,5001000038
04.03.2019,CHILDREN'S SERVICES,ST FRANCESCA CABRINI PRIMARY SCHOOL,"42,485.00",PUPIL PREMIUM,"SCHOOLS CAPITATION, STANDARDS FUND",5902346799,5001000065
04.03.2019,CHILDREN'S SERVICES,ST PAULS CE SCHOOL,"44,880.00",PUPIL PREMIUM,"SCHOOLS CAPITATION, STANDARDS FUND",5902346811,5001000082
04.03.2019,CHILDREN'S SERVICES,CHARLOTTE  SHARMAN PRIMARY SCHOOL,"46,605.00",PUPIL PREMIUM,"SCHOOLS CAPITATION, STANDARDS FUND",5902346761,5001000016
04.03.2019,CHILDREN'S SERVICES,ALBION PRIMARY SCHOOL,"46,775.00",PUPIL PREMIUM,"SCHOOLS CAPITATION, STANDARDS FUND",5902346751,5001000000
04.03.2019,CHILDREN'S SERVICES,COBOURG PRIMARY SCHOOL,"48,510.00",PUPIL PREMIUM,"SCHOOLS CAPITATION, STANDARDS FUND",5902346766,5001000021
04.03.2019,CHILDREN'S SERVICES,ROBERT BROWNING PRIMARY SCHOOL,"49,170.00",PUPIL PREMIUM,"SCHOOLS CAPITATION, STANDARDS FUND",5902346794,5001000057
04.03.2019,CHILDREN'S SERVICES,GOODRICH PRIMARY SCHOOL,"49,630.00",PUPIL PREMIUM,"SCHOOLS CAPITATION, STANDARDS FUND",5902346772,5001000028
04.03.2019,CHILDREN'S SERVICES,ALFRED SALTER PRIMARY SCHOOL,"50,970.00",PUPIL PREMIUM,"SCHOOLS CAPITATION, STANDARDS FUND",5902346752,5001000005
04.03.2019,CHILDREN'S SERVICES,KEYWORTH PRIMARY SCHOOL,"52,800.00",PUPIL PREMIUM,"SCHOOLS CAPITATION, STANDARDS FUND",5902346783,5001000041
04.03.2019,CHILDREN'S SERVICES,RIVERSIDE PRIMARY SCHOOL,"52,800.00",PUPIL PREMIUM,"SCHOOLS CAPITATION, STANDARDS FUND",5902346793,5001000056
04.03.2019,CHILDREN'S SERVICES,RYE OAK PRIMARY SCHOOL,"53,375.00",PUPIL PREMIUM,"SCHOOLS CAPITATION, STANDARDS FUND",5902346795,5001000059
04.03.2019,CHILDREN'S SERVICES,CHARLES DICKENS PRIMARY SCHOOL,"53,525.00",PUPIL PREMIUM,"SCHOOLS CAPITATION, STANDARDS FUND",5902346760,5001000015
04.03.2019,CHILDREN'S SERVICES,CAMELOT PRIMARY SCHOOL,"53,790.00",PUPIL PREMIUM,"SCHOOLS CAPITATION, STANDARDS FUND",5902346759,5001000014
04.03.2019,CHILDREN'S SERVICES,ILDERTON PRIMARY SCHOOL,"55,270.00",PUPIL PREMIUM,"SCHOOLS CAPITATION, STANDARDS FUND",5902346780,5001000037
04.03.2019,CHILDREN'S SERVICES,GRANGE PRIMARY SCHOOL,"57,090.00",PUPIL PREMIUM,"SCHOOLS CAPITATION, STANDARDS FUND",5902346773,5001000029
04.03.2019,CHILDREN'S SERVICES,MICHAEL FARADAY PRIMARY SCHOOL,"60,465.00",PUPIL PREMIUM,"SCHOOLS CAPITATION, STANDARDS FUND",5902346788,5001000048
04.03.2019,CHILDREN'S SERVICES,PHOENIX PRIMARY SCHOOL,"61,125.00",PUPIL PREMIUM,"SCHOOLS CAPITATION, STANDARDS FUND",5902346776,5001000032
04.03.2019,CHILDREN'S SERVICES,OLIVER GOLDSMITH PRIMARY SCHOOL,"64,680.00",PUPIL PREMIUM,"SCHOOLS CAPITATION, STANDARDS FUND",5902346790,5001000051
04.03.2019,CHILDREN'S SERVICES,JOHN RUSKIN PRIMARY SCHOOL,"64,914.00",PUPIL PREMIUM,"SCHOOLS CAPITATION, STANDARDS FUND",5902346782,5001000040
04.03.2019,CHILDREN'S SERVICES,CRAWFORD PRIMARY SCHOOL,"65,320.00",PUPIL PREMIUM,"SCHOOLS CAPITATION, STANDARDS FUND",5902346769,5001000024
04.03.2019,CHILDREN'S SERVICES,ST SAVIOURS & ST OLAVES SCHOOL,"67,788.00",PUPIL PREMIUM,"SCHOOLS CAPITATION, STANDARDS FUND",5902346813,5001000084
04.03.2019,CHILDREN'S SERVICES,THE ST THOMAS THE APOSTLE COLLEGE,"70,826.00",PUPIL PREMIUM,"SCHOOLS CAPITATION, STANDARDS FUND",5902346806,5001000074
04.03.2019,CHILDREN'S SERVICES,BRUNSWICK PARK PRIMARY SCHOOL,"71,770.00",PUPIL PREMIUM,"SCHOOLS CAPITATION, STANDARDS FUND",5902346758,5001000013
04.03.2019,CHILDREN'S SERVICES,NOTRE DAME RC GIRLS SCHOOL,"75,216.00",PUPIL PREMIUM,"SCHOOLS CAPITATION, STANDARDS FUND",5902346789,5001000050
04.03.2019,CHILDREN'S SERVICES,ST JAMES CE SCHOOL,"85,960.00",PUPIL PREMIUM,"SCHOOLS CAPITATION, STANDARDS FUND",5902346803,5001000070
04.03.2019,CHILDREN'S SERVICES,BDO LLP,"2,135.00",SCHOOLS AUDIT,PAYMENTS FOR FINANCIAL SERVICES,5902345805,1000057898
04.03.2019,CHILDREN'S SERVICES,HARLINE LTD,522.5,SUMMERHOUSE - EX416 - 5015232,COMPUTER MAINTENANCE,5902346649,1000019611
04.03.2019,CHILDREN'S SERVICES,ST JOHN AMBULANCE,296,SUMMERHOUSE - EX416 - 5015232,TRAINING,5902346712,1000069642
04.03.2019,CHILDREN'S SERVICES,ST JOHN AMBULANCE,308,SUMMERHOUSE - EX416 - 5015232,TRAINING,5902346722,1000069642
04.03.2019,CHILDREN'S SERVICES,ST JOHN AMBULANCE,600,SUMMERHOUSE - EX416 - 5015232,TRAINING,5902346716,1000069642
04.03.2019,CHILDREN'S SERVICES,TAAKSVALE HOUSING LTD,"1,395.00",TEMPORARY ACCOMMODATION,EXTERNAL AGENCIES AND BODIES,5902346661,1000073665
04.03.2019,COMMISSIONING & CENTRAL,NUMBER 10 INTERIM LTD,"12,862.50",C&AS SYSTEMS TEAM,PROFESSIONAL FEES,5902346640,1000075139
04.03.2019,COMMUNITIES,CGL,"235,831.13",ADULT SM SERVICE,OTHER CONTRACTORS,5902346824,1000064197
04.03.2019,COMMUNITIES,CGL,"235,831.13",ADULT SM SERVICE,OTHER CONTRACTORS,5902346825,1000064197
04.03.2019,COMMUNITIES,METROPOLITAN SUPPORT TRUST,939.48,NO RECOURSE TO PUBLIC FUNDS,ACCOMMODATION CHARGES,5902346819,1000047547
04.03.2019,COMMUNITIES,METROPOLITAN SUPPORT TRUST,939.48,NO RECOURSE TO PUBLIC FUNDS,ACCOMMODATION CHARGES,5902346820,1000047547
04.03.2019,COMMUNITIES,GROVE HOTEL LTD,"1,085.00",NO RECOURSE TO PUBLIC FUNDS,ACCOMMODATION CHARGES,5902346821,1000043663
04.03.2019,COMMUNITIES,GROVE HOTEL LTD,"2,170.00",NO RECOURSE TO PUBLIC FUNDS,ACCOMMODATION CHARGES,5902346822,1000043663
04.03.2019,COMMUNITIES,NORBURY PROPERTY SERVICES (LONDON) LTD,"4,309.00",NO RECOURSE TO PUBLIC FUNDS,ACCOMMODATION CHARGES,5902346823,1000075566
04.03.2019,COMMUNITIES,SAGECARE LTD,399.6,NO RECOURSE TO PUBLIC FUNDS,HOMECARE - C&V,2102928338,1000080924
04.03.2019,COMMUNITIES,SAGECARE LTD,399.6,NO RECOURSE TO PUBLIC FUNDS,HOMECARE - C&V,2102928340,1000080924
04.03.2019,COMMUNITIES,SHIAN HOUSING ASSOCIATION LTD,375,SOUTHWARK ANTI VIOLENCE UNIT,PROFESSIONAL FEES,5902346829,1000065762
04.03.2019,COMMUNITIES,SHIAN HOUSING ASSOCIATION LTD,625,SOUTHWARK ANTI VIOLENCE UNIT,PROFESSIONAL FEES,5902346827,1000065762
04.03.2019,COMMUNITIES,SHIAN HOUSING ASSOCIATION LTD,"1,625.00",SOUTHWARK ANTI VIOLENCE UNIT,PROFESSIONAL FEES,5902346828,1000065762
04.03.2019,COMMUNITIES,FALCON POINT MANAGEMENT GROUP LTD,"1,300.00",TENANTS FUND,GRANTS,5902346063,11117573
04.03.2019,CUSTOMER EXPERIENCE,HARRIS WATERS & CO SOLICITORS,350,SALES & ACQUISITIONS,LEGAL FEES & COURT COSTS,5902346331,1000082361
04.03.2019,CUSTOMER EXPERIENCE,INTERSERVE (FACILITIES MANAGEMENT),"28,883.84",WALWORTH MSSP,OTHER R&M,2102928247,3000000166
04.03.2019,CUSTOMER EXPERIENCE,INTERSERVE (FACILITIES MANAGEMENT),"30,260.86",WALWORTH MSSP,OTHER R&M,2102928248,3000000166
04.03.2019,CUSTOMER EXPERIENCE HGF,J & M OASIS LTD,"25,222.00",NIGHTLY TA (NSC),EXTERNAL AGENCIES AND BODIES,5902346643,1000072169
04.03.2019,ENVIRONMENT DIRECTORATE,ARNOLD CLARK VEHICLE MANAGEMENT,271.61,CAR LEASING CTRL A/C,VEHICLE LEASING CHARGES,5902346673,1000079116
04.03.2019,ENVIRONMENT DIRECTORATE,ARNOLD CLARK VEHICLE MANAGEMENT,283.26,CAR LEASING CTRL A/C,VEHICLE LEASING CHARGES,5902346673,1000079116
04.03.2019,ENVIRONMENT DIRECTORATE,ARNOLD CLARK VEHICLE MANAGEMENT,288.9,CAR LEASING CTRL A/C,VEHICLE LEASING CHARGES,5902346720,1000079116
04.03.2019,ENVIRONMENT DIRECTORATE,ARNOLD CLARK VEHICLE MANAGEMENT,297.49,CAR LEASING CTRL A/C,VEHICLE LEASING CHARGES,5902346720,1000079116
04.03.2019,ENVIRONMENT DIRECTORATE,ARNOLD CLARK VEHICLE MANAGEMENT,305.32,CAR LEASING CTRL A/C,VEHICLE LEASING CHARGES,5902346709,1000079116
04.03.2019,ENVIRONMENT DIRECTORATE,ARNOLD CLARK VEHICLE MANAGEMENT,311.03,CAR LEASING CTRL A/C,VEHICLE LEASING CHARGES,5902346714,1000079116
04.03.2019,ENVIRONMENT DIRECTORATE,ARNOLD CLARK VEHICLE MANAGEMENT,329.14,CAR LEASING CTRL A/C,VEHICLE LEASING CHARGES,5902346669,1000079116
04.03.2019,ENVIRONMENT DIRECTORATE,ARNOLD CLARK VEHICLE MANAGEMENT,332.29,CAR LEASING CTRL A/C,VEHICLE LEASING CHARGES,5902346726,1000079116
04.03.2019,ENVIRONMENT DIRECTORATE,ARNOLD CLARK VEHICLE MANAGEMENT,333.07,CAR LEASING CTRL A/C,VEHICLE LEASING CHARGES,5902346714,1000079116
04.03.2019,ENVIRONMENT DIRECTORATE,ARNOLD CLARK VEHICLE MANAGEMENT,334.89,CAR LEASING CTRL A/C,VEHICLE LEASING CHARGES,5902346709,1000079116
04.03.2019,ENVIRONMENT DIRECTORATE,ARNOLD CLARK VEHICLE MANAGEMENT,337.27,CAR LEASING CTRL A/C,VEHICLE LEASING CHARGES,5902346726,1000079116
04.03.2019,ENVIRONMENT DIRECTORATE,ARNOLD CLARK VEHICLE MANAGEMENT,339.92,CAR LEASING CTRL A/C,VEHICLE LEASING CHARGES,5902346669,1000079116
04.03.2019,ENVIRONMENT DIRECTORATE,ARNOLD CLARK VEHICLE MANAGEMENT,443.38,CAR LEASING CTRL A/C,VEHICLE LEASING CHARGES,5902346696,1000079116
04.03.2019,ENVIRONMENT DIRECTORATE,ARNOLD CLARK VEHICLE MANAGEMENT,462.52,CAR LEASING CTRL A/C,VEHICLE LEASING CHARGES,5902346696,1000079116
04.03.2019,ENVIRONMENT DIRECTORATE,ARNOLD CLARK VEHICLE MANAGEMENT,489.76,CAR LEASING CTRL A/C,VEHICLE LEASING CHARGES,5902346687,1000079116
04.03.2019,ENVIRONMENT DIRECTORATE,ARNOLD CLARK VEHICLE MANAGEMENT,503.72,CAR LEASING CTRL A/C,VEHICLE LEASING CHARGES,5902346688,1000079116
04.03.2019,ENVIRONMENT DIRECTORATE,ARNOLD CLARK VEHICLE MANAGEMENT,515.62,CAR LEASING CTRL A/C,VEHICLE LEASING CHARGES,5902346703,1000079116
04.03.2019,ENVIRONMENT DIRECTORATE,ARNOLD CLARK VEHICLE MANAGEMENT,521.51,CAR LEASING CTRL A/C,VEHICLE LEASING CHARGES,5902346687,1000079116
04.03.2019,ENVIRONMENT DIRECTORATE,ARNOLD CLARK VEHICLE MANAGEMENT,529.13,CAR LEASING CTRL A/C,VEHICLE LEASING CHARGES,5902346703,1000079116
04.03.2019,ENVIRONMENT DIRECTORATE,ARNOLD CLARK VEHICLE MANAGEMENT,542.6,CAR LEASING CTRL A/C,VEHICLE LEASING CHARGES,5902346690,1000079116
04.03.2019,ENVIRONMENT DIRECTORATE,ARNOLD CLARK VEHICLE MANAGEMENT,552.89,CAR LEASING CTRL A/C,VEHICLE LEASING CHARGES,5902346688,1000079116
04.03.2019,ENVIRONMENT DIRECTORATE,ARNOLD CLARK VEHICLE MANAGEMENT,574.86,CAR LEASING CTRL A/C,VEHICLE LEASING CHARGES,5902346690,1000079116
04.03.2019,ENVIRONMENT DIRECTORATE,ARNOLD CLARK VEHICLE MANAGEMENT,599.05,CAR LEASING CTRL A/C,VEHICLE LEASING CHARGES,5902346707,1000079116
04.03.2019,ENVIRONMENT DIRECTORATE,ARNOLD CLARK VEHICLE MANAGEMENT,629.01,CAR LEASING CTRL A/C,VEHICLE LEASING CHARGES,5902346677,1000079116
04.03.2019,ENVIRONMENT DIRECTORATE,ARNOLD CLARK VEHICLE MANAGEMENT,675.18,CAR LEASING CTRL A/C,VEHICLE LEASING CHARGES,5902346707,1000079116
04.03.2019,ENVIRONMENT DIRECTORATE,ARNOLD CLARK VEHICLE MANAGEMENT,687.57,CAR LEASING CTRL A/C,VEHICLE LEASING CHARGES,5902346677,1000079116
04.03.2019,ENVIRONMENT DIRECTORATE,ARNOLD CLARK VEHICLE MANAGEMENT,710.59,CAR LEASING CTRL A/C,VEHICLE LEASING CHARGES,5902346702,1000079116
04.03.2019,ENVIRONMENT DIRECTORATE,ARNOLD CLARK VEHICLE MANAGEMENT,784.74,CAR LEASING CTRL A/C,VEHICLE LEASING CHARGES,5902346702,1000079116
04.03.2019,ENVIRONMENT DIRECTORATE,ARNOLD CLARK VEHICLE MANAGEMENT,"1,573.36",CAR LEASING CTRL A/C,VEHICLE LEASING CHARGES,5902346691,1000079116
04.03.2019,ENVIRONMENT DIRECTORATE,ARNOLD CLARK VEHICLE MANAGEMENT,"1,623.79",CAR LEASING CTRL A/C,VEHICLE LEASING CHARGES,5902346691,1000079116
04.03.2019,ENVIRONMENT DIRECTORATE,DAWSON RENTALS BUS & COACH LTD,335,COMMERCIAL VEH CTRL A/C,HIRED VEHICLES,5902346695,1000042174
04.03.2019,ENVIRONMENT DIRECTORATE,RADNES SERVICES LTD,773.5,COMMERCIAL VEH CTRL A/C,HIRED VEHICLES,5902346698,1000080334
04.03.2019,ENVIRONMENT DIRECTORATE,LONDON HIRE T/A R J MOTORS,339.93,COMMERCIAL VEH CTRL A/C,VEHICLE REPAIRS & MAINTENANCE,5902346672,1000047106
04.03.2019,ENVIRONMENT DIRECTORATE,LONDON HIRE T/A R J MOTORS,365.15,COMMERCIAL VEH CTRL A/C,VEHICLE REPAIRS & MAINTENANCE,5902346678,1000047106
04.03.2019,ENVIRONMENT DIRECTORATE,SCOT GROUP LIMITED,689.1,FLEET INSURANCE WORKS,TRANSPORT INSURANCE COSTS,5902346735,1709512
04.03.2019,ENVIRONMENT DIRECTORATE,PACE ACCIDENT REPAIRS CENTRE LTD,"1,587.47",FLEET INSURANCE WORKS,TRANSPORT INSURANCE COSTS,5902346838,1000069899
04.03.2019,ENVIRONMENT DIRECTORATE,PACE ACCIDENT REPAIRS CENTRE LTD,"2,617.20",FLEET INSURANCE WORKS,TRANSPORT INSURANCE COSTS,5902346834,1000069899
04.03.2019,ENVIRONMENT DIRECTORATE,PACE ACCIDENT REPAIRS CENTRE LTD,"2,732.54",FLEET INSURANCE WORKS,TRANSPORT INSURANCE COSTS,5902346842,1000069899
04.03.2019,ENVIRONMENT DIRECTORATE,CHARLES MERRETT,350,LICENSING,LEGAL FEES & COURT COSTS,2102928393,1000082197
04.03.2019,ENVIRONMENT DIRECTORATE,REBECCA PENFOLD,400,RESIDENTIAL SERVICES,LEGAL FEES & COURT COSTS,2102928411,1000080909
04.03.2019,ENVIRONMENT DIRECTORATE,SOUTHWARK NEWSPAPER LTD,300,STREET WORKS OVERHEADS,LEGAL FEES & COURT COSTS,2102928415,1556957
04.03.2019,F & C S EXCLUDING CORPORATE BUDGETS,DSI BILLING SERVICES LTD,"2,038.24",ADMINISTRATIVE SUPPORT,POSTAGES,5902346491,1000058640
04.03.2019,F & C S EXCLUDING CORPORATE BUDGETS,COLLABORATIVE CHANGE LTD,"3,300.00",COUNCIL TAX,OFFICE EXPENSES,5902346704,1000081462
04.03.2019,F & C S EXCLUDING CORPORATE BUDGETS,COLLABORATIVE CHANGE LTD,"3,500.00",COUNCIL TAX,OFFICE EXPENSES,5902346718,1000081462
04.03.2019,F & C S EXCLUDING CORPORATE BUDGETS,BDO LLP,431.25,INTERNAL AUDIT CONTRACTS,PAYMENTS FOR FINANCIAL SERVICES,5902345805,1000057898
04.03.2019,F & C S EXCLUDING CORPORATE BUDGETS,BDO LLP,"19,471.00",INTERNAL AUDIT CONTRACTS,PAYMENTS FOR FINANCIAL SERVICES,5902345805,1000057898
04.03.2019,F & C S EXCLUDING CORPORATE BUDGETS,BDO LLP,"2,083.33",RISK ADMIN,PROFESSIONAL FEES,5902346058,1000057898
04.03.2019,F & C S EXCLUDING CORPORATE BUDGETS,COMMUNITY SOUTHWARK,"5,000.00",SESS,SOFTWARE,5902346972,1000018147
04.03.2019,HOUSING GENERAL FUND,DG SERVICING,"3,147.55",CAPITAL PS (HOUSING GF),CAPITAL GRANTS,5902346970,1000063140
04.03.2019,HOUSING HRA,QUALITY SOLICITORS MARTIN TOLHURST,"38,000.00",CAPITAL PS (HRA),CAPITAL GRANTS,2102928344,1000077496
04.03.2019,HOUSING HRA,DISABILITY ADAPTIONS CONSULTANCY SERVICE T/A DACS,"6,655.00",CAPITAL PS (HRA),CONST'N MAIN CONTRACT - NON CERTIFICATED,2102928242,3000002000
04.03.2019,HOUSING HRA,OLSSON FIRE & RISK UK LTD,260,CAPITAL PS (HRA),CONSTRUCTION FEES  - EXTERNAL,5902346910,1000081070
04.03.2019,HOUSING HRA,OLSSON FIRE & RISK UK LTD,395,CAPITAL PS (HRA),CONSTRUCTION FEES  - EXTERNAL,5902346915,1000081070
04.03.2019,HOUSING HRA,A & E ELKINS LTD,"13,230.88",CAPITAL PS (HRA),CONSTRUCTION MAIN CONTRACT -CERTIFICATED,2102928346,4012501
04.03.2019,HOUSING HRA,ENGIE REGENERATION (APOLLO) LTD,"37,607.85",CAPITAL PS (HRA),CONSTRUCTION MAIN CONTRACT -CERTIFICATED,2102928347,4000449
04.03.2019,HOUSING HRA,A & E ELKINS LTD,"106,769.12",CAPITAL PS (HRA),CONSTRUCTION MAIN CONTRACT -CERTIFICATED,2102928346,4012501
04.03.2019,HOUSING HRA,ENGIE REGENERATION (APOLLO) LTD,"1,105,913.49",CAPITAL PS (HRA),CONSTRUCTION MAIN CONTRACT -CERTIFICATED,2102928252,4000449
04.03.2019,HOUSING HRA,KEEGANS LTD,564.45,CAPITAL PS (HRA),UTILITIES INSTALLATION,5902346955,1000039674
04.03.2019,HOUSING HRA,KEEGANS LTD,"6,875.00",CAPITAL PS (HRA),UTILITIES INSTALLATION,5902346944,1000039674
04.03.2019,HOUSING HRA,DUCTCLEAN (UK) LTD,"81,536.55",DUCTCLEAN,MANUAL CREDITORS,2102928250,3000001635
04.03.2019,HOUSING HRA,FRANKLYN SHAW ASSOCIATES LTD,"41,646.79",FRANKLIN SHAW ASSOCIATES,MANUAL CREDITORS,2102928251,3000001465
04.03.2019,HOUSING STRATEGY AND OPTIONS,CHRISTOPHER BAKER,875,HOMELESS & HOUSING OPTIONS MGT,LEGAL FEES & COURT COSTS,2102928394,1000043525
04.03.2019,HOUSING STRATEGY AND OPTIONS,LAVINIA DWAAH,"2,645.76",HOMELESS PROJECTS,GRANTS,5902346613,1000082380
04.03.2019,LEISURE DIRECTORATE,THAMES WATER UTILITIES LTD,489.76,BURGESS AREA TEAM,WATER,5902345881,1630755
04.03.2019,LEISURE DIRECTORATE,WARWICK LANDSCAPING LTD,"17,849.60",CEMETERIES,OTHER R&M,2102928243,3000001705
04.03.2019,MODERNISATION HGF,LEE HECHT HARRISON PENNA LTD,"2,200.00",MEMBER DEVELOPMENT,MEMBERS' TRAINING,5902346879,1000079813
04.03.2019,MODERNISATION HGF,ROSEMARY POTTS,"3,720.00",OCCUPATIONAL ASSESSMENT,CONSULTANTS SERVICES,5902346897,1738708
04.03.2019,MODERNISATION HGF,SHL UK LTD,878.5,OCCUPATIONAL ASSESSMENT,CONSULTANTS SERVICES,5902346740,1050652
04.03.2019,PLANNING AND TRANSPORT,TAKE NOTE LTD,265.2,S106 & CIL ADMINISTRATION,LEGAL FEES & COURT COSTS,2102928422,1000079260
04.03.2019,PLANNING AND TRANSPORT,SOUTHWARK NEWSPAPER LTD,312,S106 & CIL ADMINISTRATION,LEGAL FEES & COURT COSTS,2102928414,1556957
04.03.2019,PROPERTY SERVICES,BRITISH GAS,"1,487.00",5/5A WESTMINSTER BRIDGE ROAD.,GAS,5902346682,1000054825
04.03.2019,PROPERTY SERVICES,VEOLIA ES (UK)LTD,303.84,LBS SOJOURNER TRUTH COMMUNITY CENTRE,REFUSE COLLECTION CONTRACT,5902346670,1824835
04.03.2019,PROPERTY SERVICES,BYWATERS (LEYTON) LTD,"6,833.44",TOWER WORKSHOPS,REFUSE COLLECTION CONTRACT,5902346680,1822101
04.03.2019,PUBLIC HEALTH,NHS SOUTHWARK CCG,"316,835.00",5-19 PUBLIC HEALTH,EXTERNAL AGENCIES AND BODIES,5902346899,1000073431
04.03.2019,PUBLIC HEALTH,NHS SOUTHWARK CCG,"28,726.75",HEALTH CHECKS CONTRACTS,EXTERNAL AGENCIES AND BODIES,5902346899,1000073431
04.03.2019,PUBLIC HEALTH,NHS SOUTHWARK CCG,"54,708.00",HEALTHY WEIGHT,EXTERNAL AGENCIES AND BODIES,5902346899,1000073431
04.03.2019,PUBLIC HEALTH,NHS SOUTHWARK CCG,"1,561,256.00",PH 0-5 SERVICES,EXTERNAL AGENCIES AND BODIES,5902346899,1000073431
04.03.2019,PUBLIC HEALTH,RICE RETAIL MARKETING LTD,"5,000.00",PLACE & HEALTH IMPROVEMENT,EXTERNAL AGENCIES AND BODIES,5902346619,1000082370
04.03.2019,PUBLIC HEALTH,INTERSERVE (FACILITIES MANAGEMENT),"2,370.37",PROFESSIONAL SERVICES (GENERAL),BUILDING R&M,2102928249,3000000166
04.03.2019,PUBLIC HEALTH,NHS SOUTHWARK CCG,"25,837.16",SEXUAL HEALTH - CONTRACEPTION,EXTERNAL AGENCIES AND BODIES,5902346899,1000073431
04.03.2019,PUBLIC HEALTH,NHS SOUTHWARK CCG,"-11,686.00",STOP SMOKING,EXTERNAL AGENCIES AND BODIES,5902346902,1000073431
04.03.2019,PUBLIC HEALTH,NHS SOUTHWARK CCG,"94,745.00",STOP SMOKING,EXTERNAL AGENCIES AND BODIES,5902346899,1000073431
04.03.2019,RESIDENT SERVICES,ETC VENUES LTD,"3,305.00",OPERATIONS/OFFICES ACCOMMODATION,LEGAL FEES & COURT COSTS,2102928401,1000045226
04.03.2019,RESIDENT SERVICES,STEPHEN EVANS,410.83,OPERATIONS/OFFICES ACCOMMODATION,LEGAL FEES & COURT COSTS,2102928419,1000043318
04.03.2019,RESIDENT SERVICES,STEPHEN EVANS,609.17,OPERATIONS/OFFICES ACCOMMODATION,LEGAL FEES & COURT COSTS,2102928417,1000043318
04.03.2019,RESIDENT SERVICES,STEPHEN EVANS,680,OPERATIONS/OFFICES ACCOMMODATION,LEGAL FEES & COURT COSTS,2102928418,1000043318
04.03.2019,RESIDENT SERVICES,STEPHEN EVANS,"1,445.00",OPERATIONS/OFFICES ACCOMMODATION,LEGAL FEES & COURT COSTS,2102928420,1000043318
04.03.2019,RESIDENT SERVICES,STEPHEN EVANS,"1,445.00",OPERATIONS/OFFICES ACCOMMODATION,LEGAL FEES & COURT COSTS,2102928421,1000043318
04.03.2019,RESIDENT SERVICES,STEPHEN EVANS,"1,615.00",OPERATIONS/OFFICES ACCOMMODATION,LEGAL FEES & COURT COSTS,2102928416,1000043318
04.03.2019,RESIDENT SERVICES,A & H PEST CONTROL LTD,"7,460.00",PECKHAM,PEST CONTROL,5902346683,11230875
04.03.2019,RESIDENT SERVICES,PRB ESTATES LTD,"42,000.00",SHS MANAGER,BUILDING R&M,2102928244,3000001691
04.03.2019,RESIDENT SERVICES,CAPITA PROPERTY & INFRASTRUCTURE LTD,"5,950.00",STRATEGIC BUSINESS PLANNING,SUBSCRIPTIONS,5902346685,1000049453
04.03.2019,RESIDENT SERVICES,"BROWNING, JONES & MORRIS LTD",481.6,SUPPORTED HOSTELS,MATERIALS,5902346939,1027429
04.03.2019,SOUTHWARK BUILDING SERVICES,TASCOR SERVICES LTD,331,DEPOT COSTS,TRAINING,5902346717,1000079497
04.03.2019,SOUTHWARK BUILDING SERVICES,TASCOR SERVICES LTD,331,DEPOT COSTS,TRAINING,5902346717,1000079497
04.03.2019,SOUTHWARK BUILDING SERVICES,TASCOR SERVICES LTD,469.28,DEPOT COSTS,TRAINING,5902346717,1000079497
04.03.2019,SOUTHWARK BUILDING SERVICES,CASTLETON TECHNOLOGY PLC,"1,132.50",ICT & COMMUNICATIONS,SOFTWARE,5902346701,1000059550
04.03.2019,SOUTHWARK BUILDING SERVICES,CASTLETON TECHNOLOGY PLC,"9,302.00",ICT & COMMUNICATIONS,SOFTWARE,5902346701,1000059550
04.03.2019,SOUTHWARK BUILDING SERVICES,CASTLETON TECHNOLOGY PLC,"13,094.25",ICT & COMMUNICATIONS,SOFTWARE,5902346705,1000059550
04.03.2019,SOUTHWARK BUILDING SERVICES,CASTLETON TECHNOLOGY PLC,"19,728.71",ICT & COMMUNICATIONS,SOFTWARE,5902346701,1000059550
04.03.2019,SOUTHWARK BUILDING SERVICES,LONDON TOOLS LIMITED,305,R & M OVERHEADS,MATERIALS,5902346938,1000003017
04.03.2019,SOUTHWARK BUILDING SERVICES,PPG ARCHITECTURAL COATINGS,326.8,STORES/LOGISTICS,CREDITORS -GR/IR CLEARING ACCOUNT,5902346914,11063178
04.03.2019,SOUTHWARK BUILDING SERVICES,PPG ARCHITECTURAL COATINGS,424.2,STORES/LOGISTICS,CREDITORS -GR/IR CLEARING ACCOUNT,5902346912,11063178
04.03.2019,SOUTHWARK BUILDING SERVICES,PPG ARCHITECTURAL COATINGS,612.6,STORES/LOGISTICS,CREDITORS -GR/IR CLEARING ACCOUNT,5902346914,11063178
04.03.2019,SOUTHWARK BUILDING SERVICES,PPG ARCHITECTURAL COATINGS,918.9,STORES/LOGISTICS,CREDITORS -GR/IR CLEARING ACCOUNT,5902346912,11063178
04.03.2019,SOUTHWARK BUILDING SERVICES,LONDON TOOLS LIMITED,"1,239.60",STORES/LOGISTICS,CREDITORS -GR/IR CLEARING ACCOUNT,5902346936,1000003017
04.03.2019,SOUTHWARK BUILDING SERVICES,LONDON TOOLS LIMITED,"2,500.00",STORES/LOGISTICS,CREDITORS -GR/IR CLEARING ACCOUNT,5902346936,1000003017
04.03.2019,SOUTHWARK BUILDING SERVICES,LONDON TOOLS LIMITED,"2,500.00",STORES/LOGISTICS,CREDITORS -GR/IR CLEARING ACCOUNT,5902346940,1000003017
04.03.2019,SOUTHWARK BUILDING SERVICES,GRAFTON MERCHANTING GB LTD,332.93,WALWORTH VOIDS - WET TRADER,MATERIALS,5902346920,11296147
04.03.2019,STRATEGIC FINANCING BUDGETS,HEATH LAMBERT LTD,"1,192.91",SCHOOLS RELATED INSURANCE,PROPERTY INSURANCE COSTS,5902346629,1000023404
04.03.2019,SUSTAINABILITY & BUSINESS DEVELOPMENT,SOLACE IN BUSINESS,"5,980.00",SERVICE DEVELOPMENT TEAM,RECRUITMENT ADVERTISING,5902346929,1000022887
05.03.2019,ADULT SOCIAL CARE,SHIFT 8 LTD,"7,800.00",FRED FRANCIS CENTRE,EQUIPMENT PURCHASE & REPAIR,5902347146,1000082347
05.03.2019,ADULT SOCIAL CARE,CAMBRIDGE HOUSE & TALBOT,"9,501.36",INDEPENDENT MC ADVOCACY,ADVOCACY,5902347257,1139414
05.03.2019,ADULT SOCIAL CARE,ACT TOO LTD,400,LD LTS 18-64,DAYCARE,2102928641,1000053657
05.03.2019,ADULT SOCIAL CARE,NATIONAL AUTISTIC SOCIETY CARE PACK,"3,778.44",LD LTS 18-64,DAYCARE,2102928644,1000020538
05.03.2019,ADULT SOCIAL CARE,LONDON CARE LTD,"6,260.68",LD LTS 65+,HOMECARE - C&V,2102928567,1000003398
05.03.2019,ADULT SOCIAL CARE,LONDON CARE LTD,266.56,MEM LTS 65+,HOMECARE - C&V,2102928579,1000003398
05.03.2019,ADULT SOCIAL CARE,LONDON CARE LTD,732.6,MEM LTS 65+,HOMECARE - C&V,2102928516,1000003398
05.03.2019,ADULT SOCIAL CARE,LONDON CARE LTD,766.32,MEM LTS 65+,HOMECARE - C&V,2102928462,1000003398
05.03.2019,ADULT SOCIAL CARE,LONDON CARE LTD,"1,123.95",MEM LTS 65+,HOMECARE - C&V,2102928541,1000003398
05.03.2019,ADULT SOCIAL CARE,LONDON CARE LTD,"3,226.21",MEM LTS 65+,HOMECARE - C&V,2102928539,1000003398
05.03.2019,ADULT SOCIAL CARE,LONDON CARE LTD,266.4,MH LTS 18-64,HOMECARE - C&V,2102928463,1000003398
05.03.2019,ADULT SOCIAL CARE,LONDON CARE LTD,790.92,MH LTS 18-64,HOMECARE - C&V,2102928575,1000003398
05.03.2019,ADULT SOCIAL CARE,THAMES HOMECARE SERVICE LTD,268.5,MH LTS 18-64,HOMECARE - SPOT,2102928639,1000079295
05.03.2019,ADULT SOCIAL CARE,LONDON CARE LTD,258.14,MH LTS 65+,HOMECARE - C&V,2102928556,1000003398
05.03.2019,ADULT SOCIAL CARE,LONDON CARE LTD,333,MH LTS 65+,HOMECARE - C&V,2102928476,1000003398
05.03.2019,ADULT SOCIAL CARE,LONDON CARE LTD,266.52,PHY LTS 18-64,HOMECARE - C&V,2102928527,1000003398
05.03.2019,ADULT SOCIAL CARE,LONDON CARE LTD,283.08,PHY LTS 18-64,HOMECARE - C&V,2102928550,1000003398
05.03.2019,ADULT SOCIAL CARE,LONDON CARE LTD,333.2,PHY LTS 18-64,HOMECARE - C&V,2102928557,1000003398
05.03.2019,ADULT SOCIAL CARE,LONDON CARE LTD,341.36,PHY LTS 18-64,HOMECARE - C&V,2102928466,1000003398
05.03.2019,ADULT SOCIAL CARE,LONDON CARE LTD,349.72,PHY LTS 18-64,HOMECARE - C&V,2102928458,1000003398
05.03.2019,ADULT SOCIAL CARE,LONDON CARE LTD,349.72,PHY LTS 18-64,HOMECARE - C&V,2102928484,1000003398
05.03.2019,ADULT SOCIAL CARE,LONDON CARE LTD,403.83,PHY LTS 18-64,HOMECARE - C&V,2102928502,1000003398
05.03.2019,ADULT SOCIAL CARE,LONDON CARE LTD,466.28,PHY LTS 18-64,HOMECARE - C&V,2102928494,1000003398
05.03.2019,ADULT SOCIAL CARE,LONDON CARE LTD,503.94,PHY LTS 18-64,HOMECARE - C&V,2102928532,1000003398
05.03.2019,ADULT SOCIAL CARE,LONDON CARE LTD,516.16,PHY LTS 18-64,HOMECARE - C&V,2102928548,1000003398
05.03.2019,ADULT SOCIAL CARE,LONDON CARE LTD,516.22,PHY LTS 18-64,HOMECARE - C&V,2102928481,1000003398
05.03.2019,ADULT SOCIAL CARE,LONDON CARE LTD,532.8,PHY LTS 18-64,HOMECARE - C&V,2102928498,1000003398
05.03.2019,ADULT SOCIAL CARE,LONDON CARE LTD,699.44,PHY LTS 18-64,HOMECARE - C&V,2102928552,1000003398
05.03.2019,ADULT SOCIAL CARE,LONDON CARE LTD,757.67,PHY LTS 18-64,HOMECARE - C&V,2102928508,1000003398
05.03.2019,ADULT SOCIAL CARE,LONDON CARE LTD,899.37,PHY LTS 18-64,HOMECARE - C&V,2102928573,1000003398
05.03.2019,ADULT SOCIAL CARE,LONDON CARE LTD,990.7,PHY LTS 18-64,HOMECARE - C&V,2102928580,1000003398
05.03.2019,ADULT SOCIAL CARE,LONDON CARE LTD,"1,031.17",PHY LTS 18-64,HOMECARE - C&V,2102928472,1000003398
05.03.2019,ADULT SOCIAL CARE,LONDON CARE LTD,"1,065.88",PHY LTS 18-64,HOMECARE - C&V,2102928578,1000003398
05.03.2019,ADULT SOCIAL CARE,LONDON CARE LTD,"1,091.05",PHY LTS 18-64,HOMECARE - C&V,2102928490,1000003398
05.03.2019,ADULT SOCIAL CARE,LONDON CARE LTD,"1,149.21",PHY LTS 18-64,HOMECARE - C&V,2102928505,1000003398
05.03.2019,ADULT SOCIAL CARE,LONDON CARE LTD,"1,740.74",PHY LTS 18-64,HOMECARE - C&V,2102928469,1000003398
05.03.2019,ADULT SOCIAL CARE,LONDON CARE LTD,"1,832.04",PHY LTS 18-64,HOMECARE - C&V,2102928526,1000003398
05.03.2019,ADULT SOCIAL CARE,LONDON CARE LTD,"2,165.48",PHY LTS 18-64,HOMECARE - C&V,2102928566,1000003398
05.03.2019,ADULT SOCIAL CARE,LONDON CARE LTD,"2,189.82",PHY LTS 18-64,HOMECARE - C&V,2102928497,1000003398
05.03.2019,ADULT SOCIAL CARE,THAMES HOMECARE SERVICE LTD,366.95,PHY LTS 18-64,HOMECARE - SPOT,2102928628,1000079295
05.03.2019,ADULT SOCIAL CARE,THAMES HOMECARE SERVICE LTD,501.2,PHY LTS 18-64,HOMECARE - SPOT,2102928583,1000079295
05.03.2019,ADULT SOCIAL CARE,THAMES HOMECARE SERVICE LTD,608.6,PHY LTS 18-64,HOMECARE - SPOT,2102928603,1000079295
05.03.2019,ADULT SOCIAL CARE,CARE DIRECT UK LTD,647.88,PHY LTS 18-64,HOMECARE - SPOT,2102928614,1000066322
05.03.2019,ADULT SOCIAL CARE,THAMES HOMECARE SERVICE LTD,"1,432.00",PHY LTS 18-64,HOMECARE - SPOT,2102928602,1000079295
05.03.2019,ADULT SOCIAL CARE,LONDON CARE LTD,"2,677.12",PHY LTS 18-64,HOMECARE - SPOT,2102928574,1000003398
05.03.2019,ADULT SOCIAL CARE,LONDON CARE LTD,258.23,PHY LTS 65+,HOMECARE - C&V,2102928515,1000003398
05.03.2019,ADULT SOCIAL CARE,THAMES HOMECARE SERVICE LTD,259.55,PHY LTS 65+,HOMECARE - C&V,2102928596,1000079295
05.03.2019,ADULT SOCIAL CARE,LONDON CARE LTD,316.4,PHY LTS 65+,HOMECARE - C&V,2102928536,1000003398
05.03.2019,ADULT SOCIAL CARE,LONDON CARE LTD,324.74,PHY LTS 65+,HOMECARE - C&V,2102928480,1000003398
05.03.2019,ADULT SOCIAL CARE,LONDON CARE LTD,332.67,PHY LTS 65+,HOMECARE - C&V,2102928545,1000003398
05.03.2019,ADULT SOCIAL CARE,LONDON CARE LTD,333,PHY LTS 65+,HOMECARE - C&V,2102928520,1000003398
05.03.2019,ADULT SOCIAL CARE,LONDON CARE LTD,349.72,PHY LTS 65+,HOMECARE - C&V,2102928564,1000003398
05.03.2019,ADULT SOCIAL CARE,LONDON CARE LTD,366.44,PHY LTS 65+,HOMECARE - C&V,2102928522,1000003398
05.03.2019,ADULT SOCIAL CARE,LONDON CARE LTD,374.74,PHY LTS 65+,HOMECARE - C&V,2102928504,1000003398
05.03.2019,ADULT SOCIAL CARE,LONDON CARE LTD,391.51,PHY LTS 65+,HOMECARE - C&V,2102928514,1000003398
05.03.2019,ADULT SOCIAL CARE,LONDON CARE LTD,395.58,PHY LTS 65+,HOMECARE - C&V,2102928492,1000003398
05.03.2019,ADULT SOCIAL CARE,LONDON CARE LTD,399.84,PHY LTS 65+,HOMECARE - C&V,2102928525,1000003398
05.03.2019,ADULT SOCIAL CARE,LONDON CARE LTD,432.96,PHY LTS 65+,HOMECARE - C&V,2102928561,1000003398
05.03.2019,ADULT SOCIAL CARE,LONDON CARE LTD,441.35,PHY LTS 65+,HOMECARE - C&V,2102928533,1000003398
05.03.2019,ADULT SOCIAL CARE,LONDON CARE LTD,449.64,PHY LTS 65+,HOMECARE - C&V,2102928485,1000003398
05.03.2019,ADULT SOCIAL CARE,LONDON CARE LTD,449.64,PHY LTS 65+,HOMECARE - C&V,2102928509,1000003398
05.03.2019,ADULT SOCIAL CARE,LONDON CARE LTD,466.48,PHY LTS 65+,HOMECARE - C&V,2102928544,1000003398
05.03.2019,ADULT SOCIAL CARE,LONDON CARE LTD,524.75,PHY LTS 65+,HOMECARE - C&V,2102928581,1000003398
05.03.2019,ADULT SOCIAL CARE,LONDON CARE LTD,582.96,PHY LTS 65+,HOMECARE - C&V,2102928465,1000003398
05.03.2019,ADULT SOCIAL CARE,LONDON CARE LTD,582.96,PHY LTS 65+,HOMECARE - C&V,2102928489,1000003398
05.03.2019,ADULT SOCIAL CARE,LONDON CARE LTD,582.96,PHY LTS 65+,HOMECARE - C&V,2102928528,1000003398
05.03.2019,ADULT SOCIAL CARE,LONDON CARE LTD,599.61,PHY LTS 65+,HOMECARE - C&V,2102928542,1000003398
05.03.2019,ADULT SOCIAL CARE,LONDON CARE LTD,612.15,PHY LTS 65+,HOMECARE - C&V,2102928491,1000003398
05.03.2019,ADULT SOCIAL CARE,LONDON CARE LTD,632.9,PHY LTS 65+,HOMECARE - C&V,2102928560,1000003398
05.03.2019,ADULT SOCIAL CARE,LONDON CARE LTD,649.48,PHY LTS 65+,HOMECARE - C&V,2102928488,1000003398
05.03.2019,ADULT SOCIAL CARE,LONDON CARE LTD,666.4,PHY LTS 65+,HOMECARE - C&V,2102928519,1000003398
05.03.2019,ADULT SOCIAL CARE,LONDON CARE LTD,699.72,PHY LTS 65+,HOMECARE - C&V,2102928535,1000003398
05.03.2019,ADULT SOCIAL CARE,LONDON CARE LTD,703.67,PHY LTS 65+,HOMECARE - C&V,2102928570,1000003398
05.03.2019,ADULT SOCIAL CARE,LONDON CARE LTD,712.09,PHY LTS 65+,HOMECARE - C&V,2102928479,1000003398
05.03.2019,ADULT SOCIAL CARE,LONDON CARE LTD,732.95,PHY LTS 65+,HOMECARE - C&V,2102928460,1000003398
05.03.2019,ADULT SOCIAL CARE,LONDON CARE LTD,742.64,PHY LTS 65+,HOMECARE - C&V,2102928563,1000003398
05.03.2019,ADULT SOCIAL CARE,LONDON CARE LTD,766.04,PHY LTS 65+,HOMECARE - C&V,2102928554,1000003398
05.03.2019,ADULT SOCIAL CARE,LONDON CARE LTD,791.03,PHY LTS 65+,HOMECARE - C&V,2102928538,1000003398
05.03.2019,ADULT SOCIAL CARE,LONDON CARE LTD,799.54,PHY LTS 65+,HOMECARE - C&V,2102928483,1000003398
05.03.2019,ADULT SOCIAL CARE,LONDON CARE LTD,800.88,PHY LTS 65+,HOMECARE - C&V,2102928569,1000003398
05.03.2019,ADULT SOCIAL CARE,LONDON CARE LTD,816.2,PHY LTS 65+,HOMECARE - C&V,2102928572,1000003398
05.03.2019,ADULT SOCIAL CARE,LONDON CARE LTD,832.92,PHY LTS 65+,HOMECARE - C&V,2102928511,1000003398
05.03.2019,ADULT SOCIAL CARE,THAMES HOMECARE SERVICE LTD,859.2,PHY LTS 65+,HOMECARE - C&V,2102928601,1000079295
05.03.2019,ADULT SOCIAL CARE,LONDON CARE LTD,882.52,PHY LTS 65+,HOMECARE - C&V,2102928524,1000003398
05.03.2019,ADULT SOCIAL CARE,LONDON CARE LTD,882.8,PHY LTS 65+,HOMECARE - C&V,2102928454,1000003398
05.03.2019,ADULT SOCIAL CARE,LONDON CARE LTD,882.8,PHY LTS 65+,HOMECARE - C&V,2102928467,1000003398
05.03.2019,ADULT SOCIAL CARE,LONDON CARE LTD,932.4,PHY LTS 65+,HOMECARE - C&V,2102928475,1000003398
05.03.2019,ADULT SOCIAL CARE,LONDON CARE LTD,936.91,PHY LTS 65+,HOMECARE - C&V,2102928496,1000003398
05.03.2019,ADULT SOCIAL CARE,LONDON CARE LTD,943.9,PHY LTS 65+,HOMECARE - C&V,2102928512,1000003398
05.03.2019,ADULT SOCIAL CARE,LONDON CARE LTD,974.22,PHY LTS 65+,HOMECARE - C&V,2102928529,1000003398
05.03.2019,ADULT SOCIAL CARE,LONDON CARE LTD,982.8,PHY LTS 65+,HOMECARE - C&V,2102928478,1000003398
05.03.2019,ADULT SOCIAL CARE,LONDON CARE LTD,"1,040.97",PHY LTS 65+,HOMECARE - C&V,2102928565,1000003398
05.03.2019,ADULT SOCIAL CARE,LONDON CARE LTD,"1,045.27",PHY LTS 65+,HOMECARE - C&V,2102928471,1000003398
05.03.2019,ADULT SOCIAL CARE,LONDON CARE LTD,"1,049.44",PHY LTS 65+,HOMECARE - C&V,2102928553,1000003398
05.03.2019,ADULT SOCIAL CARE,LONDON CARE LTD,"1,057.75",PHY LTS 65+,HOMECARE - C&V,2102928510,1000003398
05.03.2019,ADULT SOCIAL CARE,LONDON CARE LTD,"1,132.64",PHY LTS 65+,HOMECARE - C&V,2102928534,1000003398
05.03.2019,ADULT SOCIAL CARE,LONDON CARE LTD,"1,182.64",PHY LTS 65+,HOMECARE - C&V,2102928493,1000003398
05.03.2019,ADULT SOCIAL CARE,LONDON CARE LTD,"1,182.64",PHY LTS 65+,HOMECARE - C&V,2102928523,1000003398
05.03.2019,ADULT SOCIAL CARE,LONDON CARE LTD,"1,632.39",PHY LTS 65+,HOMECARE - C&V,2102928452,1000003398
05.03.2019,ADULT SOCIAL CARE,LONDON CARE LTD,"1,942.83",PHY LTS 65+,HOMECARE - C&V,2102928500,1000003398
05.03.2019,ADULT SOCIAL CARE,LONDON CARE LTD,"2,077.84",PHY LTS 65+,HOMECARE - C&V,2102928506,1000003398
05.03.2019,ADULT SOCIAL CARE,LONDON CARE LTD,"2,177.98",PHY LTS 65+,HOMECARE - C&V,2102928468,1000003398
05.03.2019,ADULT SOCIAL CARE,LONDON CARE LTD,"2,498.18",PHY LTS 65+,HOMECARE - C&V,2102928537,1000003398
05.03.2019,ADULT SOCIAL CARE,LONDON CARE LTD,"2,531.49",PHY LTS 65+,HOMECARE - C&V,2102928531,1000003398
05.03.2019,ADULT SOCIAL CARE,LONDON CARE LTD,"2,614.85",PHY LTS 65+,HOMECARE - C&V,2102928568,1000003398
05.03.2019,ADULT SOCIAL CARE,LONDON CARE LTD,"2,639.79",PHY LTS 65+,HOMECARE - C&V,2102928503,1000003398
05.03.2019,ADULT SOCIAL CARE,LONDON CARE LTD,"2,672.95",PHY LTS 65+,HOMECARE - C&V,2102928559,1000003398
05.03.2019,ADULT SOCIAL CARE,THAMES HOMECARE SERVICE LTD,299.83,PHY LTS 65+,HOMECARE - SPOT,2102928595,1000079295
05.03.2019,ADULT SOCIAL CARE,THAMES HOMECARE SERVICE LTD,313.25,PHY LTS 65+,HOMECARE - SPOT,2102928609,1000079295
05.03.2019,ADULT SOCIAL CARE,THAMES HOMECARE SERVICE LTD,313.25,PHY LTS 65+,HOMECARE - SPOT,2102928634,1000079295
05.03.2019,ADULT SOCIAL CARE,THAMES HOMECARE SERVICE LTD,313.25,PHY LTS 65+,HOMECARE - SPOT,2102928640,1000079295
05.03.2019,ADULT SOCIAL CARE,THAMES HOMECARE SERVICE LTD,326.68,PHY LTS 65+,HOMECARE - SPOT,2102928588,1000079295
05.03.2019,ADULT SOCIAL CARE,THAMES HOMECARE SERVICE LTD,326.68,PHY LTS 65+,HOMECARE - SPOT,2102928607,1000079295
05.03.2019,ADULT SOCIAL CARE,THAMES HOMECARE SERVICE LTD,340.1,PHY LTS 65+,HOMECARE - SPOT,2102928582,1000079295
05.03.2019,ADULT SOCIAL CARE,THAMES HOMECARE SERVICE LTD,349.05,PHY LTS 65+,HOMECARE - SPOT,2102928632,1000079295
05.03.2019,ADULT SOCIAL CARE,THAMES HOMECARE SERVICE LTD,349.05,PHY LTS 65+,HOMECARE - SPOT,2102928636,1000079295
05.03.2019,ADULT SOCIAL CARE,THAMES HOMECARE SERVICE LTD,362.48,PHY LTS 65+,HOMECARE - SPOT,2102928635,1000079295
05.03.2019,ADULT SOCIAL CARE,THAMES HOMECARE SERVICE LTD,425.13,PHY LTS 65+,HOMECARE - SPOT,2102928589,1000079295
05.03.2019,ADULT SOCIAL CARE,THAMES HOMECARE SERVICE LTD,438.55,PHY LTS 65+,HOMECARE - SPOT,2102928622,1000079295
05.03.2019,ADULT SOCIAL CARE,CARE DIRECT UK LTD,497,PHY LTS 65+,HOMECARE - SPOT,2102928605,1000066322
05.03.2019,ADULT SOCIAL CARE,LONDON CARE LTD,533,PHY LTS 65+,HOMECARE - SPOT,2102928477,1000003398
05.03.2019,ADULT SOCIAL CARE,CARE DIRECT UK LTD,559.12,PHY LTS 65+,HOMECARE - SPOT,2102928615,1000066322
05.03.2019,ADULT SOCIAL CARE,CARE DIRECT UK LTD,559.13,PHY LTS 65+,HOMECARE - SPOT,2102928606,1000066322
05.03.2019,ADULT SOCIAL CARE,CARE DIRECT UK LTD,612.38,PHY LTS 65+,HOMECARE - SPOT,2102928623,1000066322
05.03.2019,ADULT SOCIAL CARE,THAMES HOMECARE SERVICE LTD,626.5,PHY LTS 65+,HOMECARE - SPOT,2102928593,1000079295
05.03.2019,ADULT SOCIAL CARE,THAMES HOMECARE SERVICE LTD,626.5,PHY LTS 65+,HOMECARE - SPOT,2102928617,1000079295
05.03.2019,ADULT SOCIAL CARE,THAMES HOMECARE SERVICE LTD,666.78,PHY LTS 65+,HOMECARE - SPOT,2102928599,1000079295
05.03.2019,ADULT SOCIAL CARE,THAMES HOMECARE SERVICE LTD,"1,002.40",PHY LTS 65+,HOMECARE - SPOT,2102928592,1000079295
05.03.2019,ADULT SOCIAL CARE,THAMES HOMECARE SERVICE LTD,"1,038.20",PHY LTS 65+,HOMECARE - SPOT,2102928612,1000079295
05.03.2019,ADULT SOCIAL CARE,THAMES HOMECARE SERVICE LTD,"1,105.33",PHY LTS 65+,HOMECARE - SPOT,2102928597,1000079295
05.03.2019,ADULT SOCIAL CARE,THAMES HOMECARE SERVICE LTD,"1,127.70",PHY LTS 65+,HOMECARE - SPOT,2102928621,1000079295
05.03.2019,ADULT SOCIAL CARE,THAMES HOMECARE SERVICE LTD,"1,127.70",PHY LTS 65+,HOMECARE - SPOT,2102928629,1000079295
05.03.2019,ADULT SOCIAL CARE,THAMES HOMECARE SERVICE LTD,"1,127.70",PHY LTS 65+,HOMECARE - SPOT,2102928637,1000079295
05.03.2019,ADULT SOCIAL CARE,THAMES HOMECARE SERVICE LTD,"1,253.00",PHY LTS 65+,HOMECARE - SPOT,2102928600,1000079295
05.03.2019,ADULT SOCIAL CARE,THAMES HOMECARE SERVICE LTD,"1,333.55",PHY LTS 65+,HOMECARE - SPOT,2102928587,1000079295
05.03.2019,ADULT SOCIAL CARE,THAMES HOMECARE SERVICE LTD,"2,058.50",PHY LTS 65+,HOMECARE - SPOT,2102928630,1000079295
05.03.2019,ADULT SOCIAL CARE,THAMES HOMECARE SERVICE LTD,375.9,PHY STS 65+,HOMECARE - IC,2102928619,1000079295
05.03.2019,ADULT SOCIAL CARE,THAMES HOMECARE SERVICE LTD,"1,127.70",PHY STS 65+,HOMECARE - IC,2102928608,1000079295
05.03.2019,ADULT SOCIAL CARE,GUYS & ST THOMAS NHS FOUNDATION TRUST,"18,495.96",REABLEMENT SERVICE,EXTERNAL AGENCIES AND BODIES,5902347113,1765536
05.03.2019,ADULT SOCIAL CARE,RYE CARS LTD,274.84,SOCIAL ISOLATION,CLIENT TRANSPORT,2102928590,1000081797
05.03.2019,ADULT SOCIAL CARE,LONDON CARE LTD,432.92,SOCIAL ISOLATION,HOMECARE - C&V,2102928487,1000003398
05.03.2019,ADULT SOCIAL CARE,LONDON CARE LTD,861.72,SOCIAL ISOLATION,HOMECARE - C&V,2102928530,1000003398
05.03.2019,ADULT SOCIAL CARE,LONDON CARE LTD,"1,003.51",SOCIAL ISOLATION,HOMECARE - C&V,2102928513,1000003398
05.03.2019,ADULT SOCIAL CARE,LONDON CARE LTD,"1,365.56",SOCIAL ISOLATION,HOMECARE - C&V,2102928521,1000003398
05.03.2019,ADULT SOCIAL CARE,KENT COUNTY COUNCIL - LASER,"2,841.21",SOUTHWARK RESOURCE CENTRE,ELECTRICITY,5902347036,1000012926
05.03.2019,ADULT SOCIAL CARE,STREETSCENE ADDICTION RECOVERY,"3,180.00",SUB LTS 18-64,PLACEMENTS - REHAB,2102928643,11221787
05.03.2019,ADULT SOCIAL CARE,STREETSCENE ADDICTION RECOVERY,"3,180.00",SUB LTS 18-64,RESIDENTIAL CARE,2102928642,11221787
05.03.2019,ASSET MANAGEMENT,JUDGE AND PRIESTLEY SOLICITORS,545,DISREPAIR,BUILDING R&M,5902347272,1472217
05.03.2019,ASSET MANAGEMENT,JUDGE AND PRIESTLEY SOLICITORS,"29,714.80",DISREPAIR,BUILDING R&M,5902347272,1472217
05.03.2019,ASSET MANAGEMENT,BUILDTRUST LTD,"7,336.59",R&M CONTRACTS (SOUTH),BUILDING R&M,2102928658,3000002010
05.03.2019,CHIEF EXECUTIVE,STEER DAVIES & GLEAVE LIMITED,"8,000.00",CAPITAL PS (REGEN),CONSTR'N SUB CONTRACT - NON CERTIFICATED,5902347142,1823348
05.03.2019,CHIEF EXECUTIVE,CUTTLE CONSTRUCTION LTD,"36,322.54",CAPITAL PS (REGEN),CONSTRUCTION FEES  - EXTERNAL,2102928645,3000001695
05.03.2019,CHIEF EXECUTIVE,AON UK LTD,"3,993.12",CAPITAL PS (REGEN),CONSTRUCTION FEES - LEGAL,5902346833,1000043011
05.03.2019,CHIEF EXECUTIVE,SGN CONNECTIONS LTD,"1,007.00",CAPITAL PS (REGEN),CONSTRUCTION SUB CONTRACT,5902347023,1000055428
05.03.2019,CHILDREN AND ADULT,REDACTED PERSONAL DATA,570,CAPITAL PS (EDUCATION),CAPITAL GRANTS,REDACTED,REDACTED
05.03.2019,CHILDREN AND ADULT,REDACTED PERSONAL DATA,590,CAPITAL PS (EDUCATION),CAPITAL GRANTS,REDACTED,REDACTED
05.03.2019,CHILDREN AND ADULT,REDACTED PERSONAL DATA,756,CAPITAL PS (EDUCATION),CAPITAL GRANTS,REDACTED,REDACTED
05.03.2019,CHILDREN AND ADULT,INTERSERVE (FACILITIES MANAGEMENT),566.75,CAPITAL PS (SOC SERV),CONSTRUCTION MAIN CONTRACT,2102928660,3000000166
05.03.2019,CHILDREN AND ADULT,INTERSERVE (FACILITIES MANAGEMENT),"1,778.37",CAPITAL PS (SOC SERV),CONSTRUCTION MAIN CONTRACT,2102928656,3000000166
05.03.2019,CHILDREN AND ADULT,INTERSERVE (FACILITIES MANAGEMENT),"3,313.92",CAPITAL PS (SOC SERV),CONSTRUCTION MAIN CONTRACT,2102928659,3000000166
05.03.2019,CHILDREN AND ADULT,INTERSERVE (FACILITIES MANAGEMENT),"5,458.40",CAPITAL PS (SOC SERV),CONSTRUCTION MAIN CONTRACT,2102928657,3000000166
05.03.2019,CHILDREN AND ADULT,INTERSERVE (FACILITIES MANAGEMENT),"5,458.40",CAPITAL PS (SOC SERV),CONSTRUCTION MAIN CONTRACT,2102928661,3000000166
05.03.2019,CHILDREN AND ADULT,INTERSERVE (FACILITIES MANAGEMENT),"5,458.40",CAPITAL PS (SOC SERV),CONSTRUCTION MAIN CONTRACT,2102928663,3000000166
05.03.2019,CHILDREN AND ADULT,INTERSERVE (FACILITIES MANAGEMENT),"11,436.66",CAPITAL PS (SOC SERV),CONSTRUCTION MAIN CONTRACT,2102928662,3000000166
05.03.2019,CHILDREN'S SERVICES,SARAH DISSPAIN,"1,655.80",CLINICAL SERVICE,PROFESSIONAL FEES,5902346943,1000082401
05.03.2019,CHILDREN'S SERVICES,EAST DULWICH COMMUNITY CENTRE,262.5,DISABILITY & HIV,EXTERNAL AGENCIES AND BODIES,5902347223,1968633
05.03.2019,CHILDREN'S SERVICES,WINCHMORE TUTORS LTD,816,LAC EDUCATION,EXTERNAL AGENCIES AND BODIES,5902347049,1000075298
05.03.2019,CHILDREN'S SERVICES,OBA NSUGBE QC,"2,450.00",LEGAL,LEGAL FEES & COURT COSTS,2102928410,1000082395
05.03.2019,CHILDREN'S SERVICES,TFL TELESALES / OYSTER FULFILMENT,600,MANAGEMENT,PUBLIC TRANSPORT,5902347247,1000059727
05.03.2019,CHILDREN'S SERVICES,BUTTERFLY LANE NURSERY LTD,"1,125.00",NURSERY ED GRANT 3 YEAR OLD,GRANTS,2102928427,1000080549
05.03.2019,CHILDREN'S SERVICES,CAMBERWELL AFTER SCHOOL PROJECT,"2,253.60",NURSERY ED GRANT 3 YEAR OLD,GRANTS,2102928428,1000051625
05.03.2019,CHILDREN'S SERVICES,WINCHMORE TUTORS LTD,"1,152.00",PUPIL PREMIUM CURRENT YEAR,EXTERNAL AGENCIES AND BODIES,5902347053,1000075298
05.03.2019,CHILDREN'S SERVICES,STEVE BUTCHER,325,REGIONAL ADOPTION AGENCY,PROFESSIONAL FEES,5902343725,1000082320
05.03.2019,CHILDREN'S SERVICES,CONTACT PROFESSIONALS,456,RESOURCE PANEL,OTHER PAYMENTS FOR CLIENTS,5902347135,1000057263
05.03.2019,CHILDREN'S SERVICES,CONTACT PROFESSIONALS,665,RESOURCE PANEL,OTHER PAYMENTS FOR CLIENTS,5902347134,1000057263
05.03.2019,CHILDREN'S SERVICES,CONTACT PROFESSIONALS,665,RESOURCE PANEL,OTHER PAYMENTS FOR CLIENTS,5902347137,1000057263
05.03.2019,CHILDREN'S SERVICES,CONTACT PROFESSIONALS,665,RESOURCE PANEL,OTHER PAYMENTS FOR CLIENTS,5902347138,1000057263
05.03.2019,CHILDREN'S SERVICES,CONTACT PROFESSIONALS,665,RESOURCE PANEL,OTHER PAYMENTS FOR CLIENTS,5902347139,1000057263
05.03.2019,CHILDREN'S SERVICES,CONTACT PROFESSIONALS,665,RESOURCE PANEL,OTHER PAYMENTS FOR CLIENTS,5902347140,1000057263
05.03.2019,CHILDREN'S SERVICES,CONTACT PROFESSIONALS,665,RESOURCE PANEL,OTHER PAYMENTS FOR CLIENTS,5902347141,1000057263
05.03.2019,CHILDREN'S SERVICES,CONTACT PROFESSIONALS,665,RESOURCE PANEL,OTHER PAYMENTS FOR CLIENTS,5902347143,1000057263
05.03.2019,CHILDREN'S SERVICES,CONTACT PROFESSIONALS,665,RESOURCE PANEL,OTHER PAYMENTS FOR CLIENTS,5902347144,1000057263
05.03.2019,CHILDREN'S SERVICES,CONTACT PROFESSIONALS,665,RESOURCE PANEL,OTHER PAYMENTS FOR CLIENTS,5902347147,1000057263
05.03.2019,CHILDREN'S SERVICES,CONTACT PROFESSIONALS,665,RESOURCE PANEL,OTHER PAYMENTS FOR CLIENTS,5902347224,1000057263
05.03.2019,CHILDREN'S SERVICES,CONTACT PROFESSIONALS,665,RESOURCE PANEL,OTHER PAYMENTS FOR CLIENTS,5902347227,1000057263
05.03.2019,CHILDREN'S SERVICES,CONTACT PROFESSIONALS,665,RESOURCE PANEL,OTHER PAYMENTS FOR CLIENTS,5902347233,1000057263
05.03.2019,CHILDREN'S SERVICES,CONTACT PROFESSIONALS,665,RESOURCE PANEL,OTHER PAYMENTS FOR CLIENTS,5902347237,1000057263
05.03.2019,CHILDREN'S SERVICES,CONTACT PROFESSIONALS,665,RESOURCE PANEL,OTHER PAYMENTS FOR CLIENTS,5902347245,1000057263
05.03.2019,CHILDREN'S SERVICES,CONTACT PROFESSIONALS,665,RESOURCE PANEL,OTHER PAYMENTS FOR CLIENTS,5902347246,1000057263
05.03.2019,CHILDREN'S SERVICES,CONTACT PROFESSIONALS,665,RESOURCE PANEL,OTHER PAYMENTS FOR CLIENTS,5902347250,1000057263
05.03.2019,CHILDREN'S SERVICES,CONTACT PROFESSIONALS,665,RESOURCE PANEL,OTHER PAYMENTS FOR CLIENTS,5902347253,1000057263
05.03.2019,CHILDREN'S SERVICES,CONTACT PROFESSIONALS,665,RESOURCE PANEL,OTHER PAYMENTS FOR CLIENTS,5902347255,1000057263
05.03.2019,CHILDREN'S SERVICES,CONTACT PROFESSIONALS,722,RESOURCE PANEL,OTHER PAYMENTS FOR CLIENTS,5902347229,1000057263
05.03.2019,CHILDREN'S SERVICES,CONTACT PROFESSIONALS,722,RESOURCE PANEL,OTHER PAYMENTS FOR CLIENTS,5902347231,1000057263
05.03.2019,CHILDREN'S SERVICES,CONTACT PROFESSIONALS,817,RESOURCE PANEL,OTHER PAYMENTS FOR CLIENTS,5902347148,1000057263
05.03.2019,CHILDREN'S SERVICES,CONTACT PROFESSIONALS,"1,083.00",RESOURCE PANEL,OTHER PAYMENTS FOR CLIENTS,5902347145,1000057263
05.03.2019,CHILDREN'S SERVICES,CONTACT PROFESSIONALS,"1,330.00",RESOURCE PANEL,OTHER PAYMENTS FOR CLIENTS,5902347235,1000057263
05.03.2019,CHILDREN'S SERVICES,ANDREWS OF KENT,258.33,S24 CLA,OTHER PAYMENTS FOR CLIENTS,5902347256,1000057588
05.03.2019,CHILDREN'S SERVICES,REDACTED PERSONAL DATA,280,SCH TRANS - CONTRACT COST,OTHER PAYMENTS FOR CLIENTS,REDACTED,REDACTED
05.03.2019,CHILDREN'S SERVICES,REDACTED PERSONAL DATA,380,SCH TRANS - CONTRACT COST,OTHER PAYMENTS FOR CLIENTS,REDACTED,REDACTED
05.03.2019,CHILDREN'S SERVICES,REDACTED PERSONAL DATA,760,SCH TRANS - CONTRACT COST,OTHER PAYMENTS FOR CLIENTS,REDACTED,REDACTED
05.03.2019,CHILDREN'S SERVICES,IMPERIAL COLLEGE LONDON,"9,250.00",SCHOLARSHIPS AND WRL,EXTERNAL AGENCIES AND BODIES,5902347131,1000041205
05.03.2019,CHILDREN'S SERVICES,REDACTED PERSONAL DATA,350,SPECIAL GUARDIANSHIP,PROFESSIONAL FEES,REDACTED,REDACTED
05.03.2019,CHILDREN'S SERVICES,KINDLY PROPERTIES LTD,"1,581.00",TEMPORARY ACCOMMODATION,EXTERNAL AGENCIES AND BODIES,5902346679,1000060734
05.03.2019,CHILDREN'S SERVICES,REDACTED PERSONAL DATA,300,UASC FURTHER EDUCATION SUPPORT,CLIENT TRANSPORT,REDACTED,REDACTED
05.03.2019,CHILDREN'S SERVICES,REDACTED PERSONAL DATA,500,UASC FURTHER EDUCATION SUPPORT,OTHER PAYMENTS FOR CLIENTS,REDACTED,REDACTED
05.03.2019,COMMUNITIES,PEYTON & BYRNE LTD,437.5,MAYORAL SUPPORT,MISCELLANEOUS EXPENSES,5902347149,1000075265
05.03.2019,COMMUNITIES,PEYTON & BYRNE LTD,476,MAYORAL SUPPORT,MISCELLANEOUS EXPENSES,5902347261,1000075265
05.03.2019,COMMUNITIES,THAMES HOMECARE SERVICE LTD,554.9,NO RECOURSE TO PUBLIC FUNDS,HOMECARE - C&V,2102928611,1000079295
05.03.2019,COMMUNITIES,OPEN COMMUNITIES LTD,477.75,RESIDENT INVOLVEMENT TEAM,PROFESSIONAL FEES,5902347236,1000065800
05.03.2019,COMMUNITIES,OPEN COMMUNITIES LTD,"1,162.50",RESIDENT INVOLVEMENT TEAM,PROFESSIONAL FEES,5902347234,1000065800
05.03.2019,COMMUNITIES,BRUNSWICK PARK T&RA,"1,300.00",TENANTS FUND,GRANTS,5902347133,1000041812
05.03.2019,COMMUNITIES,CANON UK LTD,807.56,TENANTS FUND,OP LEASE/HIRE CHARGES:PLANT/EQUIP/FURNIT,5902347171,1000015046
05.03.2019,COMMUNITIES,BROOK,"37,500.00",YOUNG PEOPLES SERVICE,OTHER CONTRACTORS,5902347155,1000076901
05.03.2019,CUSTOMER EXPERIENCE HGF,K3 PROPERTY MANAGEMENT LTD,"19,112.00",NIGHTLY TA (NSC),EXTERNAL AGENCIES AND BODIES,5902347127,1000068219
05.03.2019,ENVIRONMENT AND LEISURE,SPOKEMEAD MAINTENANCE LTD,"1,426.73",CAPITAL PS (LEISURE),CONST'N MAIN CONTRACT - NON CERTIFICATED,2102928665,4002791
05.03.2019,ENVIRONMENT AND LEISURE,CONWAY AECOM LTD,"21,940.34",CAPITAL PS (LEISURE),CONSTR'N SUB CONTRACT - NON CERTIFICATED,2102928436,3000001595
05.03.2019,ENVIRONMENT AND LEISURE,MAYLIM LTD,886.6,CAPITAL PS (LEISURE),CONSTRUCTION FEES  - EXTERNAL,2102928664,3000001725
05.03.2019,ENVIRONMENT AND LEISURE,MAYLIM LTD,"16,002.00",CAPITAL PS (LEISURE),CONSTRUCTION FEES  - EXTERNAL,2102928664,3000001725
05.03.2019,ENVIRONMENT AND LEISURE,BORRAS CONSTRUCTION LIMITED,"19,400.00",CAPITAL PS (LEISURE),CONSTRUCTION FEES  - EXTERNAL,2102928433,3000001492
05.03.2019,ENVIRONMENT AND LEISURE,GROUND CONTROL LIMITED,"69,411.50",CAPITAL PS (LEISURE),CONSTRUCTION FEES  - EXTERNAL,2102928655,3000001551
05.03.2019,ENVIRONMENT AND LEISURE,STONEGROVE LIMITED,"87,939.91",CAPITAL PS (LEISURE),CONSTRUCTION FEES  - EXTERNAL,2102928667,3000001525
05.03.2019,ENVIRONMENT AND LEISURE,SPOKEMEAD MAINTENANCE LTD,"2,037.14",CAPITAL PS (LEISURE),CONSTRUCTION MAIN CONTRACT -CERTIFICATED,2102928666,4002791
05.03.2019,ENVIRONMENT AND LEISURE,SPOKEMEAD MAINTENANCE LTD,"2,697.53",CAPITAL PS (LEISURE),CONSTRUCTION MAIN CONTRACT -CERTIFICATED,2102928666,4002791
05.03.2019,ENVIRONMENT AND LEISURE,SPOKEMEAD MAINTENANCE LTD,"5,034.29",CAPITAL PS (LEISURE),CONSTRUCTION MAIN CONTRACT -CERTIFICATED,2102928666,4002791
05.03.2019,ENVIRONMENT DIRECTORATE,DAWSONGROUP VANS LTD,271.04,COMMERCIAL VEH CTRL A/C,HIRED VEHICLES,5902347252,1000082230
05.03.2019,ENVIRONMENT DIRECTORATE,DAWSONGROUP VANS LTD,271.04,COMMERCIAL VEH CTRL A/C,HIRED VEHICLES,5902347258,1000082230
05.03.2019,ENVIRONMENT DIRECTORATE,DAWSONGROUP VANS LTD,271.04,COMMERCIAL VEH CTRL A/C,HIRED VEHICLES,5902347260,1000082230
05.03.2019,ENVIRONMENT DIRECTORATE,DAWSONGROUP VANS LTD,271.04,COMMERCIAL VEH CTRL A/C,HIRED VEHICLES,5902347262,1000082230
05.03.2019,ENVIRONMENT DIRECTORATE,DAWSONGROUP VANS LTD,271.04,COMMERCIAL VEH CTRL A/C,HIRED VEHICLES,5902347263,1000082230
05.03.2019,ENVIRONMENT DIRECTORATE,DAWSONGROUP VANS LTD,271.04,COMMERCIAL VEH CTRL A/C,HIRED VEHICLES,5902347264,1000082230
05.03.2019,ENVIRONMENT DIRECTORATE,DAWSONGROUP VANS LTD,271.04,COMMERCIAL VEH CTRL A/C,HIRED VEHICLES,5902347265,1000082230
05.03.2019,ENVIRONMENT DIRECTORATE,DAWSONGROUP VANS LTD,271.04,COMMERCIAL VEH CTRL A/C,HIRED VEHICLES,5902347266,1000082230
05.03.2019,ENVIRONMENT DIRECTORATE,DAWSONGROUP VANS LTD,271.04,COMMERCIAL VEH CTRL A/C,HIRED VEHICLES,5902347267,1000082230
05.03.2019,ENVIRONMENT DIRECTORATE,DAWSONGROUP VANS LTD,271.04,COMMERCIAL VEH CTRL A/C,HIRED VEHICLES,5902347268,1000082230
05.03.2019,ENVIRONMENT DIRECTORATE,FIVEWAYS MUNICIPAL VEHICLE HIRE LTD,725,COMMERCIAL VEH CTRL A/C,HIRED VEHICLES,5902347219,1000023985
05.03.2019,ENVIRONMENT DIRECTORATE,FIVEWAYS MUNICIPAL VEHICLE HIRE LTD,725,COMMERCIAL VEH CTRL A/C,HIRED VEHICLES,5902347220,1000023985
05.03.2019,ENVIRONMENT DIRECTORATE,FIVEWAYS MUNICIPAL VEHICLE HIRE LTD,725,COMMERCIAL VEH CTRL A/C,HIRED VEHICLES,5902347221,1000023985
05.03.2019,ENVIRONMENT DIRECTORATE,FIVEWAYS MUNICIPAL VEHICLE HIRE LTD,725,COMMERCIAL VEH CTRL A/C,HIRED VEHICLES,5902347222,1000023985
05.03.2019,ENVIRONMENT DIRECTORATE,FIVEWAYS MUNICIPAL VEHICLE HIRE LTD,"1,200.00",COMMERCIAL VEH CTRL A/C,HIRED VEHICLES,5902347218,1000023985
05.03.2019,ENVIRONMENT DIRECTORATE,M H COACHWORKS & SONS LTD,522.99,FLEET INSURANCE WORKS,TRANSPORT INSURANCE COSTS,5902347058,1000033495
05.03.2019,ENVIRONMENT DIRECTORATE,M H COACHWORKS & SONS LTD,"1,220.85",FLEET INSURANCE WORKS,TRANSPORT INSURANCE COSTS,5902347045,1000033495
05.03.2019,ENVIRONMENT DIRECTORATE,M H COACHWORKS & SONS LTD,"1,573.12",FLEET INSURANCE WORKS,TRANSPORT INSURANCE COSTS,5902347037,1000033495
05.03.2019,ENVIRONMENT DIRECTORATE,M H COACHWORKS & SONS LTD,"3,116.58",FLEET INSURANCE WORKS,TRANSPORT INSURANCE COSTS,5902347051,1000033495
05.03.2019,ENVIRONMENT DIRECTORATE,M H COACHWORKS & SONS LTD,"5,319.16",FLEET INSURANCE WORKS,TRANSPORT INSURANCE COSTS,5902347065,1000033495
05.03.2019,ENVIRONMENT DIRECTORATE,THE KNOWLEDGE ACADEMY LTD,895,PROJECT SUPPORT,TRAINING,5902347056,1000064533
05.03.2019,F & C S EXCLUDING CORPORATE BUDGETS,CABINET OFFICE,"1,850.00",ANTI-FRAUD AND INTERNAL AUDIT,SUBSCRIPTIONS,5902346662,1000079085
05.03.2019,HOUSING GENERAL FUND,STAR CONTRACTORS LTD,"7,325.00",CAPITAL PS (HOUSING GF),CAPITAL GRANTS,5902347070,1000080890
05.03.2019,HOUSING HRA,FREEWAY LIFTS SERVICES LTD,"17,670.00",CAPITAL PS (HRA),CONST'N MAIN CONTRACT - NON CERTIFICATED,2102928652,3000001170
05.03.2019,HOUSING HRA,ENGIE REGENERATION (APOLLO) LTD,"5,850.21",CAPITAL PS (HRA),CONSTRUCTION MAIN CONTRACT -CERTIFICATED,2102928649,4000449
05.03.2019,HOUSING HRA,ENGIE REGENERATION (APOLLO) LTD,"113,184.12",CAPITAL PS (HRA),CONSTRUCTION MAIN CONTRACT -CERTIFICATED,2102928647,4000449
05.03.2019,HOUSING HRA,ENGIE REGENERATION (APOLLO) LTD,"220,333.37",CAPITAL PS (HRA),CONSTRUCTION MAIN CONTRACT -CERTIFICATED,2102928650,4000449
05.03.2019,HOUSING HRA,ENGIE REGENERATION (APOLLO) LTD,"266,571.99",CAPITAL PS (HRA),CONSTRUCTION MAIN CONTRACT -CERTIFICATED,2102928651,4000449
05.03.2019,HOUSING HRA,ENGIE REGENERATION (APOLLO) LTD,"360,464.61",CAPITAL PS (HRA),CONSTRUCTION MAIN CONTRACT -CERTIFICATED,2102928648,4000449
05.03.2019,HOUSING HRA,REDACTED PERSONAL DATA,"1,258.75",CAPITAL PS (REGEN),LAND & BUILDINGS ACQUISITION FEES,REDACTED,REDACTED
05.03.2019,LEISURE DIRECTORATE,QUADRON SERVICES LIMITED,"4,902.75",CREMATORIUM,BUILDING R&M,5902347160,1000066528
05.03.2019,LEISURE DIRECTORATE,BORRAS CONSTRUCTION LIMITED,"13,580.00",CREMATORIUM,BUILDING R&M,2102928432,3000001492
05.03.2019,LEISURE DIRECTORATE,J & J MAINTENANCE SERVICES LTD,406.44,CREMATORIUM,OTHER R&M,5902347232,1000073675
05.03.2019,LEISURE DIRECTORATE,LEE SNASHFOLD CREMETORIA MANAGEMENT,"3,290.00",CREMATORIUM,PROFESSIONAL FEES,5902347225,1000077845
05.03.2019,LEISURE DIRECTORATE,LEE SNASHFOLD CREMETORIA MANAGEMENT,"3,290.00",CREMATORIUM,PROFESSIONAL FEES,5902347228,1000077845
05.03.2019,LEISURE DIRECTORATE,BISHOP SPORTS AND LEISURE LTD,405,PLAY NORTH,OP LEASE/HIRE CHARGES:PLANT/EQUIP/FURNIT,5902347238,11177103
05.03.2019,LEISURE DIRECTORATE,TECHNICAL SURFACES,450,SOUTHWARK AREA TEAM,OTHER R&M,5902347230,1000011451
05.03.2019,LEISURE DIRECTORATE,ASKEWS & HOLTS LIBRARY SERVICES LTD,379.36,STOCK SERVICES,BOOKS & PUBLICATIONS,5902347067,1494168
05.03.2019,LEISURE DIRECTORATE,ASKEWS & HOLTS LIBRARY SERVICES LTD,471.4,STOCK SERVICES,BOOKS & PUBLICATIONS,5902347093,1494168
05.03.2019,LEISURE DIRECTORATE,ASKEWS & HOLTS LIBRARY SERVICES LTD,"1,199.80",STOCK SERVICES,BOOKS & PUBLICATIONS,5902347064,1494168
05.03.2019,LEISURE DIRECTORATE,ASKEWS & HOLTS LIBRARY SERVICES LTD,"1,294.34",STOCK SERVICES,BOOKS & PUBLICATIONS,5902347047,1494168
05.03.2019,LEISURE DIRECTORATE,COMPLETE TREE CARE LTD,692.25,TREES O'HEADS,CONSULTANTS SERVICES,5902347185,1000041410
05.03.2019,LEISURE DIRECTORATE,COMPLETE TREE CARE LTD,711.75,TREES O'HEADS,CONSULTANTS SERVICES,5902347186,1000041410
05.03.2019,LEISURE DIRECTORATE,COMPLETE TREE CARE LTD,731.25,TREES O'HEADS,CONSULTANTS SERVICES,5902347184,1000041410
05.03.2019,LEISURE DIRECTORATE,COMPLETE TREE CARE LTD,907.5,TREES O'HEADS,CONSULTANTS SERVICES,5902347183,1000041410
05.03.2019,LEISURE DIRECTORATE,CABINET OFFICE,"12,538.80",TREES O'HEADS,PROFESSIONAL FEES,5902346710,1000079085
05.03.2019,PECKHAM AND NUNHEAD COMMUNITY COUNCIL,FRIENDS OF BELHAM,"2,000.00",AIR QUALITY,GRANT,CHEQUE PAYMENT,CHEQUE PAYMENT
05.03.2019,RESIDENT SERVICES,RS REAL ESTATE LTD,"1,085.00",TA PLACEMENTS,EXTERNAL AGENCIES AND BODIES,5902347092,1000072485
05.03.2019,SOUTHWARK BUILDING SERVICES,LOCKESLEYS LTD,639.31,BUSINESS SUPPORT,OTHER CONTRACTORS,2102928669,3000001480
05.03.2019,SOUTHWARK BUILDING SERVICES,SMITHY DECORATING,"4,592.92",BUSINESS SUPPORT,OTHER CONTRACTORS,2102928668,3000002050
05.03.2019,SOUTHWARK BUILDING SERVICES,BRIDGEWATER ROOFING CONTRACTORS LTD,"8,337.58",BUSINESS SUPPORT,OTHER CONTRACTORS,2102928434,3000001482
05.03.2019,SOUTHWARK BUILDING SERVICES,BUDMAX CONSTRUCTION LTD,"10,514.65",BUSINESS SUPPORT,OTHER CONTRACTORS,2102928431,3000001936
05.03.2019,SOUTHWARK BUILDING SERVICES,ATPB LTD,"11,757.69",BUSINESS SUPPORT,OTHER CONTRACTORS,2102928430,3000001850
05.03.2019,SOUTHWARK BUILDING SERVICES,FRANKLYN SHAW ASSOCIATES LTD,"17,915.25",BUSINESS SUPPORT,OTHER CONTRACTORS,2102928653,3000001465
05.03.2019,SOUTHWARK BUILDING SERVICES,GMS ELECTRICAL LTD,"18,954.83",BUSINESS SUPPORT,OTHER CONTRACTORS,2102928654,3000002085
05.03.2019,SOUTHWARK BUILDING SERVICES,DEREK BUILDING SERVICES LTD,"67,961.23",BUSINESS SUPPORT,OTHER CONTRACTORS,2102928435,3000001751
05.03.2019,SOUTHWARK BUILDING SERVICES,N & C BUILDING MATERIALS,291.13,R & M OVERHEADS,MATERIALS,5902347006,1005586
05.03.2019,SOUTHWARK BUILDING SERVICES,N & C BUILDING MATERIALS,291.13,R & M OVERHEADS,MATERIALS,5902347008,1005586
05.03.2019,SOUTHWARK BUILDING SERVICES,N & C BUILDING MATERIALS,342.66,R & M OVERHEADS,MATERIALS,5902347014,1005586
05.03.2019,SOUTHWARK BUILDING SERVICES,PEARSON GLAZING LIMITED,362,ROTHERHITHE DAY TO DAY - GLAZIER,MATERIALS,5902347075,1891977
05.03.2019,SOUTHWARK BUILDING SERVICES,LONDON TOOLS LIMITED,"3,723.30",STORES/LOGISTICS,CREDITORS -GR/IR CLEARING ACCOUNT,5902347048,1000003017
05.03.2019,SOUTHWARK BUILDING SERVICES,LONDON TOOLS LIMITED,"4,450.00",STORES/LOGISTICS,CREDITORS -GR/IR CLEARING ACCOUNT,5902347048,1000003017
05.03.2019,SOUTHWARK BUILDING SERVICES,PEARSON GLAZING LIMITED,502.5,WALWORTH TM 2 DAY TO DAY - GLAZIER,MATERIALS,5902347084,1891977
06.03.2019,ADULT SOCIAL CARE,GROVE HOTEL LTD,980,APPOINTEESHIPS,OTHER PAYMENTS FOR CLIENTS,5902347407,1000043663
06.03.2019,ADULT SOCIAL CARE,REDACTED PERSONAL DATA,600,APPOINTEESHIPS,OTHER PAYMENTS FOR CLIENTS,REDACTED,REDACTED
06.03.2019,ADULT SOCIAL CARE,NPOWER,976.03,FRED FRANCIS CENTRE,ELECTRICITY,5902347314,1000032342
06.03.2019,ADULT SOCIAL CARE,REDACTED PERSONAL DATA,340,RESPITE FOSTERCARERS,PAYMENTS TO CARERS,REDACTED,REDACTED
06.03.2019,ADULT SOCIAL CARE,REDACTED PERSONAL DATA,400,RESPITE FOSTERCARERS,PAYMENTS TO CARERS,REDACTED,REDACTED
06.03.2019,ADULT SOCIAL CARE,PRISM UK MEDICAL LTD,361.2,SOUTHWARK RESOURCE CENTRE,EQUIPMENT PURCHASE & REPAIR,5902347350,1000061392
06.03.2019,ASSET MANAGEMENT,FARANI JAVID TAYLOR SOLICITORS,"1,397.93",DISREPAIR,LEGAL FEES & COURT COSTS,5902347410,1000078262
06.03.2019,ASSET MANAGEMENT,BRIDGEWATER ROOFING CONTRACTORS LTD,"67,952.33",MAJOR REPAIRS,BUILDING R&M,2102929156,3000001482
06.03.2019,ASSET MANAGEMENT,ALBURY S.I. LTD,"1,695.00",REPAIRS OPERATIONS,BUILDING R&M,5902347366,1000038277
06.03.2019,CHIEF EXECUTIVE,TRITON BUILDING RESTORATION LTD,"30,679.79",CAPITAL PS (REGEN),CONSTRUCTION,2102929166,3000002061
06.03.2019,CHIEF EXECUTIVE'S OFFICE,J C CONSULTANT SERVICES LTD,"8,000.00",CHIEF EXEC'S OFFICE,GRANTS,5902347288,1000042476
06.03.2019,CHIEF EXECUTIVE'S OFFICE,J C CONSULTANT SERVICES LTD,"8,500.00",CHIEF EXEC'S OFFICE,GRANTS,5902347290,1000042476
06.03.2019,CHIEF EXECUTIVE'S OFFICE,ST GILES TRUST,"30,982.00",CHIEF EXEC'S OFFICE,GRANTS,5902347322,1013828
06.03.2019,CHILDREN AND ADULT,KEEGANS LTD,"2,655.26",CAPITAL PS (EDUCATION),CONSTRUCTION FEES - QUANTITY SURVEYOR,5902347352,1000039674
06.03.2019,CHILDREN AND ADULT,KEEGANS LTD,"2,740.00",CAPITAL PS (EDUCATION),CONSTRUCTION FEES - QUANTITY SURVEYOR,5902347397,1000039674
06.03.2019,CHILDREN AND ADULT,KEEGANS LTD,"2,828.36",CAPITAL PS (EDUCATION),CONSTRUCTION FEES - QUANTITY SURVEYOR,5902347400,1000039674
06.03.2019,CHILDREN AND ADULT,KEEGANS LTD,"2,924.86",CAPITAL PS (EDUCATION),CONSTRUCTION FEES - QUANTITY SURVEYOR,5902347353,1000039674
06.03.2019,CHILDREN AND ADULT,KEEGANS LTD,"3,060.00",CAPITAL PS (EDUCATION),CONSTRUCTION FEES - QUANTITY SURVEYOR,5902347404,1000039674
06.03.2019,CHILDREN AND ADULT,STONEGROVE LIMITED,"5,586.75",CAPITAL PS (EDUCATION),CONSTRUCTION MAIN CONTRACT -CERTIFICATED,2102929159,3000001525
06.03.2019,CHILDREN AND ADULT,INTERSERVE (FACILITIES MANAGEMENT),"2,848.85",CAPITAL PS (SOC SERV),CONSTRUCTION MAIN CONTRACT,2102929158,3000000166
06.03.2019,CHILDREN AND ADULT,INTERSERVE (FACILITIES MANAGEMENT),"5,458.40",CAPITAL PS (SOC SERV),CONSTRUCTION MAIN CONTRACT,2102929157,3000000166
06.03.2019,CHILDREN AND ADULT,INTERSERVE (FACILITIES MANAGEMENT),"5,458.40",CAPITAL PS (SOC SERV),CONSTRUCTION MAIN CONTRACT,2102929164,3000000166
06.03.2019,CHILDREN AND ADULT,KIER SUPPORT SERVICES LIMITED,"74,800.47",CAPITAL PS (SOC SERV),CONSTRUCTION MAIN CONTRACT,2102929165,3000001246
06.03.2019,CHILDREN'S SERVICES,REDACTED PERSONAL DATA,481.5,ADOPTION REFORM GRANT (PART B),PROFESSIONAL FEES,REDACTED,REDACTED
06.03.2019,CHILDREN'S SERVICES,CONTACT PROFESSIONALS,373.55,CARE GRPS  4 TO 6,OTHER PAYMENTS FOR CLIENTS,5902347310,1000057263
06.03.2019,CHILDREN'S SERVICES,CRESSEY OASIS EDUCATION LTD,"13,369.00",CASEWORK OLA  0-8,CENTRAL GOVERNMENT,2102928710,1000068133
06.03.2019,CHILDREN'S SERVICES,WEY ECADEMY LTD,"1,020.62",CASEWORK OLA  0-8,CONTRIBUTION TO PROVISIONS (TP PAYMENTS),2102928707,1000080290
06.03.2019,CHILDREN'S SERVICES,WEY ECADEMY LTD,"1,159.79",CASEWORK OLA  0-8,CONTRIBUTION TO PROVISIONS (TP PAYMENTS),2102928706,1000080290
06.03.2019,CHILDREN'S SERVICES,CARBONE CLINIC UK LTD,"2,196.65",CASEWORK OLA  0-8,CONTRIBUTION TO PROVISIONS (TP PAYMENTS),2102928684,1000080937
06.03.2019,CHILDREN'S SERVICES,CARBONE CLINIC UK LTD,"3,600.00",CASEWORK OLA  0-8,CONTRIBUTION TO PROVISIONS (TP PAYMENTS),2102928685,1000080937
06.03.2019,CHILDREN'S SERVICES,ST ANNES'S R.C. PRIMARY SCHOOL,"1,670.10",CASEWORK OLA  0-8,EXTERNAL AGENCIES AND BODIES,2102928725,1000077187
06.03.2019,CHILDREN'S SERVICES,JESSOP PRIMARY SCHOOL,"2,639.18",CASEWORK OLA  0-8,EXTERNAL AGENCIES AND BODIES,2102928746,1000081840
06.03.2019,CHILDREN'S SERVICES,PAXTON PRIMARY SCHOOL,"4,194.64",CASEWORK OLA  0-8,EXTERNAL AGENCIES AND BODIES,2102928724,1000079086
06.03.2019,CHILDREN'S SERVICES,ST SAVIOURS CE PRIMARY SCHOOL,"8,389.28",CASEWORK OLA  0-8,EXTERNAL AGENCIES AND BODIES,2102928727,1000075859
06.03.2019,CHILDREN'S SERVICES,THE CHELSEA GROUP OF CHILDREN LTD,"9,393.75",CASEWORK OLA  0-8,RECOUPMENT,2102928692,1000074731
06.03.2019,CHILDREN'S SERVICES,THE CHELSEA GROUP OF CHILDREN LTD,"9,750.00",CASEWORK OLA  0-8,RECOUPMENT,2102928691,1000074731
06.03.2019,CHILDREN'S SERVICES,THE CHELSEA GROUP OF CHILDREN LTD,"11,750.00",CASEWORK OLA  0-8,RECOUPMENT,2102928690,1000074731
06.03.2019,CHILDREN'S SERVICES,THE CHELSEA GROUP OF CHILDREN LTD,"12,525.00",CASEWORK OLA  0-8,RECOUPMENT,2102928689,1000074731
06.03.2019,CHILDREN'S SERVICES,THE CHELSEA GROUP OF CHILDREN LTD,"12,525.00",CASEWORK OLA  0-8,RECOUPMENT,2102928693,1000074731
06.03.2019,CHILDREN'S SERVICES,KENT COUNTY COUNCIL,"13,900.61",CASEWORK OLA  0-8,RECOUPMENT,2102928732,1000053817
06.03.2019,CHILDREN'S SERVICES,KENT COUNTY COUNCIL,"14,175.52",CASEWORK OLA  0-8,RECOUPMENT,2102928736,1000053817
06.03.2019,CHILDREN'S SERVICES,ISLINGTON COUNCIL,"54,608.00",CASEWORK OLA  0-8,RECOUPMENT,2102928726,11204697
06.03.2019,CHILDREN'S SERVICES,PARAYHOUSE SCHOOL,"1,672.65",CASEWORK OLA  0-8,RECOUPMENT,2102928698,1000011369
06.03.2019,CHILDREN'S SERVICES,ELM COURT SCHOOL,"10,048.66",CASEWORK OLA  0-8,RECOUPMENT,2102928730,1000072260
06.03.2019,CHILDREN'S SERVICES,EAGLE HOUSE SCHOOL (SUTTON),"12,014.20",CASEWORK OLA  0-8,RECOUPMENT,2102928711,1000077944
06.03.2019,CHILDREN'S SERVICES,ELM COURT SCHOOL,"53,014.45",CASEWORK OLA  0-8,RECOUPMENT,2102928728,1000072260
06.03.2019,CHILDREN'S SERVICES,KENT COUNTY COUNCIL,"3,369.73",CASEWORK OLA  0-8,STATEMENTED FEES,2102928735,1000053817
06.03.2019,CHILDREN'S SERVICES,THE GROVE CHILDRENS CENTRE,"4,978.00",CASEWORK SOUTHWARK 0-8,OTHER LOCAL AUTHORITIES,2102928717,5001000090
06.03.2019,CHILDREN'S SERVICES,ST JAMES CE SCHOOL,"3,417.50",CASEWORK SOUTHWARK 0-8,"SCHOOLS CAPITATION, OTHER GRANTS",2102928696,5001000070
06.03.2019,CHILDREN'S SERVICES,ARK SCHOOLS T/A GLOBE ACADEMY,"15,798.81",CASEWORK SOUTHWARK 0-8,STATEMENTED FEES,2102928716,1000060008
06.03.2019,CHILDREN'S SERVICES,COMPASS SCHOOL SOUTHWARK,"17,040.72",CASEWORK SOUTHWARK 0-8,STATEMENTED FEES,2102928694,1000076195
06.03.2019,CHILDREN'S SERVICES,GALLEYWALL PRIMARY SCHOOL,"10,824.74",CASEWORK SOUTHWARK 0-8,STATEMENTED FEES,2102928709,1000078128
06.03.2019,CHILDREN'S SERVICES,THE BOSCO CENTRE,"51,000.00",CONTROLLING MIGRATION FUND,EXTERNAL AGENCIES AND BODIES,5902347360,1000046317
06.03.2019,CHILDREN'S SERVICES,REDACTED PERSONAL DATA,300,DISABILITY & HIV,ADDITIONAL PAYMENTS TO AGENCIES/CARERS,REDACTED,REDACTED
06.03.2019,CHILDREN'S SERVICES,REDACTED PERSONAL DATA,300,DISABILITY & HIV,ADDITIONAL PAYMENTS TO AGENCIES/CARERS,REDACTED,REDACTED
06.03.2019,CHILDREN'S SERVICES,REDACTED PERSONAL DATA,300,DISABILITY & HIV,ADDITIONAL PAYMENTS TO AGENCIES/CARERS,REDACTED,REDACTED
06.03.2019,CHILDREN'S SERVICES,REDACTED PERSONAL DATA,300,DISABILITY & HIV,OTHER PAYMENTS FOR CLIENTS,REDACTED,REDACTED
06.03.2019,CHILDREN'S SERVICES,REDACTED PERSONAL DATA,300,FURTHER EDUCATION SUPPORT,CLIENT TRANSPORT,REDACTED,REDACTED
06.03.2019,CHILDREN'S SERVICES,THE OPEN UNIVERSITY,750,LAC EDUCATION,TRAINING,5902347388,1000042076
06.03.2019,CHILDREN'S SERVICES,REDACTED PERSONAL DATA,"2,000.00",LEAVING CARE GRANT,OTHER PAYMENTS FOR CLIENTS,REDACTED,REDACTED
06.03.2019,CHILDREN'S SERVICES,BARNARDOS SERVICES LTD,"15,834.00",PFA TEAM SOUTHWARK 9 PLUS,ADDITIONAL PAYMENTS TO AGENCIES/CARERS,2102928697,1000063730
06.03.2019,CHILDREN'S SERVICES,KISIMUL GROUP LTD,"25,015.30",PFA TEAM SOUTHWARK 9 PLUS,ADDITIONAL PAYMENTS TO AGENCIES/CARERS,2102928712,1000079657
06.03.2019,CHILDREN'S SERVICES,KENT COUNTY COUNCIL,"3,005.17",PFA TEAM SOUTHWARK 9 PLUS,CENTRAL GOVERNMENT,2102928734,1000053817
06.03.2019,CHILDREN'S SERVICES,VIBE TEACHER RECRUITMENT LTD,840,PFA TEAM SOUTHWARK 9 PLUS,CONTRIBUTION TO PROVISIONS (TP PAYMENTS),2102928688,1000081423
06.03.2019,CHILDREN'S SERVICES,VIBE TEACHER RECRUITMENT LTD,"1,710.00",PFA TEAM SOUTHWARK 9 PLUS,CONTRIBUTION TO PROVISIONS (TP PAYMENTS),2102928687,1000081423
06.03.2019,CHILDREN'S SERVICES,VIBE TEACHER RECRUITMENT LTD,"1,875.00",PFA TEAM SOUTHWARK 9 PLUS,CONTRIBUTION TO PROVISIONS (TP PAYMENTS),2102928686,1000081423
06.03.2019,CHILDREN'S SERVICES,BECKMEAD SCHOOL,"2,200.00",PFA TEAM SOUTHWARK 9 PLUS,CONTRIBUTION TO PROVISIONS (TP PAYMENTS),2102928742,1000073292
06.03.2019,CHILDREN'S SERVICES,MP HABILITATION SERVICES LTD,"1,560.00",PFA TEAM SOUTHWARK 9 PLUS,OTHER CONTRACTORS,2102928708,1000082223
06.03.2019,CHILDREN'S SERVICES,PHOENIXPLACE,"4,032.00",PFA TEAM SOUTHWARK 9 PLUS,RECOUPMENT,2102928715,1000075565
06.03.2019,CHILDREN'S SERVICES,CARETRADE CHARITABLE TRUST,"53,170.69",PFA TEAM SOUTHWARK 9 PLUS,RECOUPMENT,2102928718,1000067322
06.03.2019,CHILDREN'S SERVICES,WANDSWORTH COUNCIL,"4,655.00",PFA TEAM SOUTHWARK 9 PLUS,RECOUPMENT,2102928745,1000020692
06.03.2019,CHILDREN'S SERVICES,KENT COUNTY COUNCIL,"6,457.26",PFA TEAM SOUTHWARK 9 PLUS,RECOUPMENT,2102928733,1000053817
06.03.2019,CHILDREN'S SERVICES,WANDSWORTH COUNCIL,"10,024.00",PFA TEAM SOUTHWARK 9 PLUS,RECOUPMENT,2102928744,1000020692
06.03.2019,CHILDREN'S SERVICES,WANDSWORTH COUNCIL,"51,103.00",PFA TEAM SOUTHWARK 9 PLUS,RECOUPMENT,2102928743,1000020692
06.03.2019,CHILDREN'S SERVICES,PARAYHOUSE SCHOOL,371.7,PFA TEAM SOUTHWARK 9 PLUS,RECOUPMENT,2102928699,1000011369
06.03.2019,CHILDREN'S SERVICES,BEATRICE TATE SCHOOL,"5,135.06",PFA TEAM SOUTHWARK 9 PLUS,RECOUPMENT,2102928723,1000054132
06.03.2019,CHILDREN'S SERVICES,BECKMEAD SCHOOL,"9,147.28",PFA TEAM SOUTHWARK 9 PLUS,RECOUPMENT,2102928741,1000073292
06.03.2019,CHILDREN'S SERVICES,TURNEY SCHOOL,"25,423.20",PFA TEAM SOUTHWARK 9 PLUS,RECOUPMENT,2102928748,1000072254
06.03.2019,CHILDREN'S SERVICES,ELM COURT SCHOOL,"70,330.34",PFA TEAM SOUTHWARK 9 PLUS,RECOUPMENT,2102928729,1000072260
06.03.2019,CHILDREN'S SERVICES,THE COMPLETE WORKS INDEPENDENT SCHOOL,"-7,875.00",PFA TEAM SOUTHWARK 9 PLUS,"SCHOOLS CAPITATION, OTHER GRANTS",2102928751,1000033256
06.03.2019,CHILDREN'S SERVICES,THE COMPLETE WORKS INDEPENDENT SCHOOL,"2,070.00",PFA TEAM SOUTHWARK 9 PLUS,"SCHOOLS CAPITATION, OTHER GRANTS",2102928705,1000033256
06.03.2019,CHILDREN'S SERVICES,THE COMPLETE WORKS INDEPENDENT SCHOOL,"3,500.00",PFA TEAM SOUTHWARK 9 PLUS,"SCHOOLS CAPITATION, OTHER GRANTS",2102928700,1000033256
06.03.2019,CHILDREN'S SERVICES,THE COMPLETE WORKS INDEPENDENT SCHOOL,"3,966.61",PFA TEAM SOUTHWARK 9 PLUS,"SCHOOLS CAPITATION, OTHER GRANTS",2102928703,1000033256
06.03.2019,CHILDREN'S SERVICES,THE COMPLETE WORKS INDEPENDENT SCHOOL,"4,500.00",PFA TEAM SOUTHWARK 9 PLUS,"SCHOOLS CAPITATION, OTHER GRANTS",2102928701,1000033256
06.03.2019,CHILDREN'S SERVICES,THE COMPLETE WORKS INDEPENDENT SCHOOL,"7,000.00",PFA TEAM SOUTHWARK 9 PLUS,"SCHOOLS CAPITATION, OTHER GRANTS",2102928702,1000033256
06.03.2019,CHILDREN'S SERVICES,THE COMPLETE WORKS INDEPENDENT SCHOOL,"7,000.00",PFA TEAM SOUTHWARK 9 PLUS,"SCHOOLS CAPITATION, OTHER GRANTS",2102928704,1000033256
06.03.2019,CHILDREN'S SERVICES,NEWCASTLE COLLEGE GROUP,-660,PFA TEAM SOUTHWARK 9 PLUS,"SCHOOLS CAPITATION, STANDARDS FUND",2102928750,1000080965
06.03.2019,CHILDREN'S SERVICES,WEST THAMES COLLEGE,"2,581.34",PFA TEAM SOUTHWARK 9 PLUS,"SCHOOLS CAPITATION, STANDARDS FUND",2102928719,1000078924
06.03.2019,CHILDREN'S SERVICES,WEST THAMES COLLEGE,"2,582.34",PFA TEAM SOUTHWARK 9 PLUS,"SCHOOLS CAPITATION, STANDARDS FUND",2102928720,1000078924
06.03.2019,CHILDREN'S SERVICES,SHOOTERS HILL CAMPUS,"16,867.00",PFA TEAM SOUTHWARK 9 PLUS,"SCHOOLS CAPITATION, STANDARDS FUND",2102928731,1000074183
06.03.2019,CHILDREN'S SERVICES,CAPEL MANOR COLLEGE,"18,199.10",PFA TEAM SOUTHWARK 9 PLUS,"SCHOOLS CAPITATION, STANDARDS FUND",2102928740,1000044937
06.03.2019,CHILDREN'S SERVICES,CAPEL MANOR COLLEGE,"18,199.11",PFA TEAM SOUTHWARK 9 PLUS,"SCHOOLS CAPITATION, STANDARDS FUND",2102928739,1000044937
06.03.2019,CHILDREN'S SERVICES,CAPITAL CITY COLLEGE GROUP,"33,966.66",PFA TEAM SOUTHWARK 9 PLUS,"SCHOOLS CAPITATION, STANDARDS FUND",2102928738,1000082160
06.03.2019,CHILDREN'S SERVICES,NEWCASTLE COLLEGE GROUP,"41,009.93",PFA TEAM SOUTHWARK 9 PLUS,"SCHOOLS CAPITATION, STANDARDS FUND",2102928749,1000080965
06.03.2019,CHILDREN'S SERVICES,THE BOSCO CENTRE,"62,226.20",PFA TEAM SOUTHWARK 9 PLUS,"SCHOOLS CAPITATION, STANDARDS FUND",2102928747,1000046317
06.03.2019,CHILDREN'S SERVICES,CAPITAL CITY COLLEGE GROUP,"67,933.34",PFA TEAM SOUTHWARK 9 PLUS,"SCHOOLS CAPITATION, STANDARDS FUND",2102928737,1000082160
06.03.2019,CHILDREN'S SERVICES,SPORTFIT SHORT BREAK CARE LTD,"3,025.00",PFA TEAM SOUTHWARK 9 PLUS,SECTION 17 PAYMENTS TO AGENCIES/CARERS,2102928713,1000078113
06.03.2019,CHILDREN'S SERVICES,SPORTFIT SHORT BREAK CARE LTD,"3,025.00",PFA TEAM SOUTHWARK 9 PLUS,SECTION 17 PAYMENTS TO AGENCIES/CARERS,2102928714,1000078113
06.03.2019,CHILDREN'S SERVICES,DROITWICH SPA HIGH SCHOOL AND SIXTH FORM CENTRE,"10,666.67",PFA TEAM SOUTHWARK 9 PLUS,STATEMENTED FEES,2102928721,1000082311
06.03.2019,CHILDREN'S SERVICES,COMPASS SCHOOL SOUTHWARK,"45,282.22",PFA TEAM SOUTHWARK 9 PLUS,STATEMENTED FEES,2102928695,1000076195
06.03.2019,CHILDREN'S SERVICES,REDACTED PERSONAL DATA,263.96,RESIDENCE ORDERS,PAYMENTS TO CARERS,REDACTED,REDACTED
06.03.2019,CHILDREN'S SERVICES,REDACTED PERSONAL DATA,269.08,RESIDENCE ORDERS,PAYMENTS TO CARERS,REDACTED,REDACTED
06.03.2019,CHILDREN'S SERVICES,REDACTED PERSONAL DATA,269.08,RESIDENCE ORDERS,PAYMENTS TO CARERS,REDACTED,REDACTED
06.03.2019,CHILDREN'S SERVICES,REDACTED PERSONAL DATA,276.1,RESIDENCE ORDERS,PAYMENTS TO CARERS,REDACTED,REDACTED
06.03.2019,CHILDREN'S SERVICES,REDACTED PERSONAL DATA,452.7,RESIDENCE ORDERS,PAYMENTS TO CARERS,REDACTED,REDACTED
06.03.2019,CHILDREN'S SERVICES,REDACTED PERSONAL DATA,300,SEMI INDEPENDENT,OTHER PAYMENTS FOR CLIENTS,REDACTED,REDACTED
06.03.2019,CHILDREN'S SERVICES,REDACTED PERSONAL DATA,"1,360.00",SEMI INDEPENDENT,OTHER PAYMENTS FOR CLIENTS,REDACTED,REDACTED
06.03.2019,CHILDREN'S SERVICES,ARC COMMUNITY TRUSTEES,650,SPECIAL GUARDIANSHIP,EXTERNAL AGENCIES AND BODIES,5902347403,1000046206
06.03.2019,CHILDREN'S SERVICES,REDACTED PERSONAL DATA,624.78,SPECIAL GUARDIANSHIP,EXTERNAL AGENCIES AND BODIES,REDACTED,REDACTED
06.03.2019,CHILDREN'S SERVICES,REDACTED PERSONAL DATA,269.08,SPECIAL GUARDIANSHIP,PAYMENTS TO CARERS,REDACTED,REDACTED
06.03.2019,CHILDREN'S SERVICES,REDACTED PERSONAL DATA,269.08,SPECIAL GUARDIANSHIP,PAYMENTS TO CARERS,REDACTED,REDACTED
06.03.2019,CHILDREN'S SERVICES,REDACTED PERSONAL DATA,269.08,SPECIAL GUARDIANSHIP,PAYMENTS TO CARERS,REDACTED,REDACTED
06.03.2019,CHILDREN'S SERVICES,REDACTED PERSONAL DATA,269.08,SPECIAL GUARDIANSHIP,PAYMENTS TO CARERS,REDACTED,REDACTED
06.03.2019,CHILDREN'S SERVICES,REDACTED PERSONAL DATA,342.45,SPECIAL GUARDIANSHIP,PAYMENTS TO CARERS,REDACTED,REDACTED
06.03.2019,CHILDREN'S SERVICES,REDACTED PERSONAL DATA,343.05,SPECIAL GUARDIANSHIP,PAYMENTS TO CARERS,REDACTED,REDACTED
06.03.2019,CHILDREN'S SERVICES,REDACTED PERSONAL DATA,356.15,SPECIAL GUARDIANSHIP,PAYMENTS TO CARERS,REDACTED,REDACTED
06.03.2019,CHILDREN'S SERVICES,REDACTED PERSONAL DATA,388.04,SPECIAL GUARDIANSHIP,PAYMENTS TO CARERS,REDACTED,REDACTED
06.03.2019,CHILDREN'S SERVICES,REDACTED PERSONAL DATA,389.34,SPECIAL GUARDIANSHIP,PAYMENTS TO CARERS,REDACTED,REDACTED
06.03.2019,CHILDREN'S SERVICES,REDACTED PERSONAL DATA,403.04,SPECIAL GUARDIANSHIP,PAYMENTS TO CARERS,REDACTED,REDACTED
06.03.2019,CHILDREN'S SERVICES,REDACTED PERSONAL DATA,525,SPECIAL GUARDIANSHIP,PAYMENTS TO CARERS,REDACTED,REDACTED
06.03.2019,CHILDREN'S SERVICES,REDACTED PERSONAL DATA,525,SPECIAL GUARDIANSHIP,PAYMENTS TO CARERS,REDACTED,REDACTED
06.03.2019,CHILDREN'S SERVICES,REDACTED PERSONAL DATA,525,SPECIAL GUARDIANSHIP,PAYMENTS TO CARERS,REDACTED,REDACTED
06.03.2019,CHILDREN'S SERVICES,SOUTH OF THE RIVER INVESTMENTS LTD,"2,035.60",TEMPORARY ACCOMMODATION,EXTERNAL AGENCIES AND BODIES,5902347399,1000073638
06.03.2019,COMMISSIONING & CENTRAL,EDGE TRAINING AND CONSULTANCY LTD,925,ASW - PROFESSIONAL DEVELOPMENT,TRAINING,5902347377,1000057249
06.03.2019,COMMISSIONING & CENTRAL,RAHANA HUSSAIN,550,CHILDREN'S MULTI-AGENCY SAFEGUARDING TRA,TRAINING,5902347380,1000052067
06.03.2019,COMMUNITIES,REHAN JAMIL PHOTOGRAPHY,270,MAYORAL SUPPORT,BOOKS & PUBLICATIONS,5902347294,1000057529
06.03.2019,COMMUNITIES,REHAN JAMIL PHOTOGRAPHY,300,MAYORAL SUPPORT,BOOKS & PUBLICATIONS,5902347296,1000057529
06.03.2019,COMMUNITIES,REHAN JAMIL PHOTOGRAPHY,"1,250.00",MAYORAL SUPPORT,BOOKS & PUBLICATIONS,5902347289,1000057529
06.03.2019,COMMUNITIES,MSR HOUSING,700,NO RECOURSE TO PUBLIC FUNDS,ACCOMMODATION CHARGES,5902347342,1000079359
06.03.2019,COMMUNITIES,SOUTHSIDE PARTNERSHIP,"1,274.17",NO RECOURSE TO PUBLIC FUNDS,ACCOMMODATION CHARGES,5902347347,1716624
06.03.2019,COMMUNITIES,FINEFAIR LTD,"1,319.92",NO RECOURSE TO PUBLIC FUNDS,ACCOMMODATION CHARGES,5902347415,1000075570
06.03.2019,COMMUNITIES,STENFORD PROPERTY LTD,"2,016.00",NO RECOURSE TO PUBLIC FUNDS,ACCOMMODATION CHARGES,5902347343,1000074759
06.03.2019,COMMUNITIES,RS REAL ESTATE LTD,"6,069.00",NO RECOURSE TO PUBLIC FUNDS,ACCOMMODATION CHARGES,5902347364,1000072485
06.03.2019,COMMUNITIES,J & M OASIS LTD,"29,424.00",NO RECOURSE TO PUBLIC FUNDS,ACCOMMODATION CHARGES,5902347340,1000072169
06.03.2019,COMMUNITIES,CARE UNLIMITED GROUP LTD,"5,479.32",NO RECOURSE TO PUBLIC FUNDS,RESIDENTIAL CARE,5902347333,11172617
06.03.2019,CUSTOMER EXPERIENCE,ROL SOLUTIONS LTD,"2,220.58",WALWORTH MSSP,HARDWARE,5902347319,1000069512
06.03.2019,CUSTOMER EXPERIENCE HGF,MSR HOUSING,"1,498.00",NIGHTLY TA (NSC),EXTERNAL AGENCIES AND BODIES,5902347373,1000079359
06.03.2019,ENVIRONMENT AND LEISURE,TABARD GARDENS NORTH T&RA,500,CAPITAL PS (LEISURE),CAPITAL GRANTS,5902347365,1000067130
06.03.2019,ENVIRONMENT AND LEISURE,CONWAY AECOM LTD,"8,437.00",CAPITAL PS (LEISURE),CONSTR'N SUB CONTRACT - NON CERTIFICATED,2102929154,3000001595
06.03.2019,ENVIRONMENT AND LEISURE,CONWAY AECOM LTD,"8,812.29",CAPITAL PS (LEISURE),CONSTR'N SUB CONTRACT - NON CERTIFICATED,2102929153,3000001595
06.03.2019,ENVIRONMENT AND LEISURE,CONWAY AECOM LTD,"10,000.00",CAPITAL PS (LEISURE),CONSTR'N SUB CONTRACT - NON CERTIFICATED,2102929161,3000001595
06.03.2019,ENVIRONMENT AND LEISURE,CONWAY AECOM LTD,"40,000.00",CAPITAL PS (LEISURE),CONSTR'N SUB CONTRACT - NON CERTIFICATED,2102929161,3000001595
06.03.2019,ENVIRONMENT AND LEISURE,CONWAY AECOM LTD,"75,737.00",CAPITAL PS (LEISURE),CONSTRUCTION,2102929162,3000001595
06.03.2019,ENVIRONMENT AND LEISURE,LARK LANDSCAPE DESIGN LIMITED,"1,800.00",CAPITAL PS (LEISURE),CONSTRUCTION FEES - ARCHITECT,5902347414,1000035609
06.03.2019,ENVIRONMENT AND LEISURE,LARK LANDSCAPE DESIGN LIMITED,"2,000.00",CAPITAL PS (LEISURE),CONSTRUCTION FEES - ARCHITECT,5902347409,1000035609
06.03.2019,ENVIRONMENT DIRECTORATE,VOLKSWAGEN FINANCIAL SERVICES (UK),287.73,CAR LEASING CTRL A/C,VEHICLE LEASING CHARGES,5902347394,1000079245
06.03.2019,ENVIRONMENT DIRECTORATE,DAWSONGROUP VANS LTD,255.64,COMMERCIAL VEH CTRL A/C,HIRED VEHICLES,5902347285,1000082230
06.03.2019,ENVIRONMENT DIRECTORATE,DAWSONGROUP VANS LTD,255.64,COMMERCIAL VEH CTRL A/C,HIRED VEHICLES,5902347286,1000082230
06.03.2019,ENVIRONMENT DIRECTORATE,DAWSONGROUP VANS LTD,255.64,COMMERCIAL VEH CTRL A/C,HIRED VEHICLES,5902347287,1000082230
06.03.2019,ENVIRONMENT DIRECTORATE,DAWSONGROUP VANS LTD,271.04,COMMERCIAL VEH CTRL A/C,HIRED VEHICLES,5902347276,1000082230
06.03.2019,ENVIRONMENT DIRECTORATE,DAWSONGROUP VANS LTD,271.04,COMMERCIAL VEH CTRL A/C,HIRED VEHICLES,5902347279,1000082230
06.03.2019,ENVIRONMENT DIRECTORATE,DAWSONGROUP VANS LTD,271.04,COMMERCIAL VEH CTRL A/C,HIRED VEHICLES,5902347387,1000082230
06.03.2019,ENVIRONMENT DIRECTORATE,DAWSONGROUP VANS LTD,271.04,COMMERCIAL VEH CTRL A/C,HIRED VEHICLES,5902347391,1000082230
06.03.2019,ENVIRONMENT DIRECTORATE,DAWSONGROUP VANS LTD,271.04,COMMERCIAL VEH CTRL A/C,HIRED VEHICLES,5902347405,1000082230
06.03.2019,ENVIRONMENT DIRECTORATE,DAWSONGROUP VANS LTD,271.04,COMMERCIAL VEH CTRL A/C,HIRED VEHICLES,5902347406,1000082230
06.03.2019,ENVIRONMENT DIRECTORATE,CLOSE BROTHERS VEHICLE HIRE LTD,288,COMMERCIAL VEH CTRL A/C,HIRED VEHICLES,5902347324,1000074394
06.03.2019,ENVIRONMENT DIRECTORATE,CLOSE BROTHERS VEHICLE HIRE LTD,288,COMMERCIAL VEH CTRL A/C,HIRED VEHICLES,5902347325,1000074394
06.03.2019,ENVIRONMENT DIRECTORATE,CLOSE BROTHERS VEHICLE HIRE LTD,288,COMMERCIAL VEH CTRL A/C,HIRED VEHICLES,5902347326,1000074394
06.03.2019,ENVIRONMENT DIRECTORATE,CLOSE BROTHERS VEHICLE HIRE LTD,288,COMMERCIAL VEH CTRL A/C,HIRED VEHICLES,5902347327,1000074394
06.03.2019,ENVIRONMENT DIRECTORATE,CLOSE BROTHERS VEHICLE HIRE LTD,288,COMMERCIAL VEH CTRL A/C,HIRED VEHICLES,5902347411,1000074394
06.03.2019,ENVIRONMENT DIRECTORATE,DAWSONGROUP VANS LTD,292.04,COMMERCIAL VEH CTRL A/C,HIRED VEHICLES,5902347398,1000082230
06.03.2019,ENVIRONMENT DIRECTORATE,DAWSONGROUP VANS LTD,397.84,COMMERCIAL VEH CTRL A/C,HIRED VEHICLES,5902347277,1000082230
06.03.2019,ENVIRONMENT DIRECTORATE,DAWSONGROUP VANS LTD,408.16,COMMERCIAL VEH CTRL A/C,HIRED VEHICLES,5902347280,1000082230
06.03.2019,ENVIRONMENT DIRECTORATE,CLOSE BROTHERS VEHICLE HIRE LTD,449.6,COMMERCIAL VEH CTRL A/C,HIRED VEHICLES,5902347328,1000074394
06.03.2019,ENVIRONMENT DIRECTORATE,SPALDINGS (UK) LTD,586.7,GROUNDS MAINTENANCE - GENERAL,MATERIALS,5902347354,1907384
06.03.2019,ENVIRONMENT DIRECTORATE,BUILDING SOFTWARE LTD,"8,800.00",HIGHWAY MAINTENANCE OVERHEADS,MISCELLANEOUS EXPENSES,5902347362,1000030337
06.03.2019,ENVIRONMENT DIRECTORATE,WALWORTH GARDEN SERVICES,900,MANAGEMENT TEAM,GROUNDS MAINTENANCE,5902347357,1000047083
06.03.2019,ENVIRONMENT DIRECTORATE,CROMWELL POLYTHENE LTD,"1,209.60",STREET CLEANING-GENERAL,MATERIALS,5902347358,1000021159
06.03.2019,ENVIRONMENT DIRECTORATE,ELLIOT ENVIRONMENTAL LTD,400,STREET CLEANING-GENERAL,OTHER CONTRACTORS,5902347351,1000047392
06.03.2019,F & C S EXCLUDING CORPORATE BUDGETS,LLG LEGAL TRAINING,449,LEGAL SVCES MANAGEMENT,TRAINING,5902347312,1000072374
06.03.2019,F & C S EXCLUDING CORPORATE BUDGETS,PROPERTY MEDIATION LTD,"1,487.50",LITIGATION,LEGAL FEES & COURT COSTS,5902347313,1000082286
06.03.2019,HOUSING GENERAL FUND,L H BRIDGE LTD,"7,550.00",CAPITAL PS (HOUSING GF),CAPITAL GRANTS,5902347370,1000056928
06.03.2019,HOUSING GENERAL FUND,HIGHER ELEVATION LTD,"9,827.76",CAPITAL PS (HOUSING GF),CAPITAL GRANTS,5902347336,1000067328
06.03.2019,HOUSING GENERAL FUND,STONEGROVE LIMITED,550,CAPITAL PS (REGEN),CONSTRUCTION,2102929160,3000001525
06.03.2019,HOUSING HRA,WATERSLADE LTD,"3,600.00",CAPITAL PS (HRA),CONSTRUCTION FEES  - EXTERNAL,5902347274,1000075795
06.03.2019,HOUSING HRA,PITMAN TOZER ARCHITECTS LTD,299.03,CAPITAL PS (HRA),CONSTRUCTION FEES - ARCHITECT,5902347331,1000081590
06.03.2019,HOUSING STRATEGY AND OPTIONS,FRESHVIEW ESTATES LTD,995.1,HOMELESS PROJECTS,GRANTS,5902346303,1000081189
06.03.2019,HOUSING STRATEGY AND OPTIONS,FRESHVIEW ESTATES LTD,995.1,HOMELESS PROJECTS,GRANTS,5902346318,1000081189
06.03.2019,HOUSING STRATEGY AND OPTIONS,INSTITUTE OF LEADERSHIP,498,HOMELESSNESS TRAINING ACADEMY,TRAINING,5902347349,1000070935
06.03.2019,LEISURE DIRECTORATE,QUADRON SERVICES LIMITED,"-7,804.29",BURGESS SPORTS CENTRE,PROFESSIONAL FEES,5902347556,1000066528
06.03.2019,LEISURE DIRECTORATE,QUADRON SERVICES LIMITED,"7,804.29",BURGESS SPORTS CENTRE,PROFESSIONAL FEES,5902347552,1000066528
06.03.2019,LEISURE DIRECTORATE,HONOR OAK GROUP PRACTICE,"1,644.50",CREMATORIUM,PROFESSIONAL FEES,5902347416,1000047167
06.03.2019,LEISURE DIRECTORATE,SIMPLY HIRE LTD,780,FACILITIES MANAGEMENT,BUILDING R&M,5902347293,1000018354
06.03.2019,LEISURE DIRECTORATE,SIMPLY HIRE LTD,938,FACILITIES MANAGEMENT,BUILDING R&M,5902347295,1000018354
06.03.2019,LEISURE DIRECTORATE,F G LIBRARY PRODUCTS LTD,315,GROVE VALE LIBRARY,FURNITURE PURCHASE & REPAIR,5902347323,1000068224
06.03.2019,LEISURE DIRECTORATE,CONWAY AECOM LTD,"16,604.59",SOUTHWARK AREA TEAM,OTHER R&M,2102929163,3000001595
06.03.2019,PUBLIC HEALTH,MONTAGU EVANS LLP,"7,750.00",MASTER PLAN-H/WAY & TRANS INTERCHANGE,PROFESSIONAL FEES,5902347335,1000073283
06.03.2019,RESIDENT SERVICES,PRB ESTATES LTD,"43,683.95",TA HOSTELS,BUILDING R&M,2102929155,3000001691
07.03.2019,ADULT SOCIAL CARE,CYGNET LODGE LEWISHAM,500,APPOINTEESHIPS,OTHER PAYMENTS FOR CLIENTS,2102929193,1000062726
07.03.2019,ADULT SOCIAL CARE,EDF ENERGY PLC,967.41,APPOINTEESHIPS,OTHER PAYMENTS FOR CLIENTS,2102929196,1008746
07.03.2019,ADULT SOCIAL CARE,REDACTED PERSONAL DATA,400,APPOINTEESHIPS,OTHER PAYMENTS FOR CLIENTS,REDACTED,REDACTED
07.03.2019,ADULT SOCIAL CARE,HYDE HOUSING ASSOCIATION LTD,986.91,EXTRA CARE CONTRACT,RENTS,5902347593,1000013980
07.03.2019,ADULT SOCIAL CARE,HYDE HOUSING ASSOCIATION LTD,986.91,EXTRA CARE CONTRACT,RENTS,5902347594,1000013980
07.03.2019,ADULT SOCIAL CARE,HYDE HOUSING ASSOCIATION LTD,986.92,EXTRA CARE CONTRACT,RENTS,5902347591,1000013980
07.03.2019,ADULT SOCIAL CARE,HYDE HOUSING ASSOCIATION LTD,986.92,EXTRA CARE CONTRACT,RENTS,5902347592,1000013980
07.03.2019,ADULT SOCIAL CARE,BEDE CAFE PROJECT,430,LD LTS 18-64,DAYCARE,2102929462,1553877
07.03.2019,ADULT SOCIAL CARE,SURREY DOCKS FARM PROVIDENT SOCIETY,480,LD LTS 18-64,DAYCARE,2102929488,1000000958
07.03.2019,ADULT SOCIAL CARE,SURREY DOCKS FARM PROVIDENT SOCIETY,487.5,LD LTS 18-64,DAYCARE,2102929484,1000000958
07.03.2019,ADULT SOCIAL CARE,BEDE CAFE PROJECT,490,LD LTS 18-64,DAYCARE,2102929464,1553877
07.03.2019,ADULT SOCIAL CARE,BEDE CAFE PROJECT,650,LD LTS 18-64,DAYCARE,2102929466,1553877
07.03.2019,ADULT SOCIAL CARE,SURREY DOCKS FARM PROVIDENT SOCIETY,720,LD LTS 18-64,DAYCARE,2102929482,1000000958
07.03.2019,ADULT SOCIAL CARE,KENT HARRIER PROPERTY MANAGEMENT,"1,486.00",LD LTS 18-64,EXTERNAL AGENCIES AND BODIES,2102929412,1000078130
07.03.2019,ADULT SOCIAL CARE,KENT HARRIER PROPERTY MANAGEMENT,"1,580.00",LD LTS 18-64,EXTERNAL AGENCIES AND BODIES,2102929422,1000078130
07.03.2019,ADULT SOCIAL CARE,SWK DISABLEMENT ASSN,"2,122.56",LD LTS 18-64,HOMECARE - C&V,2102929507,1000011698
07.03.2019,ADULT SOCIAL CARE,CONTACT PROFESSIONALS,465,LD LTS 18-64,SUPPORTED LIVING,2102929416,1000057263
07.03.2019,ADULT SOCIAL CARE,SWK DISABLEMENT ASSN,678.93,LD LTS 18-64,SUPPORTED LIVING,2102929511,1000011698
07.03.2019,ADULT SOCIAL CARE,INSPIRE SUPPORT WORKERS LTD,816,LD LTS 18-64,SUPPORTED LIVING,2102929208,1000080725
07.03.2019,ADULT SOCIAL CARE,SWK DISABLEMENT ASSN,"1,058.96",LD LTS 18-64,SUPPORTED LIVING,2102929529,1000011698
07.03.2019,ADULT SOCIAL CARE,REDACTED PERSONAL DATA,"3,682.28",LD LTS 18-64,SUPPORTED LIVING,REDACTED,REDACTED
07.03.2019,ADULT SOCIAL CARE,SWK DISABLEMENT ASSN,"1,434.72",LD LTS 65+,SUPPORTED LIVING,2102929531,1000011698
07.03.2019,ADULT SOCIAL CARE,BEDE CAFE PROJECT,280,MH LTS 18-64,DAYCARE,2102929468,1553877
07.03.2019,ADULT SOCIAL CARE,BEDE CAFE PROJECT,280,MH LTS 18-64,DAYCARE,2102929470,1553877
07.03.2019,ADULT SOCIAL CARE,SWK DISABLEMENT ASSN,304,MH LTS 18-64,HOMECARE - SPOT,2102929505,1000011698
07.03.2019,ADULT SOCIAL CARE,SWK DISABLEMENT ASSN,350.14,MH LTS 18-64,HOMECARE - SPOT,2102929519,1000011698
07.03.2019,ADULT SOCIAL CARE,SWK DISABLEMENT ASSN,547.2,MH LTS 18-64,HOMECARE - SPOT,2102929502,1000011698
07.03.2019,ADULT SOCIAL CARE,SWK DISABLEMENT ASSN,273.28,MH LTS 18-64,SUPPORTED LIVING,2102929498,1000011698
07.03.2019,ADULT SOCIAL CARE,SWK DISABLEMENT ASSN,273.28,MH LTS 18-64,SUPPORTED LIVING,2102929508,1000011698
07.03.2019,ADULT SOCIAL CARE,SWK DISABLEMENT ASSN,273.28,MH LTS 18-64,SUPPORTED LIVING,2102929528,1000011698
07.03.2019,ADULT SOCIAL CARE,SWK DISABLEMENT ASSN,546.56,MH LTS 18-64,SUPPORTED LIVING,2102929496,1000011698
07.03.2019,ADULT SOCIAL CARE,SWK DISABLEMENT ASSN,"1,263.92",MH LTS 18-64,SUPPORTED LIVING,2102929534,1000011698
07.03.2019,ADULT SOCIAL CARE,PHOENIX HEALTHCARE & RECRUITMENT,391.36,PHY LTS 18-64,DAYCARE,2102929418,1000065636
07.03.2019,ADULT SOCIAL CARE,PHOENIX HEALTHCARE & RECRUITMENT,391.36,PHY LTS 18-64,DAYCARE,2102929424,1000065636
07.03.2019,ADULT SOCIAL CARE,INSPIRE SUPPORT WORKERS LTD,332,PHY LTS 18-64,HOMECARE - SPOT,2102929210,1000080725
07.03.2019,ADULT SOCIAL CARE,SWK DISABLEMENT ASSN,"1,026.00",PHY LTS 18-64,HOMECARE - SPOT,2102929530,1000011698
07.03.2019,ADULT SOCIAL CARE,SWK DISABLEMENT ASSN,"1,535.20",PHY LTS 18-64,HOMECARE - SPOT,2102929521,1000011698
07.03.2019,ADULT SOCIAL CARE,SWK DISABLEMENT ASSN,293.04,PHY LTS 65+,HOMECARE - SPOT,2102929527,1000011698
07.03.2019,ADULT SOCIAL CARE,SWK DISABLEMENT ASSN,792,PHY LTS 65+,HOMECARE - SPOT,2102929504,1000011698
07.03.2019,ADULT SOCIAL CARE,SWK DISABLEMENT ASSN,"2,078.70",PHY LTS 65+,HOMECARE - SPOT,2102929523,1000011698
07.03.2019,ADULT SOCIAL CARE,SWK DISABLEMENT ASSN,"2,492.80",PHY LTS 65+,HOMECARE - SPOT,2102929513,1000011698
07.03.2019,ADULT SOCIAL CARE,YOUTH GRACES (UK) LTD,289.72,PHY STS 65+,HOMECARE - IC,2102929474,1000072524
07.03.2019,ADULT SOCIAL CARE,SWK DISABLEMENT ASSN,295.2,PHY STS 65+,HOMECARE - IC,2102929514,1000011698
07.03.2019,ADULT SOCIAL CARE,RADHA CONSULTING LTD,529.8,SAFEGUARDING TEAM,OTHER CONTRACTORS,5902346642,1000061154
07.03.2019,ADULT SOCIAL CARE,SURREY DOCKS FARM PROVIDENT SOCIETY,500,SOCIAL ISOLATION,DAYCARE,2102929486,1000000958
07.03.2019,ADULT SOCIAL CARE,CONTACT PROFESSIONALS,304,SPECIALIST CARE,SECTION 17 PAYMENTS TO AGENCIES/CARERS,2102929288,1000057263
07.03.2019,ADULT SOCIAL CARE,CONTACT PROFESSIONALS,357.77,SPECIALIST CARE,SECTION 17 PAYMENTS TO AGENCIES/CARERS,2102929278,1000057263
07.03.2019,ADULT SOCIAL CARE,INTERSERVE HEALTHCARE,636.2,SPECIALIST CARE,SECTION 17 PAYMENTS TO AGENCIES/CARERS,2102929280,1000049612
07.03.2019,ADULT SOCIAL CARE,KENWARD TRUST,"1,249.29",SUB LTS 18-64,PLACEMENTS - REHAB,2102929440,1811153
07.03.2019,ADULT SOCIAL CARE,KENWARD TRUST,"1,249.29",SUB LTS 18-64,PLACEMENTS - REHAB,2102929448,1811153
07.03.2019,ADULT SOCIAL CARE,STREETSCENE ADDICTION RECOVERY,"3,180.00",SUB LTS 18-64,PLACEMENTS - REHAB,2102929438,11221787
07.03.2019,ADULT SOCIAL CARE,STREETSCENE ADDICTION RECOVERY,"1,104.00",SUB LTS 18-64,RESIDENTIAL CARE,2102929430,11221787
07.03.2019,ADULT SOCIAL CARE,MEDACS HOMECARE,"6,238.20",TRANSITIONS 14-18YRS,SECTION 17 PAYMENTS TO AGENCIES/CARERS,2102929539,11287415
07.03.2019,CAMBERWELL COMMUNITY COUNCIL,BESSEMER GRANGE T&RA,"3,000.00",GET TO KNOW YOUR NEIGHBOURS COMMUNITY FAIR,GRANT,CHEQUE PAYMENT,CHEQUE PAYMENT
07.03.2019,CENTRAL FUNCTIONS,STANBURY BUILDING SERVICES LTD,395,COMMERCIAL PROPERTIES,BUILDING R&M,2102929579,3000001967
07.03.2019,CENTRAL FUNCTIONS,STANBURY BUILDING SERVICES LTD,695,COMMERCIAL PROPERTIES,BUILDING R&M,2102929578,3000001967
07.03.2019,CENTRAL FUNCTIONS,STANBURY BUILDING SERVICES LTD,795,COMMERCIAL PROPERTIES,BUILDING R&M,2102929577,3000001967
07.03.2019,CENTRAL FUNCTIONS,CAPITA BUSINESS SERVICES LTD,"25,154.21",EXCHEQUER RENTS,OTHER CONTRACTORS,5902347550,1000006291
07.03.2019,CENTRAL FUNCTIONS,EDF ENERGY CUST FIELD SERVICES,360,HEATING ACCOUNT,ELECTRICITY,5902347582,1000025781
07.03.2019,CENTRAL FUNCTIONS,NPOWER LTD,"1,097.95",HEATING ACCOUNT,ELECTRICITY,5902347595,1000078994
07.03.2019,CENTRAL FUNCTIONS,NPOWER LTD,"2,200.84",HEATING ACCOUNT,ELECTRICITY,5902347595,1000078994
07.03.2019,CENTRAL FUNCTIONS,NPOWER LTD,"4,199.70",HEATING ACCOUNT,ELECTRICITY,5902347597,1000078994
07.03.2019,CENTRAL FUNCTIONS,NPOWER LTD,"5,856.26",HEATING ACCOUNT,ELECTRICITY,5902347597,1000078994
07.03.2019,CENTRAL FUNCTIONS,NPOWER LTD,"8,063.39",HEATING ACCOUNT,ELECTRICITY,5902347597,1000078994
07.03.2019,CENTRAL FUNCTIONS,TANFIELD CHAMBERS,500,HOME OWNERSHIP,LEGAL FEES & COURT COSTS,5902347484,1000078320
07.03.2019,CENTRAL FUNCTIONS,MERLIN DMS LTD,582.41,HOME OWNERSHIP,OFFICE EXPENSES,5902347486,1000062300
07.03.2019,CENTRAL FUNCTIONS,MJE PROPERTIES LTD,538.09,HOME OWNERSHIP INCOME,HOUSING RESIDENTIAL RENTS,2102928765,1000069991
07.03.2019,CHIEF EXECUTIVE,ADAMS AND SUTHERLAND,"3,000.00",CAPITAL PS (REGEN),CONSTRUCTION FEES,5902347581,1000066083
07.03.2019,CHIEF EXECUTIVE,ADAMS AND SUTHERLAND,"4,475.00",CAPITAL PS (REGEN),CONSTRUCTION FEES,5902347580,1000066083
07.03.2019,CHIEF EXECUTIVE,JAN KATTEIN ARCHITECTS LTD,"8,113.71",CAPITAL PS (REGEN),CONSTRUCTION FEES,5902347575,1000070627
07.03.2019,CHIEF EXECUTIVE,PECKHAM PALMS LTD,"50,458.35",CAPITAL PS (REGEN),CONSTRUCTION FEES,5902347587,1000081205
07.03.2019,CHIEF EXECUTIVE,PECKHAM PALMS LTD,"52,392.50",CAPITAL PS (REGEN),CONSTRUCTION FEES,5902347588,1000081205
07.03.2019,CHIEF EXECUTIVE,WERNICK EVENT HIRE LTD,"54,279.90",CAPITAL PS (STRAT SERV),CONSTRUCTION FEES - ARCHITECT,5902347465,1000073942
07.03.2019,CHILDREN AND ADULT,STONEGROVE LIMITED,"22,077.66",CAPITAL PS (EDUCATION),CONSTRUCTION MAIN CONTRACT -CERTIFICATED,2102929582,3000001525
07.03.2019,CHILDREN'S SERVICES,NATIONAL FOSTERING AGENCY,"3,060.12",AGENCY FOSTERING,EXTERNAL AGENCIES AND BODIES,2102929560,1000038868
07.03.2019,CHILDREN'S SERVICES,CORE ASSETS FOSTERING LTD,"3,211.60",AGENCY FOSTERING,EXTERNAL AGENCIES AND BODIES,2102929538,11288002
07.03.2019,CHILDREN'S SERVICES,DANDEVELOPMENT LONDON LTD,580,CHILDRENS CENTRE,TRAINING,5902347467,1000079390
07.03.2019,CHILDREN'S SERVICES,CROYDON COLLEGE,"4,635.31",PFA TEAM SOUTHWARK 9 PLUS,"SCHOOLS CAPITATION, STANDARDS FUND",2102929190,11300222
07.03.2019,CHILDREN'S SERVICES,TUKE SCHOOL,"1,517.71",PFA TEAM SOUTHWARK 9 PLUS,"SCHOOLS CAPITATION, STANDARDS FUND",2102929191,5001000097
07.03.2019,CHILDREN'S SERVICES,TUKE SCHOOL,"17,515.29",PFA TEAM SOUTHWARK 9 PLUS,"SCHOOLS CAPITATION, STANDARDS FUND",2102929192,5001000097
07.03.2019,CHILDREN'S SERVICES,ST CHRISTOPHER FELLOWSHIP,"-2,520.00",RESIDENTIAL,EXTERNAL AGENCIES AND BODIES,2102929214,1000045269
07.03.2019,CHILDREN'S SERVICES,CAMBIAN CHILDCARE LTD,"6,440.00",RESIDENTIAL,EXTERNAL AGENCIES AND BODIES,2102929220,1000075351
07.03.2019,CHILDREN'S SERVICES,PLUS ONE LTD,"7,400.00",RESIDENTIAL,EXTERNAL AGENCIES AND BODIES,2102929232,1000013874
07.03.2019,CHILDREN'S SERVICES,ESLAND SOUTH LTD,"17,000.00",RESIDENTIAL,EXTERNAL AGENCIES AND BODIES,2102929222,1000074184
07.03.2019,CHILDREN'S SERVICES,ST CHRISTOPHER FELLOWSHIP,"18,375.00",RESIDENTIAL,EXTERNAL AGENCIES AND BODIES,2102929230,1000045269
07.03.2019,CHILDREN'S SERVICES,KEYS CHILDCARE LTD,800,RESIDENTIAL,OTHER PAYMENTS FOR CLIENTS,2102929240,1000081582
07.03.2019,CHILDREN'S SERVICES,PEBBLES CARE LTD,"10,800.00",RESIDENTIAL,RESIDENTIAL CARE,2102929252,1000081564
07.03.2019,CHILDREN'S SERVICES,THE DRIVE CARE HOMES LTD,"11,901.12",RESIDENTIAL,RESIDENTIAL CARE,2102929236,1000003889
07.03.2019,CHILDREN'S SERVICES,ST CHRISTOPHER FELLOWSHIP,"13,599.88",RESIDENTIAL,RESIDENTIAL CARE,2102929212,1000045269
07.03.2019,CHILDREN'S SERVICES,CREATING CARE CHOICES LTD,"14,000.00",RESIDENTIAL,RESIDENTIAL CARE,2102929244,1000076738
07.03.2019,CHILDREN'S SERVICES,HILLCREST CHILDRENS SERVICES LTD,"14,840.00",RESIDENTIAL,RESIDENTIAL CARE,2102929224,1000077489
07.03.2019,CHILDREN'S SERVICES,KEYS CHILDCARE LTD,"15,000.00",RESIDENTIAL,RESIDENTIAL CARE,2102929238,1000081582
07.03.2019,CHILDREN'S SERVICES,CASTLE HOMES LIMITED,"15,255.04",RESIDENTIAL,RESIDENTIAL CARE,2102929246,1000019388
07.03.2019,CHILDREN'S SERVICES,FOOTSTEPS CARE LTD,"16,006.96",RESIDENTIAL,RESIDENTIAL CARE,2102929248,1000045464
07.03.2019,CHILDREN'S SERVICES,ST CHRISTOPHER FELLOWSHIP,"18,000.08",RESIDENTIAL,RESIDENTIAL CARE,2102929228,1000045269
07.03.2019,CHILDREN'S SERVICES,THE AMICUS COMMUNITY (ARUNDEL) LTD,"18,579.96",RESIDENTIAL,RESIDENTIAL CARE,2102929234,1000079012
07.03.2019,CHILDREN'S SERVICES,CAMBIAN CHILDCARE LTD,"19,199.88",RESIDENTIAL,RESIDENTIAL CARE,2102929216,1000075351
07.03.2019,CHILDREN'S SERVICES,KEYS SPECIALIST RESIDENTIAL CHILDREN'S SERVICES,"19,800.00",RESIDENTIAL,RESIDENTIAL CARE,2102929242,1000081606
07.03.2019,CHILDREN'S SERVICES,CHILDHOOD FIRST,"20,052.00",RESIDENTIAL,RESIDENTIAL CARE,2102929226,1000076330
07.03.2019,CHILDREN'S SERVICES,STONELAKE LONDON LTD,"22,176.00",RESIDENTIAL,RESIDENTIAL CARE,2102929218,1000080075
07.03.2019,CHILDREN'S SERVICES,INMIND CHILDRENS SERVICES LTD,"29,800.12",RESIDENTIAL,RESIDENTIAL CARE,2102929250,1000078280
07.03.2019,CHILDREN'S SERVICES,CONTACT PROFESSIONALS,456,RESOURCE PANEL,OTHER PAYMENTS FOR CLIENTS,2102929541,1000057263
07.03.2019,CHILDREN'S SERVICES,CONTACT PROFESSIONALS,532,RESOURCE PANEL,OTHER PAYMENTS FOR CLIENTS,2102929540,1000057263
07.03.2019,CHILDREN'S SERVICES,CONTACT PROFESSIONALS,532,RESOURCE PANEL,OTHER PAYMENTS FOR CLIENTS,2102929543,1000057263
07.03.2019,CHILDREN'S SERVICES,CONTACT PROFESSIONALS,360,S & FAM SUPP - PRAC GRP B SET 17-19,OTHER PAYMENTS FOR CLIENTS,2102929551,1000057263
07.03.2019,CHILDREN'S SERVICES,CONTACT PROFESSIONALS,360,S & FAM SUPP - PRAC GRP B SET 17-19,OTHER PAYMENTS FOR CLIENTS,2102929554,1000057263
07.03.2019,CHILDREN'S SERVICES,CONTACT PROFESSIONALS,360,S & FAM SUPP - PRAC GRP B SET 17-19,OTHER PAYMENTS FOR CLIENTS,2102929555,1000057263
07.03.2019,CHILDREN'S SERVICES,CONTACT PROFESSIONALS,375,S & FAM SUPP - PRAC GRP B SET 17-19,OTHER PAYMENTS FOR CLIENTS,2102929546,1000057263
07.03.2019,CHILDREN'S SERVICES,CONTACT PROFESSIONALS,600,S & FAM SUPP - PRAC GRP B SET 17-19,OTHER PAYMENTS FOR CLIENTS,2102929556,1000057263
07.03.2019,CHILDREN'S SERVICES,PURPLE PEBBLES(CHILD CARE) SERVICES,300,S24 CLA,EXTERNAL AGENCIES AND BODIES,2102929314,1000070705
07.03.2019,CHILDREN'S SERVICES,PURPLE PEBBLES(CHILD CARE) SERVICES,300,S24 CLA,EXTERNAL AGENCIES AND BODIES,2102929320,1000070705
07.03.2019,CHILDREN'S SERVICES,PURPLE PEBBLES(CHILD CARE) SERVICES,300,S24 CLA,EXTERNAL AGENCIES AND BODIES,2102929326,1000070705
07.03.2019,CHILDREN'S SERVICES,PURPLE PEBBLES(CHILD CARE) SERVICES,300,S24 CLA,EXTERNAL AGENCIES AND BODIES,2102929328,1000070705
07.03.2019,CHILDREN'S SERVICES,PURPLE PEBBLES(CHILD CARE) SERVICES,300,S24 CLA,EXTERNAL AGENCIES AND BODIES,2102929374,1000070705
07.03.2019,CHILDREN'S SERVICES,PURPLE PEBBLES(CHILD CARE) SERVICES,400,S24 CLA,EXTERNAL AGENCIES AND BODIES,2102929348,1000070705
07.03.2019,CHILDREN'S SERVICES,PURPLE PEBBLES(CHILD CARE) SERVICES,471.43,S24 CLA,EXTERNAL AGENCIES AND BODIES,2102929318,1000070705
07.03.2019,CHILDREN'S SERVICES,PURPLE PEBBLES(CHILD CARE) SERVICES,500,S24 CLA,EXTERNAL AGENCIES AND BODIES,2102929300,1000070705
07.03.2019,CHILDREN'S SERVICES,SP HOMES LTD,830.67,S24 CLA,EXTERNAL AGENCIES AND BODIES,2102929360,1000080326
07.03.2019,CHILDREN'S SERVICES,JUST ONE RECRUITMENT AND TRAINING LTD,856,S24 CLA,EXTERNAL AGENCIES AND BODIES,2102929570,1000081607
07.03.2019,CHILDREN'S SERVICES,SP HOMES LTD,919.77,S24 CLA,EXTERNAL AGENCIES AND BODIES,2102929358,1000080326
07.03.2019,CHILDREN'S SERVICES,PURPLE PEBBLES(CHILD CARE) SERVICES,947.8,S24 CLA,EXTERNAL AGENCIES AND BODIES,2102929304,1000070705
07.03.2019,CHILDREN'S SERVICES,PURPLE PEBBLES(CHILD CARE) SERVICES,"1,100.00",S24 CLA,EXTERNAL AGENCIES AND BODIES,2102929340,1000070705
07.03.2019,CHILDREN'S SERVICES,PURPLE PEBBLES(CHILD CARE) SERVICES,"1,200.00",S24 CLA,EXTERNAL AGENCIES AND BODIES,2102929330,1000070705
07.03.2019,CHILDREN'S SERVICES,PURPLE PEBBLES(CHILD CARE) SERVICES,"1,200.00",S24 CLA,EXTERNAL AGENCIES AND BODIES,2102929344,1000070705
07.03.2019,CHILDREN'S SERVICES,PURPLE PEBBLES(CHILD CARE) SERVICES,"1,200.00",S24 CLA,EXTERNAL AGENCIES AND BODIES,2102929352,1000070705
07.03.2019,CHILDREN'S SERVICES,PURPLE PEBBLES(CHILD CARE) SERVICES,"1,200.00",S24 CLA,EXTERNAL AGENCIES AND BODIES,2102929372,1000070705
07.03.2019,CHILDREN'S SERVICES,PURPLE PEBBLES(CHILD CARE) SERVICES,"1,240.00",S24 CLA,EXTERNAL AGENCIES AND BODIES,2102929370,1000070705
07.03.2019,CHILDREN'S SERVICES,PURPLE PEBBLES(CHILD CARE) SERVICES,"1,300.00",S24 CLA,EXTERNAL AGENCIES AND BODIES,2102929298,1000070705
07.03.2019,CHILDREN'S SERVICES,FINEFAIR LTD,"1,524.04",S24 CLA,EXTERNAL AGENCIES AND BODIES,2102929567,1000075570
07.03.2019,CHILDREN'S SERVICES,FINEFAIR LTD,"1,524.04",S24 CLA,EXTERNAL AGENCIES AND BODIES,2102929573,1000075570
07.03.2019,CHILDREN'S SERVICES,FAMILY FOSTERING LTD,"1,599.92",S24 CLA,EXTERNAL AGENCIES AND BODIES,2102929312,1000075179
07.03.2019,CHILDREN'S SERVICES,HEARTWOOD OUTREACH SERVICES LTD,"1,704.92",S24 CLA,EXTERNAL AGENCIES AND BODIES,2102929565,1000075021
07.03.2019,CHILDREN'S SERVICES,IDEAL CARE SOLUTIONS LTD,"1,760.00",S24 CLA,EXTERNAL AGENCIES AND BODIES,2102929575,1000080804
07.03.2019,CHILDREN'S SERVICES,THE ARTEMIS TEAM LTD,"2,130.00",S24 CLA,EXTERNAL AGENCIES AND BODIES,2102929408,1000057937
07.03.2019,CHILDREN'S SERVICES,HEARTWOOD OUTREACH SERVICES LTD,"2,366.56",S24 CLA,EXTERNAL AGENCIES AND BODIES,2102929566,1000075021
07.03.2019,CHILDREN'S SERVICES,CARE R US LTD,"2,372.00",S24 CLA,EXTERNAL AGENCIES AND BODIES,2102929571,1000053515
07.03.2019,CHILDREN'S SERVICES,FINEFAIR LTD,"2,539.88",S24 CLA,EXTERNAL AGENCIES AND BODIES,2102929574,1000075570
07.03.2019,CHILDREN'S SERVICES,MY LIFE SEMI-INDEPENDENT PROJECT LTD,"2,720.00",S24 CLA,EXTERNAL AGENCIES AND BODIES,2102929306,1000075301
07.03.2019,CHILDREN'S SERVICES,THE SALVATION ARMY,"8,618.22",S24 CLA,EXTERNAL AGENCIES AND BODIES,2102929362,1000016253
07.03.2019,CHILDREN'S SERVICES,FRESH START CARE SOLUTIONS LTD,"12,568.40",S24 CLA,EXTERNAL AGENCIES AND BODIES,2102929572,1000070537
07.03.2019,CHILDREN'S SERVICES,BATH SPA UNIVERSITY,"9,250.00",SCHOLARSHIPS AND WRL,EXTERNAL AGENCIES AND BODIES,5902347436,1000070997
07.03.2019,CHILDREN'S SERVICES,PURPLE PEBBLES(CHILD CARE) SERVICES,-715,SEMI INDEPENDENT,EXTERNAL AGENCIES AND BODIES,2102929366,1000070705
07.03.2019,CHILDREN'S SERVICES,PURPLE PEBBLES(CHILD CARE) SERVICES,-365.19,SEMI INDEPENDENT,EXTERNAL AGENCIES AND BODIES,2102929346,1000070705
07.03.2019,CHILDREN'S SERVICES,PURPLE PEBBLES(CHILD CARE) SERVICES,300,SEMI INDEPENDENT,EXTERNAL AGENCIES AND BODIES,2102929368,1000070705
07.03.2019,CHILDREN'S SERVICES,PURPLE PEBBLES(CHILD CARE) SERVICES,350,SEMI INDEPENDENT,EXTERNAL AGENCIES AND BODIES,2102929396,1000070705
07.03.2019,CHILDREN'S SERVICES,IASPIRE CARE SERVICES LTD,428.58,SEMI INDEPENDENT,EXTERNAL AGENCIES AND BODIES,2102929404,1000081500
07.03.2019,CHILDREN'S SERVICES,PURPLE PEBBLES(CHILD CARE) SERVICES,600,SEMI INDEPENDENT,EXTERNAL AGENCIES AND BODIES,2102929400,1000070705
07.03.2019,CHILDREN'S SERVICES,PURPLE PEBBLES(CHILD CARE) SERVICES,754.29,SEMI INDEPENDENT,EXTERNAL AGENCIES AND BODIES,2102929384,1000070705
07.03.2019,CHILDREN'S SERVICES,PURPLE PEBBLES(CHILD CARE) SERVICES,"1,200.00",SEMI INDEPENDENT,EXTERNAL AGENCIES AND BODIES,2102929308,1000070705
07.03.2019,CHILDREN'S SERVICES,PURPLE PEBBLES(CHILD CARE) SERVICES,"1,300.00",SEMI INDEPENDENT,EXTERNAL AGENCIES AND BODIES,2102929294,1000070705
07.03.2019,CHILDREN'S SERVICES,PURPLE PEBBLES(CHILD CARE) SERVICES,"1,400.00",SEMI INDEPENDENT,EXTERNAL AGENCIES AND BODIES,2102929356,1000070705
07.03.2019,CHILDREN'S SERVICES,HOLISTIC SUPPORTED LIVING LTD,"1,706.72",SEMI INDEPENDENT,EXTERNAL AGENCIES AND BODIES,2102929390,1000082130
07.03.2019,CHILDREN'S SERVICES,SYDNEY CARE LTD,"2,139.28",SEMI INDEPENDENT,EXTERNAL AGENCIES AND BODIES,2102929394,1000081598
07.03.2019,CHILDREN'S SERVICES,FINEFAIR LTD,"2,680.16",SEMI INDEPENDENT,EXTERNAL AGENCIES AND BODIES,2102929569,1000075570
07.03.2019,CHILDREN'S SERVICES,SILVER BIRCH CARE LTD,"3,300.00",SEMI INDEPENDENT,EXTERNAL AGENCIES AND BODIES,2102929561,1000076525
07.03.2019,CHILDREN'S SERVICES,CARE R US LTD,"4,200.00",SEMI INDEPENDENT,EXTERNAL AGENCIES AND BODIES,2102929562,1000053515
07.03.2019,CHILDREN'S SERVICES,PATHWAY LTD,"4,350.00",SEMI INDEPENDENT,EXTERNAL AGENCIES AND BODIES,2102929378,1000080564
07.03.2019,CHILDREN'S SERVICES,PATHWAY LTD,"4,440.00",SEMI INDEPENDENT,EXTERNAL AGENCIES AND BODIES,2102929388,1000080564
07.03.2019,CHILDREN'S SERVICES,HOLIBROOK HOUSE LTD,"7,140.00",SEMI INDEPENDENT,EXTERNAL AGENCIES AND BODIES,2102929563,1000067873
07.03.2019,CHILDREN'S SERVICES,SPORTFIT SHORT BREAK CARE LTD,"9,240.00",SEMI INDEPENDENT,EXTERNAL AGENCIES AND BODIES,2102929386,1000078113
07.03.2019,CHILDREN'S SERVICES,COMMUNITY BUILDING MANAGEMENT,"39,330.00",SEMI INDEPENDENT,EXTERNAL AGENCIES AND BODIES,2102929398,1000078932
07.03.2019,CHILDREN'S SERVICES,RELA SUPPORT SERVICES LTD,"3,934.65",SEMI INDEPENDENT,OTHER PAYMENTS FOR CLIENTS,2102929410,1000073128
07.03.2019,CHILDREN'S SERVICES,INTEGRATED SERVICES PROGRAMME,"2,178.40",STAYING PUT,EXTERNAL AGENCIES AND BODIES,2102929322,1642068
07.03.2019,CHILDREN'S SERVICES,CHARTWELLS,"1,298.00",SUMMERHOUSE - EX416 - 5015232,CATERING MATERIALS & SUPPLIES,5902347579,1000010625
07.03.2019,CHILDREN'S SERVICES,NPOWER LTD,475.21,SUMMERHOUSE - EX416 - 5015232,ELECTRICITY,5902347583,1000078994
07.03.2019,CHILDREN'S SERVICES,PURPLE PEBBLES(CHILD CARE) SERVICES,300,UASC SECTION 24,EXTERNAL AGENCIES AND BODIES,2102929296,1000070705
07.03.2019,CHILDREN'S SERVICES,PURPLE PEBBLES(CHILD CARE) SERVICES,300,UASC SECTION 24,EXTERNAL AGENCIES AND BODIES,2102929342,1000070705
07.03.2019,CHILDREN'S SERVICES,PURPLE PEBBLES(CHILD CARE) SERVICES,600,UASC SECTION 24,EXTERNAL AGENCIES AND BODIES,2102929338,1000070705
07.03.2019,CHILDREN'S SERVICES,PURPLE PEBBLES(CHILD CARE) SERVICES,780,UASC SECTION 24,EXTERNAL AGENCIES AND BODIES,2102929334,1000070705
07.03.2019,CHILDREN'S SERVICES,PURPLE PEBBLES(CHILD CARE) SERVICES,"1,160.00",UASC SECTION 24,EXTERNAL AGENCIES AND BODIES,2102929350,1000070705
07.03.2019,CHILDREN'S SERVICES,PURPLE PEBBLES(CHILD CARE) SERVICES,"1,200.00",UASC SECTION 24,EXTERNAL AGENCIES AND BODIES,2102929310,1000070705
07.03.2019,CHILDREN'S SERVICES,THE SALVATION ARMY,"1,301.20",UASC SECTION 24,EXTERNAL AGENCIES AND BODIES,2102929336,1000016253
07.03.2019,CHILDREN'S SERVICES,PURPLE PEBBLES(CHILD CARE) SERVICES,"1,320.00",UASC SECTION 24,EXTERNAL AGENCIES AND BODIES,2102929324,1000070705
07.03.2019,CHILDREN'S SERVICES,THE SALVATION ARMY,"2,992.76",UASC SECTION 24,EXTERNAL AGENCIES AND BODIES,2102929364,1000016253
07.03.2019,CHILDREN'S SERVICES,THE SALVATION ARMY,"6,993.95",UASC SECTION 24,EXTERNAL AGENCIES AND BODIES,2102929302,1000016253
07.03.2019,CHILDREN'S SERVICES,PURPLE PEBBLES(CHILD CARE) SERVICES,265.71,UNACCOMPANIED ASYLUM CHILDREN 16-17,EXTERNAL AGENCIES AND BODIES,2102929402,1000070705
07.03.2019,COMMISSIONING & CENTRAL,SIGNIS LTD,500,CHILDREN'S MULTI-AGENCY SAFEGUARDING TRA,TRAINING,5902347429,1000075765
07.03.2019,COMMISSIONING & CENTRAL,SIGNIS LTD,500,CHILDREN'S MULTI-AGENCY SAFEGUARDING TRA,TRAINING,5902347431,1000075765
07.03.2019,COMMISSIONING & CENTRAL,SIGNIS LTD,500,CHILDREN'S MULTI-AGENCY SAFEGUARDING TRA,TRAINING,5902347435,1000075765
07.03.2019,COMMISSIONING & CENTRAL,CLEARNOTION LTD,"6,325.00",COMMISSIONING TEAM,EXTERNAL AGENCIES AND BODIES,5902347584,1000080769
07.03.2019,COMMUNITIES,FAIR COMMUNITY HSG SERVICES LTD,"11,880.00",FAIR CHS TMO,M&M ALLOWANCE CO-OPS,5902346612,1000039650
07.03.2019,COMMUNITIES,WILLOW ESTATE AGENTS (LONDON) LTD,"1,148.00",NO RECOURSE TO PUBLIC FUNDS,ACCOMMODATION CHARGES,5902347501,1000060607
07.03.2019,COMMUNITIES,A & M PROPERTY AND CONSTRUCTION LTD,"3,143.00",NO RECOURSE TO PUBLIC FUNDS,ACCOMMODATION CHARGES,5902347480,1000014564
07.03.2019,COMMUNITIES,NORBURY PROPERTY SERVICES (LONDON) LTD,"3,892.00",NO RECOURSE TO PUBLIC FUNDS,ACCOMMODATION CHARGES,5902347475,1000075566
07.03.2019,COMMUNITIES,S & G PROPERTIES,"6,140.12",NO RECOURSE TO PUBLIC FUNDS,ACCOMMODATION CHARGES,5902347447,1000005082
07.03.2019,COMMUNITIES,JUST ENOUGH UK,320,PREVENT,PROFESSIONAL FEES,5902347450,1000079867
07.03.2019,COMMUNITIES,JUST ENOUGH UK,320,PREVENT,PROFESSIONAL FEES,5902347450,1000079867
07.03.2019,COMMUNITIES,JUST ENOUGH UK,320,PREVENT,PROFESSIONAL FEES,5902347450,1000079867
07.03.2019,COMMUNITIES,BRENCHLEY GARDENS MANAGEMENT ASSOCIATION,"1,300.00",TENANTS FUND,GRANTS,5902347487,11324247
07.03.2019,CUSTOMER EXPERIENCE,JOANNE MCELROY,300,COMPLAINTS,PROFESSIONAL FEES,5902346037,1000030005
07.03.2019,CUSTOMER EXPERIENCE,ANTONIA HALKER,300,COMPLAINTS,PROFESSIONAL FEES,5902347567,1000082374
07.03.2019,CUSTOMER EXPERIENCE,GOVNET COMMUNICATIONS,400.5,COMPLAINTS,TRAINING,5902347578,1000050132
07.03.2019,CUSTOMER EXPERIENCE HGF,BUILDING MONITORING SERVICES LTD,426.57,REGISTRARS,BUILDING R&M,5902347457,1000063798
07.03.2019,ENVIRONMENT AND LEISURE,CJS PLANTS,825,CAPITAL PS (LEISURE),CONST'N MAIN CONTRACT - NON CERTIFICATED,5902347507,1000025370
07.03.2019,ENVIRONMENT AND LEISURE,CJS PLANTS,990,CAPITAL PS (LEISURE),CONST'N MAIN CONTRACT - NON CERTIFICATED,5902347508,1000025370
07.03.2019,ENVIRONMENT AND LEISURE,CJS PLANTS,"1,237.50",CAPITAL PS (LEISURE),CONST'N MAIN CONTRACT - NON CERTIFICATED,5902347505,1000025370
07.03.2019,ENVIRONMENT AND LEISURE,CJS PLANTS,"5,267.50",CAPITAL PS (LEISURE),CONST'N MAIN CONTRACT - NON CERTIFICATED,5902347506,1000025370
07.03.2019,ENVIRONMENT DIRECTORATE,LEX AUTOLEASE,"17,440.90",CAR LEASING CTRL A/C,VEHICLE LEASING CHARGES,5902347493,1000069462
07.03.2019,ENVIRONMENT DIRECTORATE,LEX AUTOLEASE,"17,754.83",CAR LEASING CTRL A/C,VEHICLE LEASING CHARGES,5902347493,1000069462
07.03.2019,ENVIRONMENT DIRECTORATE,DAWSONGROUP VANS LTD,255.64,COMMERCIAL VEH CTRL A/C,HIRED VEHICLES,5902347464,1000082230
07.03.2019,ENVIRONMENT DIRECTORATE,DAWSONGROUP VANS LTD,271.04,COMMERCIAL VEH CTRL A/C,HIRED VEHICLES,5902347466,1000082230
07.03.2019,ENVIRONMENT DIRECTORATE,DAWSONGROUP VANS LTD,271.04,COMMERCIAL VEH CTRL A/C,HIRED VEHICLES,5902347469,1000082230
07.03.2019,ENVIRONMENT DIRECTORATE,DAWSONGROUP VANS LTD,271.04,COMMERCIAL VEH CTRL A/C,HIRED VEHICLES,5902347471,1000082230
07.03.2019,ENVIRONMENT DIRECTORATE,DAWSONGROUP VANS LTD,392,COMMERCIAL VEH CTRL A/C,HIRED VEHICLES,5902347463,1000082230
07.03.2019,ENVIRONMENT DIRECTORATE,FIVEWAYS MUNICIPAL VEHICLE HIRE LTD,725,COMMERCIAL VEH CTRL A/C,HIRED VEHICLES,5902347453,1000023985
07.03.2019,ENVIRONMENT DIRECTORATE,FIVEWAYS MUNICIPAL VEHICLE HIRE LTD,725,COMMERCIAL VEH CTRL A/C,HIRED VEHICLES,5902347456,1000023985
07.03.2019,ENVIRONMENT DIRECTORATE,FIVEWAYS MUNICIPAL VEHICLE HIRE LTD,725,COMMERCIAL VEH CTRL A/C,HIRED VEHICLES,5902347458,1000023985
07.03.2019,ENVIRONMENT DIRECTORATE,FIVEWAYS MUNICIPAL VEHICLE HIRE LTD,725,COMMERCIAL VEH CTRL A/C,HIRED VEHICLES,5902347459,1000023985
07.03.2019,ENVIRONMENT DIRECTORATE,FIVEWAYS MUNICIPAL VEHICLE HIRE LTD,900,COMMERCIAL VEH CTRL A/C,HIRED VEHICLES,5902347452,1000023985
07.03.2019,ENVIRONMENT DIRECTORATE,WOODLANDS PETCARE LTD,"22,499.99",DOG TRACKING SERVICE,OTHER CONTRACTORS,5902347525,1000063009
07.03.2019,ENVIRONMENT DIRECTORATE,FARM KENNELS LTD,"1,125.00",DOG TRACKING SERVICE,TRAINING,5902346223,1000080872
07.03.2019,ENVIRONMENT DIRECTORATE,PERFORMANCE CHEMICALS LTD,"2,110.00",ESTATE CLEANING-GENERAL,MATERIALS,5902347460,1000037129
07.03.2019,ENVIRONMENT DIRECTORATE,GO PRO CHEMICALS LTD,466.72,MANAGEMENT TEAM,MATERIALS,5902347517,1000079528
07.03.2019,ENVIRONMENT DIRECTORATE,WARD ARBORICULTURE LTD,450,NON HOUSING GROUNDS,OTHER CONTRACTORS,5902346354,1000073802
07.03.2019,ENVIRONMENT DIRECTORATE,KILLGERM CHEMICALS LTD,716.76,PEST CONTROL,MATERIALS,5902347551,1000045706
07.03.2019,ENVIRONMENT DIRECTORATE,GLASDON UK LIMITED,337.7,STREET CLEANING-GENERAL,MATERIALS,5902347408,1024073
07.03.2019,ENVIRONMENT DIRECTORATE,GLASDON UK LIMITED,481.42,STREET CLEANING-GENERAL,MATERIALS,5902347422,1024073
07.03.2019,ENVIRONMENT DIRECTORATE,PASSCO CIC,750,TRADING STANDARDS,SUBSCRIPTIONS,5902347559,1000080126
07.03.2019,F & C S EXCLUDING CORPORATE BUDGETS,NORTHGATE PUBLIC SERVICES (UK) LTD,272.11,ADMINISTRATIVE SUPPORT,POSTAGES,5902347574,1000037405
07.03.2019,F & C S EXCLUDING CORPORATE BUDGETS,DSI BILLING SERVICES LTD,"1,568.93",ADMINISTRATIVE SUPPORT,POSTAGES,5902347522,1000058640
07.03.2019,F & C S EXCLUDING CORPORATE BUDGETS,CAPITA BUSINESS SERVICES LTD,"5,682.94",CAPITA,OTHER CONTRACTORS,5902347521,1000049446
07.03.2019,F & C S EXCLUDING CORPORATE BUDGETS,CAPITA BUSINESS SERVICES LTD,"63,244.08",CAPITA,OTHER CONTRACTORS,5902347524,1000049446
07.03.2019,F & C S EXCLUDING CORPORATE BUDGETS,ANTHONY COLLINS SOLICITORS LLP,"3,476.50",LEGAL SVCES MANAGEMENT,PROFESSIONAL FEES,5902347543,1000010142
07.03.2019,F & C S EXCLUDING CORPORATE BUDGETS,LEXISNEXIS UK,"9,000.00",LEGAL SVCES MANAGEMENT,SOFTWARE,5902347418,11328752
07.03.2019,F & C S EXCLUDING CORPORATE BUDGETS,LEXISNEXIS UK,"9,025.00",LEGAL SVCES MANAGEMENT,SOFTWARE,5902347419,11328752
07.03.2019,HOUSING GENERAL FUND,C & C BUILDERS LTD,410,CAPITAL PS (HOUSING GF),CAPITAL GRANTS,5902347516,1000079100
07.03.2019,HOUSING GENERAL FUND,C & C BUILDERS LTD,"6,575.00",CAPITAL PS (HOUSING GF),CAPITAL GRANTS,5902347514,1000079100
07.03.2019,HOUSING GENERAL FUND,C & C BUILDERS LTD,"7,510.00",CAPITAL PS (HOUSING GF),CAPITAL GRANTS,5902347516,1000079100
07.03.2019,HOUSING GENERAL FUND,L H BRIDGE LTD,"9,425.00",CAPITAL PS (HOUSING GF),CAPITAL GRANTS,5902347515,1000056928
07.03.2019,HOUSING GENERAL FUND,DAVID MILES & PARTNERS LTD,"3,013.16",CAPITAL PS (REGEN),CONSTRUCTION,5902347461,1000001119
07.03.2019,HOUSING GENERAL FUND,STONEGROVE LIMITED,"21,000.00",CAPITAL PS (REGEN),CONSTRUCTION,2102929583,3000001525
07.03.2019,HOUSING HRA,PINNACLE BUILDING SERVICES,"6,420.00",CAPITAL PS (HRA),CONST'N MAIN CONTRACT - NON CERTIFICATED,2102929584,3000002082
07.03.2019,HOUSING HRA,CALFORD SEADEN LLP,"19,115.00",CAPITAL PS (HRA),CONSTRUCTION FEES  - EXTERNAL,5902346428,1061592
07.03.2019,HOUSING HRA,THIRSKWINTON LLP,"17,064.28",CAPITAL PS (REGEN),LAND & BUILDINGS ACQUISITION FEES,5902347417,1000082394
07.03.2019,HOUSING HRA,SPOKEMEAD MAINTENANCE LTD,"300,007.33",PAYMENTS CONTROL ACCOUNT - SPOKEMEAD,MANUAL CREDITORS,5902346567,1000059211
07.03.2019,HOUSING HRA,KENT COUNTY COUNCIL - LASER,"19,040.97",RESIDENT SERVICES BUSINESS SUPPORT,ELECTRICITY,6101875868,DIRECT DEBIT PAYMENT
07.03.2019,HOUSING HRA,KENT COUNTY COUNCIL - LASER,"73,623.74",RESIDENT SERVICES BUSINESS SUPPORT,ELECTRICITY,6101875869,DIRECT DEBIT PAYMENT
07.03.2019,HOUSING STRATEGY AND OPTIONS,DRUMMONDS PROPERTY & FINANCE GROUP,"1,179.44",HOMELESS PROJECTS,GRANTS,5902347381,1000082398
07.03.2019,HOUSING STRATEGY AND OPTIONS,THE ASSOCIATION OF HOUSING ADVICE SERVICES,"3,600.00",HOMELESSNESS TRAINING ACADEMY,TRAINING,5902347500,1000061712
07.03.2019,LEISURE DIRECTORATE,TECHNICAL SURFACES,582.05,BURGESS SPORTS CENTRE,GROUNDS MAINTENANCE,5902347589,1000011451
07.03.2019,LEISURE DIRECTORATE,QUADRON SERVICES LIMITED,"6,604.56",BURGESS SPORTS CENTRE,PROFESSIONAL FEES,5902347554,1000066528
07.03.2019,LEISURE DIRECTORATE,QUADRON SERVICES LIMITED,"7,804.29",BURGESS SPORTS CENTRE,PROFESSIONAL FEES,5902347558,1000066528
07.03.2019,LEISURE DIRECTORATE,DEMCO EUROPE LTD T/A GRESSWELL,"1,422.00",CANADA WATER LIBRARY,EQUIPMENT PURCHASE & REPAIR,5902347560,1000055420
07.03.2019,LEISURE DIRECTORATE,WESTMINSTER WASTE,696,CEMETERIES,OTHER CONTRACTORS,5902347518,1000080933
07.03.2019,LEISURE DIRECTORATE,FUEL OILS LTD,646.9,CEMETERIES,VEHICLE FUEL,5902347586,1000026670
07.03.2019,LEISURE DIRECTORATE,GLS EDUCATIONAL SUPPLIES LTD,281.61,DAMILOLA TAYLOR CENTRE,EQUIPMENT PURCHASE & REPAIR,5902347455,1318282
07.03.2019,LEISURE DIRECTORATE,ZERO POINT EIGHT (DUDLEY) LTD,"2,280.00",GROVE VALE LIBRARY,FURNITURE PURCHASE & REPAIR,5902347535,1613549
07.03.2019,LEISURE DIRECTORATE,G4S CASH SERVICES (UK) LTD,349.38,LIBARIES DEVELOPMENT,SECURITY SERVICES,5902347545,1420519
07.03.2019,LEISURE DIRECTORATE,LONDON PARKS & GREEN SPACES FORUM,"4,500.00",PARKS SERVICES DEVELOPMENT,OTHER EMPLOYEE EXPENSES,5902346560,1000009948
07.03.2019,LEISURE DIRECTORATE,NPOWER LTD,-410.67,PLAY CENTRAL,ELECTRICITY,5902347271,1000078994
07.03.2019,LEISURE DIRECTORATE,ASKEWS & HOLTS LIBRARY SERVICES LTD,"3,590.41",STOCK SERVICES,BOOKS & PUBLICATIONS,5902347071,1494168
07.03.2019,MODERNISATION HGF,URBANCANDA,"2,390.00",CORPORATE TRAINING BUDGETS,TRAINING,5902347421,1000036367
07.03.2019,MODERNISATION HGF,IRON MOUNTAIN (UK) LTD,"8,022.75",REPAIR AND MAINTENANCE SERVICES,INFORMATION MANAGEMENT,5902347502,1000078591
07.03.2019,MODERNISATION HGF,COMENSURA LTD,"511,497.58",WEEKLY PAYMENTS,AGENCY STAFF,5902347598,1000051261
07.03.2019,PLANNING AND TRANSPORT,TRISKELE CONSERVATION LIMITED,555,PECKHAM TOWNSCAPE HERITAGE INITIATIVE,CONSULTANTS SERVICES,5902347474,1000082204
07.03.2019,PROPERTY SERVICES,CASTLE WATER LTD,325.71,5/5A WESTMINSTER BRIDGE ROAD.,WATER,5902347572,1000078867
07.03.2019,PROPERTY SERVICES,STANBURY BUILDING SERVICES LTD,495,MISC INDUSTRIAL PROPERTIES,BUILDING R&M,5902347476,1000078207
07.03.2019,PUBLIC HEALTH,WORKMAN LLP,"228,304.28","COURAGE YARD, SHAD THAMES",COMMERCIAL NON-RESIDENTIAL RENT RECEIPTS,5902347547,1000063692
07.03.2019,PUBLIC HEALTH,THE SEAL COMMUNITY C.I.C,500,HEALTHY SCHOOLS (PHSE),CONSULTANTS SERVICES,5902346069,1000075945
07.03.2019,PUBLIC HEALTH,CARL TURNER ARCHITECTS LTD,"3,722.50",MASTER PLAN-H/WAY & TRANS INTERCHANGE,PROFESSIONAL FEES,5902346453,1000060355
07.03.2019,PUBLIC HEALTH,RAY LINGE MARKET STALLS LTD,"10,000.00",OLD KENT RD-FEES/MPLAN,FURNITURE PURCHASE & REPAIR,5902347577,11189601
07.03.2019,RESIDENT SERVICES,CASTLE WATER LTD,326.67,CAMBERWELL,WATER,5902347473,1000078867
07.03.2019,RESIDENT SERVICES,CASTLE WATER LTD,420.6,CAMBERWELL,WATER,5902347473,1000078867
07.03.2019,RESIDENT SERVICES,REDACTED PERSONAL DATA,"1,581.00",CENTRAL AREA RUNNING COSTS,EXTERNAL AGENCIES AND BODIES,REDACTED,REDACTED
07.03.2019,RESIDENT SERVICES,E.ON,348.23,OPERATIONS/OFFICES ACCOMMODATION,ELECTRICITY,5902347444,1000043614
07.03.2019,RESIDENT SERVICES,POSTURITE (UK) LTD,936.61,OPERATIONS/OFFICES ACCOMMODATION,EQUIPMENT PURCHASE & REPAIR,5902347536,11015468
07.03.2019,RESIDENT SERVICES,J & M OASIS LTD,899,TA PLACEMENTS,EXTERNAL AGENCIES AND BODIES,5902347337,1000072169
07.03.2019,RESIDENT SERVICES,PPROPERTYPLACEBOOK LTD,909,TA PLACEMENTS,EXTERNAL AGENCIES AND BODIES,5902347527,1000077817
07.03.2019,RESIDENT SERVICES,PPROPERTYPLACEBOOK LTD,980,TA PLACEMENTS,EXTERNAL AGENCIES AND BODIES,5902347555,1000077817
07.03.2019,RESIDENT SERVICES,WILLOW ESTATE AGENTS (LONDON) LTD,"1,008.00",TA PLACEMENTS,EXTERNAL AGENCIES AND BODIES,5902347503,1000060607
07.03.2019,RESIDENT SERVICES,SOUTH OF THE RIVER INVESTMENTS LTD,"1,512.00",TA PLACEMENTS,EXTERNAL AGENCIES AND BODIES,5902347541,1000073638
07.03.2019,RESIDENT SERVICES,NORBURY PROPERTY SERVICES (LONDON) LTD,"1,960.00",TA PLACEMENTS,EXTERNAL AGENCIES AND BODIES,5902347537,1000075566
07.03.2019,RESIDENT SERVICES,STENFORD PROPERTY LTD,"3,183.60",TA PLACEMENTS,EXTERNAL AGENCIES AND BODIES,5902347533,1000074759
07.03.2019,SOUTHWARK BUILDING SERVICES,1st ACTIVE PROPERTY SERVICES LTD,"21,484.61",BUSINESS SUPPORT,OTHER CONTRACTORS,2102929580,3000001655
07.03.2019,SOUTHWARK BUILDING SERVICES,TMG TRADING LTD,"60,592.79",BUSINESS SUPPORT,OTHER CONTRACTORS,2102929576,3000002073
07.03.2019,SOUTHWARK BUILDING SERVICES,E & E BUILDING SERVICES LTD,"60,858.56",BUSINESS SUPPORT,OTHER CONTRACTORS,2102929581,3000001176
08.03.2019,ADULT SOCIAL CARE,WINDSOR WALK HOUSING ASSOCIATION,264.2,APPOINTEESHIPS,OTHER PAYMENTS FOR CLIENTS,2102930279,1012653
08.03.2019,ADULT SOCIAL CARE,LOOK AHEAD CARE AND SUPPORT LTD,278.08,APPOINTEESHIPS,OTHER PAYMENTS FOR CLIENTS,2102930246,1000072923
08.03.2019,ADULT SOCIAL CARE,CRYSTAL MANAGEMENT SERVICE LTD,280,APPOINTEESHIPS,OTHER PAYMENTS FOR CLIENTS,2102930230,1000053550
08.03.2019,ADULT SOCIAL CARE,ELIZABETH PETERS CARE HOMES LTD,280,APPOINTEESHIPS,OTHER PAYMENTS FOR CLIENTS,2102930234,1000078858
08.03.2019,ADULT SOCIAL CARE,POP INN CAFE,280,APPOINTEESHIPS,OTHER PAYMENTS FOR CLIENTS,2102930254,1000079353
08.03.2019,ADULT SOCIAL CARE,UPLANDS CARE HOME,300,APPOINTEESHIPS,OTHER PAYMENTS FOR CLIENTS,2102930225,1000014374
08.03.2019,ADULT SOCIAL CARE,GLEN CARE GROUP,300,APPOINTEESHIPS,OTHER PAYMENTS FOR CLIENTS,2102930268,1000050223
08.03.2019,ADULT SOCIAL CARE,AFFINITY SUTTON HOMES LTD,319.24,APPOINTEESHIPS,OTHER PAYMENTS FOR CLIENTS,2102930275,1000051647
08.03.2019,ADULT SOCIAL CARE,DANSHELL GROUP,320,APPOINTEESHIPS,OTHER PAYMENTS FOR CLIENTS,2102930233,1000079284
08.03.2019,ADULT SOCIAL CARE,FOUNTAIN CARE LTD,329.4,APPOINTEESHIPS,OTHER PAYMENTS FOR CLIENTS,2102930307,1000066815
08.03.2019,ADULT SOCIAL CARE,CYGNET HOSPITAL BURY,340,APPOINTEESHIPS,OTHER PAYMENTS FOR CLIENTS,2102930232,1000079492
08.03.2019,ADULT SOCIAL CARE,AMBLESIDE LODGE,360,APPOINTEESHIPS,OTHER PAYMENTS FOR CLIENTS,2102930271,1000042535
08.03.2019,ADULT SOCIAL CARE,DINARDO SUPPORTS LTD,378.43,APPOINTEESHIPS,OTHER PAYMENTS FOR CLIENTS,2102930273,1000063093
08.03.2019,ADULT SOCIAL CARE,DINARDO SUPPORTS LTD,378.43,APPOINTEESHIPS,OTHER PAYMENTS FOR CLIENTS,2102930274,1000063093
08.03.2019,ADULT SOCIAL CARE,CHOICE SUPPORT,400,APPOINTEESHIPS,OTHER PAYMENTS FOR CLIENTS,2102930280,1104183
08.03.2019,ADULT SOCIAL CARE,STRADA CARE LTD,400,APPOINTEESHIPS,OTHER PAYMENTS FOR CLIENTS,2102930284,1000082133
08.03.2019,ADULT SOCIAL CARE,CHOICE SUPPORT,480,APPOINTEESHIPS,OTHER PAYMENTS FOR CLIENTS,2102930228,1104183
08.03.2019,ADULT SOCIAL CARE,HEXAGON HOUSING ASSOCIATION LTD,564.12,APPOINTEESHIPS,OTHER PAYMENTS FOR CLIENTS,2102930239,1000056905
08.03.2019,ADULT SOCIAL CARE,HYDE HOUSING ASSOCIATION LTD,849.2,APPOINTEESHIPS,OTHER PAYMENTS FOR CLIENTS,2102930265,1000013980
08.03.2019,ADULT SOCIAL CARE,GOLDEN LANE HOUSING LTD,892.08,APPOINTEESHIPS,OTHER PAYMENTS FOR CLIENTS,2102930272,1000046267
08.03.2019,ADULT SOCIAL CARE,LOOK AHEAD CARE AND SUPPORT LTD,935.16,APPOINTEESHIPS,OTHER PAYMENTS FOR CLIENTS,2102930247,1000072923
08.03.2019,ADULT SOCIAL CARE,EQUINOX CARE,"1,090.20",APPOINTEESHIPS,OTHER PAYMENTS FOR CLIENTS,2102930236,11325422
08.03.2019,ADULT SOCIAL CARE,HYDE HOUSING ASSOCIATION LTD,"1,166.68",APPOINTEESHIPS,OTHER PAYMENTS FOR CLIENTS,2102930264,1000013980
08.03.2019,ADULT SOCIAL CARE,EQUINOX CARE,"1,384.72",APPOINTEESHIPS,OTHER PAYMENTS FOR CLIENTS,2102930238,11325422
08.03.2019,ADULT SOCIAL CARE,REDACTED PERSONAL DATA,260,APPOINTEESHIPS,OTHER PAYMENTS FOR CLIENTS,REDACTED,REDACTED
08.03.2019,ADULT SOCIAL CARE,REDACTED PERSONAL DATA,320,APPOINTEESHIPS,OTHER PAYMENTS FOR CLIENTS,REDACTED,REDACTED
08.03.2019,ADULT SOCIAL CARE,REDACTED PERSONAL DATA,400,APPOINTEESHIPS,OTHER PAYMENTS FOR CLIENTS,REDACTED,REDACTED
08.03.2019,ADULT SOCIAL CARE,REDACTED PERSONAL DATA,440,APPOINTEESHIPS,OTHER PAYMENTS FOR CLIENTS,REDACTED,REDACTED
08.03.2019,ADULT SOCIAL CARE,REDACTED PERSONAL DATA,444.99,APPOINTEESHIPS,OTHER PAYMENTS FOR CLIENTS,REDACTED,REDACTED
08.03.2019,ADULT SOCIAL CARE,REDACTED PERSONAL DATA,460,APPOINTEESHIPS,OTHER PAYMENTS FOR CLIENTS,REDACTED,REDACTED
08.03.2019,ADULT SOCIAL CARE,REDACTED PERSONAL DATA,488,APPOINTEESHIPS,OTHER PAYMENTS FOR CLIENTS,REDACTED,REDACTED
08.03.2019,ADULT SOCIAL CARE,REDACTED PERSONAL DATA,583.4,APPOINTEESHIPS,OTHER PAYMENTS FOR CLIENTS,REDACTED,REDACTED
08.03.2019,ADULT SOCIAL CARE,REDACTED PERSONAL DATA,680,APPOINTEESHIPS,OTHER PAYMENTS FOR CLIENTS,REDACTED,REDACTED
08.03.2019,ADULT SOCIAL CARE,HEALTHCARE & TRANSPORT SERVICES,306,LD LTS 18-64,CLIENT TRANSPORT,2102930087,1000042743
08.03.2019,ADULT SOCIAL CARE,HEALTHCARE & TRANSPORT SERVICES,448,LD LTS 18-64,CLIENT TRANSPORT,2102930080,1000042743
08.03.2019,ADULT SOCIAL CARE,ACCESS MOBILITY TRANSPORT LTD,"2,106.00",LD LTS 18-64,CLIENT TRANSPORT,2102930109,1000074637
08.03.2019,ADULT SOCIAL CARE,CAMBRIDGE HOUSE & TALBOT,"1,386.00",LD LTS 18-64,DAYCARE,2102930116,1139414
08.03.2019,ADULT SOCIAL CARE,TRUECARE HAVEN SUPPORT LTD,"1,520.00",LD LTS 18-64,HOMECARE - SPOT,2102930082,1000078974
08.03.2019,ADULT SOCIAL CARE,KEYRING-LIVING SUPPORT NETWORKS LTD,254.08,LD LTS 18-64,SUPPORTED LIVING,2102930112,1486496
08.03.2019,ADULT SOCIAL CARE,CHOICE SUPPORT,293.92,LD LTS 18-64,SUPPORTED LIVING,2102930024,1104183
08.03.2019,ADULT SOCIAL CARE,CHOICE SUPPORT,293.92,LD LTS 18-64,SUPPORTED LIVING,2102930036,1104183
08.03.2019,ADULT SOCIAL CARE,CHOICE SUPPORT,293.92,LD LTS 18-64,SUPPORTED LIVING,2102930040,1104183
08.03.2019,ADULT SOCIAL CARE,KEYRING-LIVING SUPPORT NETWORKS LTD,317.6,LD LTS 18-64,SUPPORTED LIVING,2102930111,1486496
08.03.2019,ADULT SOCIAL CARE,CHOICE SUPPORT,330.66,LD LTS 18-64,SUPPORTED LIVING,2102930026,1104183
08.03.2019,ADULT SOCIAL CARE,CARE DIRECT UK LTD,347.51,LD LTS 18-64,SUPPORTED LIVING,2102930078,1000066322
08.03.2019,ADULT SOCIAL CARE,CHOICE SUPPORT,367.4,LD LTS 18-64,SUPPORTED LIVING,2102930015,1104183
08.03.2019,ADULT SOCIAL CARE,CHOICE SUPPORT,367.4,LD LTS 18-64,SUPPORTED LIVING,2102930022,1104183
08.03.2019,ADULT SOCIAL CARE,KEYRING-LIVING SUPPORT NETWORKS LTD,381.12,LD LTS 18-64,SUPPORTED LIVING,2102930110,1486496
08.03.2019,ADULT SOCIAL CARE,KEYRING-LIVING SUPPORT NETWORKS LTD,381.12,LD LTS 18-64,SUPPORTED LIVING,2102930113,1486496
08.03.2019,ADULT SOCIAL CARE,CHOICE SUPPORT,440.88,LD LTS 18-64,SUPPORTED LIVING,2102930023,1104183
08.03.2019,ADULT SOCIAL CARE,CHOICE SUPPORT,440.88,LD LTS 18-64,SUPPORTED LIVING,2102930039,1104183
08.03.2019,ADULT SOCIAL CARE,CHOICE SUPPORT,440.88,LD LTS 18-64,SUPPORTED LIVING,2102930045,1104183
08.03.2019,ADULT SOCIAL CARE,DARETHEALTHCARE UK LTD,496.44,LD LTS 18-64,SUPPORTED LIVING,2102930107,1000059149
08.03.2019,ADULT SOCIAL CARE,CHOICE SUPPORT,514.36,LD LTS 18-64,SUPPORTED LIVING,2102930017,1104183
08.03.2019,ADULT SOCIAL CARE,CHOICE SUPPORT,514.36,LD LTS 18-64,SUPPORTED LIVING,2102930035,1104183
08.03.2019,ADULT SOCIAL CARE,CHOICE SUPPORT,514.36,LD LTS 18-64,SUPPORTED LIVING,2102930044,1104183
08.03.2019,ADULT SOCIAL CARE,CHOICE SUPPORT,551.1,LD LTS 18-64,SUPPORTED LIVING,2102930042,1104183
08.03.2019,ADULT SOCIAL CARE,CHOICE SUPPORT,587.84,LD LTS 18-64,SUPPORTED LIVING,2102930014,1104183
08.03.2019,ADULT SOCIAL CARE,TRUECARE HAVEN SUPPORT LTD,650,LD LTS 18-64,SUPPORTED LIVING,2102930084,1000078974
08.03.2019,ADULT SOCIAL CARE,CHOICE SUPPORT,808.28,LD LTS 18-64,SUPPORTED LIVING,2102930032,1104183
08.03.2019,ADULT SOCIAL CARE,CHOICE SUPPORT,955.24,LD LTS 18-64,SUPPORTED LIVING,2102930033,1104183
08.03.2019,ADULT SOCIAL CARE,TRUECARE HAVEN SUPPORT LTD,958.04,LD LTS 18-64,SUPPORTED LIVING,2102930081,1000078974
08.03.2019,ADULT SOCIAL CARE,CHOICE SUPPORT,"1,102.20",LD LTS 18-64,SUPPORTED LIVING,2102930030,1104183
08.03.2019,ADULT SOCIAL CARE,HEATH FARM FAMILY SOLUTION (FOSTERING),"4,024.73",LD LTS 18-64,SUPPORTED LIVING,2102930117,11271268
08.03.2019,ADULT SOCIAL CARE,CHOICE SUPPORT,440.88,LD LTS 65+,SUPPORTED LIVING,2102930034,1104183
08.03.2019,ADULT SOCIAL CARE,CHOICE SUPPORT,"6,935.52",LD LTS 65+,SUPPORTED LIVING,2102930031,1104183
08.03.2019,ADULT SOCIAL CARE,CHOICE SUPPORT,"6,935.52",LD LTS 65+,SUPPORTED LIVING,2102930038,1104183
08.03.2019,ADULT SOCIAL CARE,LONDON CARE LTD,370.6,MEM LTS 18-64,HOMECARE - C&V,2102929772,1000003398
08.03.2019,ADULT SOCIAL CARE,LONDON CARE LTD,699.44,MEM LTS 18-64,HOMECARE - C&V,2102929684,1000003398
08.03.2019,ADULT SOCIAL CARE,LONDON CARE LTD,728.5,MEM LTS 65+,HOMECARE - C&V,2102929748,1000003398
08.03.2019,ADULT SOCIAL CARE,LONDON CARE LTD,782.96,MEM LTS 65+,HOMECARE - C&V,2102929671,1000003398
08.03.2019,ADULT SOCIAL CARE,LONDON CARE LTD,966.04,MEM LTS 65+,HOMECARE - C&V,2102929706,1000003398
08.03.2019,ADULT SOCIAL CARE,LONDON CARE LTD,974.57,MEM LTS 65+,HOMECARE - C&V,2102929754,1000003398
08.03.2019,ADULT SOCIAL CARE,LONDON CARE LTD,"1,049.44",MEM LTS 65+,HOMECARE - C&V,2102929812,1000003398
08.03.2019,ADULT SOCIAL CARE,LONDON CARE LTD,"2,098.88",MEM LTS 65+,HOMECARE - C&V,2102929784,1000003398
08.03.2019,ADULT SOCIAL CARE,BLISSETT CARE LTD,"2,135.00",MEM LTS 65+,HOMECARE - C&V,2102929955,1000042627
08.03.2019,ADULT SOCIAL CARE,WESTMINSTER HOMECARE LTD,"1,532.16",MEM LTS 65+,HOMECARE - SPOT,2102930069,1000075287
08.03.2019,ADULT SOCIAL CARE,LONDON CARE LTD,266.4,MH LTS 18-64,HOMECARE - C&V,2102929791,1000003398
08.03.2019,ADULT SOCIAL CARE,BLISSETT CARE LTD,307.44,MH LTS 18-64,HOMECARE - C&V,2102929993,1000042627
08.03.2019,ADULT SOCIAL CARE,LONDON CARE LTD,483.04,MH LTS 65+,HOMECARE - C&V,2102929727,1000003398
08.03.2019,ADULT SOCIAL CARE,BLISSETT CARE LTD,512.4,MH LTS 65+,HOMECARE - C&V,2102929962,1000042627
08.03.2019,ADULT SOCIAL CARE,BLISSETT CARE LTD,563.64,MH LTS 65+,HOMECARE - C&V,2102930000,1000042627
08.03.2019,ADULT SOCIAL CARE,LONDON CARE LTD,666,MH LTS 65+,HOMECARE - C&V,2102929650,1000003398
08.03.2019,ADULT SOCIAL CARE,LONDON CARE LTD,333.16,PHY LTS 18-64,HOMECARE - C&V,2102929813,1000003398
08.03.2019,ADULT SOCIAL CARE,BLISSETT CARE LTD,345.87,PHY LTS 18-64,HOMECARE - C&V,2102929964,1000042627
08.03.2019,ADULT SOCIAL CARE,LONDON CARE LTD,349.68,PHY LTS 18-64,HOMECARE - C&V,2102929682,1000003398
08.03.2019,ADULT SOCIAL CARE,LONDON CARE LTD,349.72,PHY LTS 18-64,HOMECARE - C&V,2102929646,1000003398
08.03.2019,ADULT SOCIAL CARE,LONDON CARE LTD,349.72,PHY LTS 18-64,HOMECARE - C&V,2102929782,1000003398
08.03.2019,ADULT SOCIAL CARE,BLISSETT CARE LTD,358.68,PHY LTS 18-64,HOMECARE - C&V,2102930002,1000042627
08.03.2019,ADULT SOCIAL CARE,LONDON CARE LTD,362.19,PHY LTS 18-64,HOMECARE - C&V,2102929737,1000003398
08.03.2019,ADULT SOCIAL CARE,LONDON CARE LTD,391.31,PHY LTS 18-64,HOMECARE - C&V,2102929804,1000003398
08.03.2019,ADULT SOCIAL CARE,LONDON CARE LTD,416.32,PHY LTS 18-64,HOMECARE - C&V,2102929730,1000003398
08.03.2019,ADULT SOCIAL CARE,LONDON CARE LTD,416.32,PHY LTS 18-64,HOMECARE - C&V,2102929796,1000003398
08.03.2019,ADULT SOCIAL CARE,LONDON CARE LTD,445.49,PHY LTS 18-64,HOMECARE - C&V,2102929779,1000003398
08.03.2019,ADULT SOCIAL CARE,LONDON CARE LTD,449.71,PHY LTS 18-64,HOMECARE - C&V,2102929621,1000003398
08.03.2019,ADULT SOCIAL CARE,LONDON CARE LTD,466.4,PHY LTS 18-64,HOMECARE - C&V,2102929752,1000003398
08.03.2019,ADULT SOCIAL CARE,WESTMINSTER HOMECARE LTD,474.24,PHY LTS 18-64,HOMECARE - C&V,2102930057,1000075287
08.03.2019,ADULT SOCIAL CARE,BLISSETT CARE LTD,499.59,PHY LTS 18-64,HOMECARE - C&V,2102930003,1000042627
08.03.2019,ADULT SOCIAL CARE,LONDON CARE LTD,516.34,PHY LTS 18-64,HOMECARE - C&V,2102929695,1000003398
08.03.2019,ADULT SOCIAL CARE,LONDON CARE LTD,524.75,PHY LTS 18-64,HOMECARE - C&V,2102929693,1000003398
08.03.2019,ADULT SOCIAL CARE,LONDON CARE LTD,532.8,PHY LTS 18-64,HOMECARE - C&V,2102929641,1000003398
08.03.2019,ADULT SOCIAL CARE,BLISSETT CARE LTD,550.83,PHY LTS 18-64,HOMECARE - C&V,2102929969,1000042627
08.03.2019,ADULT SOCIAL CARE,BLISSETT CARE LTD,602.07,PHY LTS 18-64,HOMECARE - C&V,2102929976,1000042627
08.03.2019,ADULT SOCIAL CARE,LONDON CARE LTD,603.75,PHY LTS 18-64,HOMECARE - C&V,2102929686,1000003398
08.03.2019,ADULT SOCIAL CARE,LONDON CARE LTD,616.28,PHY LTS 18-64,HOMECARE - C&V,2102929672,1000003398
08.03.2019,ADULT SOCIAL CARE,LONDON CARE LTD,682.79,PHY LTS 18-64,HOMECARE - C&V,2102929683,1000003398
08.03.2019,ADULT SOCIAL CARE,LONDON CARE LTD,682.88,PHY LTS 18-64,HOMECARE - C&V,2102929651,1000003398
08.03.2019,ADULT SOCIAL CARE,LONDON CARE LTD,682.88,PHY LTS 18-64,HOMECARE - C&V,2102929726,1000003398
08.03.2019,ADULT SOCIAL CARE,BLISSETT CARE LTD,725.9,PHY LTS 18-64,HOMECARE - C&V,2102929975,1000042627
08.03.2019,ADULT SOCIAL CARE,LONDON CARE LTD,757.64,PHY LTS 18-64,HOMECARE - C&V,2102929669,1000003398
08.03.2019,ADULT SOCIAL CARE,BLISSETT CARE LTD,772.87,PHY LTS 18-64,HOMECARE - C&V,2102929997,1000042627
08.03.2019,ADULT SOCIAL CARE,LONDON CARE LTD,774.29,PHY LTS 18-64,HOMECARE - C&V,2102929700,1000003398
08.03.2019,ADULT SOCIAL CARE,LONDON CARE LTD,887.07,PHY LTS 18-64,HOMECARE - C&V,2102929785,1000003398
08.03.2019,ADULT SOCIAL CARE,BLISSETT CARE LTD,896.7,PHY LTS 18-64,HOMECARE - C&V,2102929983,1000042627
08.03.2019,ADULT SOCIAL CARE,LONDON CARE LTD,907.66,PHY LTS 18-64,HOMECARE - C&V,2102929720,1000003398
08.03.2019,ADULT SOCIAL CARE,LONDON CARE LTD,916.12,PHY LTS 18-64,HOMECARE - C&V,2102929776,1000003398
08.03.2019,ADULT SOCIAL CARE,LONDON CARE LTD,932.4,PHY LTS 18-64,HOMECARE - C&V,2102929715,1000003398
08.03.2019,ADULT SOCIAL CARE,LONDON CARE LTD,969.95,PHY LTS 18-64,HOMECARE - C&V,2102929736,1000003398
08.03.2019,ADULT SOCIAL CARE,LONDON CARE LTD,"1,003.35",PHY LTS 18-64,HOMECARE - C&V,2102929780,1000003398
08.03.2019,ADULT SOCIAL CARE,BLISSETT CARE LTD,"1,024.80",PHY LTS 18-64,HOMECARE - C&V,2102929959,1000042627
08.03.2019,ADULT SOCIAL CARE,LONDON CARE LTD,"1,419.55",PHY LTS 18-64,HOMECARE - C&V,2102929626,1000003398
08.03.2019,ADULT SOCIAL CARE,LONDON CARE LTD,"1,548.86",PHY LTS 18-64,HOMECARE - C&V,2102929721,1000003398
08.03.2019,ADULT SOCIAL CARE,LONDON CARE LTD,"2,082.12",PHY LTS 18-64,HOMECARE - C&V,2102929786,1000003398
08.03.2019,ADULT SOCIAL CARE,LONDON CARE LTD,337.23,PHY LTS 18-64,HOMECARE - SPOT,2102929630,1000003398
08.03.2019,ADULT SOCIAL CARE,WESTMINSTER HOMECARE LTD,483.36,PHY LTS 18-64,HOMECARE - SPOT,2102930046,1000075287
08.03.2019,ADULT SOCIAL CARE,LONDON CARE LTD,632.9,PHY LTS 18-64,HOMECARE - SPOT,2102929755,1000003398
08.03.2019,ADULT SOCIAL CARE,CARE DIRECT UK LTD,647.88,PHY LTS 18-64,HOMECARE - SPOT,2102930096,1000066322
08.03.2019,ADULT SOCIAL CARE,CARE DIRECT UK LTD,647.88,PHY LTS 18-64,HOMECARE - SPOT,2102930104,1000066322
08.03.2019,ADULT SOCIAL CARE,WESTMINSTER HOMECARE LTD,"1,974.48",PHY LTS 18-64,HOMECARE - SPOT,2102930054,1000075287
08.03.2019,ADULT SOCIAL CARE,WESTMINSTER HOMECARE LTD,"3,014.16",PHY LTS 18-64,HOMECARE - SPOT,2102930052,1000075287
08.03.2019,ADULT SOCIAL CARE,LONDON CARE LTD,254.01,PHY LTS 65+,HOMECARE - C&V,2102929800,1000003398
08.03.2019,ADULT SOCIAL CARE,BLISSETT CARE LTD,264.74,PHY LTS 65+,HOMECARE - C&V,2102930011,1000042627
08.03.2019,ADULT SOCIAL CARE,LONDON CARE LTD,299.76,PHY LTS 65+,HOMECARE - C&V,2102929777,1000003398
08.03.2019,ADULT SOCIAL CARE,LONDON CARE LTD,333,PHY LTS 65+,HOMECARE - C&V,2102929781,1000003398
08.03.2019,ADULT SOCIAL CARE,BLISSETT CARE LTD,333.06,PHY LTS 65+,HOMECARE - C&V,2102929988,1000042627
08.03.2019,ADULT SOCIAL CARE,LONDON CARE LTD,333.2,PHY LTS 65+,HOMECARE - C&V,2102929666,1000003398
08.03.2019,ADULT SOCIAL CARE,LONDON CARE LTD,337.23,PHY LTS 65+,HOMECARE - C&V,2102929725,1000003398
08.03.2019,ADULT SOCIAL CARE,BLISSETT CARE LTD,345.87,PHY LTS 65+,HOMECARE - C&V,2102929980,1000042627
08.03.2019,ADULT SOCIAL CARE,LONDON CARE LTD,349.66,PHY LTS 65+,HOMECARE - C&V,2102929802,1000003398
08.03.2019,ADULT SOCIAL CARE,LONDON CARE LTD,349.72,PHY LTS 65+,HOMECARE - C&V,2102929619,1000003398
08.03.2019,ADULT SOCIAL CARE,LONDON CARE LTD,349.72,PHY LTS 65+,HOMECARE - C&V,2102929676,1000003398
08.03.2019,ADULT SOCIAL CARE,LONDON CARE LTD,349.72,PHY LTS 65+,HOMECARE - C&V,2102929688,1000003398
08.03.2019,ADULT SOCIAL CARE,LONDON CARE LTD,349.72,PHY LTS 65+,HOMECARE - C&V,2102929744,1000003398
08.03.2019,ADULT SOCIAL CARE,BLISSETT CARE LTD,354.41,PHY LTS 65+,HOMECARE - C&V,2102930006,1000042627
08.03.2019,ADULT SOCIAL CARE,BLISSETT CARE LTD,358.68,PHY LTS 65+,HOMECARE - C&V,2102929954,1000042627
08.03.2019,ADULT SOCIAL CARE,LONDON CARE LTD,366.36,PHY LTS 65+,HOMECARE - C&V,2102929655,1000003398
08.03.2019,ADULT SOCIAL CARE,LONDON CARE LTD,366.44,PHY LTS 65+,HOMECARE - C&V,2102929698,1000003398
08.03.2019,ADULT SOCIAL CARE,LONDON CARE LTD,374.77,PHY LTS 65+,HOMECARE - C&V,2102929783,1000003398
08.03.2019,ADULT SOCIAL CARE,LONDON CARE LTD,395.49,PHY LTS 65+,HOMECARE - C&V,2102929631,1000003398
08.03.2019,ADULT SOCIAL CARE,LONDON CARE LTD,399.6,PHY LTS 65+,HOMECARE - C&V,2102929634,1000003398
08.03.2019,ADULT SOCIAL CARE,LONDON CARE LTD,416.4,PHY LTS 65+,HOMECARE - C&V,2102929707,1000003398
08.03.2019,ADULT SOCIAL CARE,LONDON CARE LTD,416.5,PHY LTS 65+,HOMECARE - C&V,2102929694,1000003398
08.03.2019,ADULT SOCIAL CARE,BLISSETT CARE LTD,448.35,PHY LTS 65+,HOMECARE - C&V,2102930001,1000042627
08.03.2019,ADULT SOCIAL CARE,LONDON CARE LTD,449.64,PHY LTS 65+,HOMECARE - C&V,2102929801,1000003398
08.03.2019,ADULT SOCIAL CARE,LONDON CARE LTD,449.82,PHY LTS 65+,HOMECARE - C&V,2102929673,1000003398
08.03.2019,ADULT SOCIAL CARE,LONDON CARE LTD,466.48,PHY LTS 65+,HOMECARE - C&V,2102929733,1000003398
08.03.2019,ADULT SOCIAL CARE,BLISSETT CARE LTD,478.24,PHY LTS 65+,HOMECARE - C&V,2102929973,1000042627
08.03.2019,ADULT SOCIAL CARE,BLISSETT CARE LTD,478.24,PHY LTS 65+,HOMECARE - C&V,2102930013,1000042627
08.03.2019,ADULT SOCIAL CARE,LONDON CARE LTD,482.92,PHY LTS 65+,HOMECARE - C&V,2102929662,1000003398
08.03.2019,ADULT SOCIAL CARE,LONDON CARE LTD,482.92,PHY LTS 65+,HOMECARE - C&V,2102929699,1000003398
08.03.2019,ADULT SOCIAL CARE,LONDON CARE LTD,482.92,PHY LTS 65+,HOMECARE - C&V,2102929807,1000003398
08.03.2019,ADULT SOCIAL CARE,LONDON CARE LTD,499.5,PHY LTS 65+,HOMECARE - C&V,2102929680,1000003398
08.03.2019,ADULT SOCIAL CARE,LONDON CARE LTD,516.15,PHY LTS 65+,HOMECARE - C&V,2102929729,1000003398
08.03.2019,ADULT SOCIAL CARE,LONDON CARE LTD,530.24,PHY LTS 65+,HOMECARE - C&V,2102929697,1000003398
08.03.2019,ADULT SOCIAL CARE,LONDON CARE LTD,532.8,PHY LTS 65+,HOMECARE - C&V,2102929759,1000003398
08.03.2019,ADULT SOCIAL CARE,LONDON CARE LTD,532.8,PHY LTS 65+,HOMECARE - C&V,2102929765,1000003398
08.03.2019,ADULT SOCIAL CARE,LONDON CARE LTD,533.08,PHY LTS 65+,HOMECARE - C&V,2102929632,1000003398
08.03.2019,ADULT SOCIAL CARE,LONDON CARE LTD,549.74,PHY LTS 65+,HOMECARE - C&V,2102929629,1000003398
08.03.2019,ADULT SOCIAL CARE,LONDON CARE LTD,557.92,PHY LTS 65+,HOMECARE - C&V,2102929657,1000003398
08.03.2019,ADULT SOCIAL CARE,LONDON CARE LTD,566.28,PHY LTS 65+,HOMECARE - C&V,2102929750,1000003398
08.03.2019,ADULT SOCIAL CARE,LONDON CARE LTD,574.63,PHY LTS 65+,HOMECARE - C&V,2102929760,1000003398
08.03.2019,ADULT SOCIAL CARE,BLISSETT CARE LTD,580.72,PHY LTS 65+,HOMECARE - C&V,2102930007,1000042627
08.03.2019,ADULT SOCIAL CARE,LONDON CARE LTD,582.96,PHY LTS 65+,HOMECARE - C&V,2102929678,1000003398
08.03.2019,ADULT SOCIAL CARE,LONDON CARE LTD,582.96,PHY LTS 65+,HOMECARE - C&V,2102929704,1000003398
08.03.2019,ADULT SOCIAL CARE,LONDON CARE LTD,582.96,PHY LTS 65+,HOMECARE - C&V,2102929761,1000003398
08.03.2019,ADULT SOCIAL CARE,LONDON CARE LTD,582.96,PHY LTS 65+,HOMECARE - C&V,2102929774,1000003398
08.03.2019,ADULT SOCIAL CARE,LONDON CARE LTD,582.96,PHY LTS 65+,HOMECARE - C&V,2102929805,1000003398
08.03.2019,ADULT SOCIAL CARE,BLISSETT CARE LTD,597.8,PHY LTS 65+,HOMECARE - C&V,2102929982,1000042627
08.03.2019,ADULT SOCIAL CARE,BLISSETT CARE LTD,597.8,PHY LTS 65+,HOMECARE - C&V,2102929991,1000042627
08.03.2019,ADULT SOCIAL CARE,LONDON CARE LTD,599.4,PHY LTS 65+,HOMECARE - C&V,2102929640,1000003398
08.03.2019,ADULT SOCIAL CARE,LONDON CARE LTD,599.4,PHY LTS 65+,HOMECARE - C&V,2102929811,1000003398
08.03.2019,ADULT SOCIAL CARE,LONDON CARE LTD,599.71,PHY LTS 65+,HOMECARE - C&V,2102929795,1000003398
08.03.2019,ADULT SOCIAL CARE,WESTMINSTER HOMECARE LTD,638.4,PHY LTS 65+,HOMECARE - C&V,2102930066,1000075287
08.03.2019,ADULT SOCIAL CARE,LONDON CARE LTD,648.22,PHY LTS 65+,HOMECARE - C&V,2102929667,1000003398
08.03.2019,ADULT SOCIAL CARE,LONDON CARE LTD,649.56,PHY LTS 65+,HOMECARE - C&V,2102929679,1000003398
08.03.2019,ADULT SOCIAL CARE,BLISSETT CARE LTD,666.12,PHY LTS 65+,HOMECARE - C&V,2102929978,1000042627
08.03.2019,ADULT SOCIAL CARE,LONDON CARE LTD,674.52,PHY LTS 65+,HOMECARE - C&V,2102929692,1000003398
08.03.2019,ADULT SOCIAL CARE,LONDON CARE LTD,691.11,PHY LTS 65+,HOMECARE - C&V,2102929645,1000003398
08.03.2019,ADULT SOCIAL CARE,BLISSETT CARE LTD,691.74,PHY LTS 65+,HOMECARE - C&V,2102929996,1000042627
08.03.2019,ADULT SOCIAL CARE,BLISSETT CARE LTD,734.44,PHY LTS 65+,HOMECARE - C&V,2102930004,1000042627
08.03.2019,ADULT SOCIAL CARE,LONDON CARE LTD,749.39,PHY LTS 65+,HOMECARE - C&V,2102929767,1000003398
08.03.2019,ADULT SOCIAL CARE,LONDON CARE LTD,757.87,PHY LTS 65+,HOMECARE - C&V,2102929798,1000003398
08.03.2019,ADULT SOCIAL CARE,LONDON CARE LTD,757.99,PHY LTS 65+,HOMECARE - C&V,2102929661,1000003398
08.03.2019,ADULT SOCIAL CARE,BLISSETT CARE LTD,768.6,PHY LTS 65+,HOMECARE - C&V,2102929960,1000042627
08.03.2019,ADULT SOCIAL CARE,BLISSETT CARE LTD,768.6,PHY LTS 65+,HOMECARE - C&V,2102930008,1000042627
08.03.2019,ADULT SOCIAL CARE,LONDON CARE LTD,782.88,PHY LTS 65+,HOMECARE - C&V,2102929687,1000003398
08.03.2019,ADULT SOCIAL CARE,LONDON CARE LTD,791,PHY LTS 65+,HOMECARE - C&V,2102929803,1000003398
08.03.2019,ADULT SOCIAL CARE,LONDON CARE LTD,791.29,PHY LTS 65+,HOMECARE - C&V,2102929635,1000003398
08.03.2019,ADULT SOCIAL CARE,LONDON CARE LTD,799.36,PHY LTS 65+,HOMECARE - C&V,2102929758,1000003398
08.03.2019,ADULT SOCIAL CARE,LONDON CARE LTD,803.43,PHY LTS 65+,HOMECARE - C&V,2102929739,1000003398
08.03.2019,ADULT SOCIAL CARE,LONDON CARE LTD,805.03,PHY LTS 65+,HOMECARE - C&V,2102929656,1000003398
08.03.2019,ADULT SOCIAL CARE,LONDON CARE LTD,816.2,PHY LTS 65+,HOMECARE - C&V,2102929639,1000003398
08.03.2019,ADULT SOCIAL CARE,LONDON CARE LTD,816.2,PHY LTS 65+,HOMECARE - C&V,2102929763,1000003398
08.03.2019,ADULT SOCIAL CARE,LONDON CARE LTD,832.64,PHY LTS 65+,HOMECARE - C&V,2102929790,1000003398
08.03.2019,ADULT SOCIAL CARE,LONDON CARE LTD,832.92,PHY LTS 65+,HOMECARE - C&V,2102929822,1000003398
08.03.2019,ADULT SOCIAL CARE,BLISSETT CARE LTD,836.92,PHY LTS 65+,HOMECARE - C&V,2102930012,1000042627
08.03.2019,ADULT SOCIAL CARE,LONDON CARE LTD,882.8,PHY LTS 65+,HOMECARE - C&V,2102929734,1000003398
08.03.2019,ADULT SOCIAL CARE,LONDON CARE LTD,891.13,PHY LTS 65+,HOMECARE - C&V,2102929648,1000003398
08.03.2019,ADULT SOCIAL CARE,LONDON CARE LTD,895.03,PHY LTS 65+,HOMECARE - C&V,2102929714,1000003398
08.03.2019,ADULT SOCIAL CARE,LONDON CARE LTD,899.46,PHY LTS 65+,HOMECARE - C&V,2102929627,1000003398
08.03.2019,ADULT SOCIAL CARE,LONDON CARE LTD,899.46,PHY LTS 65+,HOMECARE - C&V,2102929787,1000003398
08.03.2019,ADULT SOCIAL CARE,LONDON CARE LTD,932.4,PHY LTS 65+,HOMECARE - C&V,2102929637,1000003398
08.03.2019,ADULT SOCIAL CARE,LONDON CARE LTD,932.68,PHY LTS 65+,HOMECARE - C&V,2102929806,1000003398
08.03.2019,ADULT SOCIAL CARE,LONDON CARE LTD,932.74,PHY LTS 65+,HOMECARE - C&V,2102929675,1000003398
08.03.2019,ADULT SOCIAL CARE,LONDON CARE LTD,932.96,PHY LTS 65+,HOMECARE - C&V,2102929756,1000003398
08.03.2019,ADULT SOCIAL CARE,BLISSETT CARE LTD,956.48,PHY LTS 65+,HOMECARE - C&V,2102929956,1000042627
08.03.2019,ADULT SOCIAL CARE,BLISSETT CARE LTD,956.48,PHY LTS 65+,HOMECARE - C&V,2102929979,1000042627
08.03.2019,ADULT SOCIAL CARE,LONDON CARE LTD,970.13,PHY LTS 65+,HOMECARE - C&V,2102929747,1000003398
08.03.2019,ADULT SOCIAL CARE,BLISSETT CARE LTD,977.83,PHY LTS 65+,HOMECARE - C&V,2102929961,1000042627
08.03.2019,ADULT SOCIAL CARE,LONDON CARE LTD,982.44,PHY LTS 65+,HOMECARE - C&V,2102929768,1000003398
08.03.2019,ADULT SOCIAL CARE,LONDON CARE LTD,982.64,PHY LTS 65+,HOMECARE - C&V,2102929668,1000003398
08.03.2019,ADULT SOCIAL CARE,LONDON CARE LTD,982.81,PHY LTS 65+,HOMECARE - C&V,2102929742,1000003398
08.03.2019,ADULT SOCIAL CARE,LONDON CARE LTD,999.28,PHY LTS 65+,HOMECARE - C&V,2102929665,1000003398
08.03.2019,ADULT SOCIAL CARE,LONDON CARE LTD,999.56,PHY LTS 65+,HOMECARE - C&V,2102929647,1000003398
08.03.2019,ADULT SOCIAL CARE,LONDON CARE LTD,"1,024.24",PHY LTS 65+,HOMECARE - C&V,2102929708,1000003398
08.03.2019,ADULT SOCIAL CARE,LONDON CARE LTD,"1,032.60",PHY LTS 65+,HOMECARE - C&V,2102929723,1000003398
08.03.2019,ADULT SOCIAL CARE,LONDON CARE LTD,"1,036.84",PHY LTS 65+,HOMECARE - C&V,2102929797,1000003398
08.03.2019,ADULT SOCIAL CARE,BLISSETT CARE LTD,"1,054.69",PHY LTS 65+,HOMECARE - C&V,2102929957,1000042627
08.03.2019,ADULT SOCIAL CARE,BLISSETT CARE LTD,"1,058.96",PHY LTS 65+,HOMECARE - C&V,2102929967,1000042627
08.03.2019,ADULT SOCIAL CARE,LONDON CARE LTD,"1,065.72",PHY LTS 65+,HOMECARE - C&V,2102929638,1000003398
08.03.2019,ADULT SOCIAL CARE,LONDON CARE LTD,"1,088.20",PHY LTS 65+,HOMECARE - C&V,2102929623,1000003398
08.03.2019,ADULT SOCIAL CARE,BLISSETT CARE LTD,"1,093.12",PHY LTS 65+,HOMECARE - C&V,2102929970,1000042627
08.03.2019,ADULT SOCIAL CARE,LONDON CARE LTD,"1,165.92",PHY LTS 65+,HOMECARE - C&V,2102929713,1000003398
08.03.2019,ADULT SOCIAL CARE,LONDON CARE LTD,"1,207.39",PHY LTS 65+,HOMECARE - C&V,2102929821,1000003398
08.03.2019,ADULT SOCIAL CARE,LONDON CARE LTD,"1,240.86",PHY LTS 65+,HOMECARE - C&V,2102929644,1000003398
08.03.2019,ADULT SOCIAL CARE,LONDON CARE LTD,"1,248.92",PHY LTS 65+,HOMECARE - C&V,2102929625,1000003398
08.03.2019,ADULT SOCIAL CARE,LONDON CARE LTD,"1,270.00",PHY LTS 65+,HOMECARE - C&V,2102929677,1000003398
08.03.2019,ADULT SOCIAL CARE,LONDON CARE LTD,"1,332.28",PHY LTS 65+,HOMECARE - C&V,2102929745,1000003398
08.03.2019,ADULT SOCIAL CARE,LONDON CARE LTD,"1,340.67",PHY LTS 65+,HOMECARE - C&V,2102929685,1000003398
08.03.2019,ADULT SOCIAL CARE,LONDON CARE LTD,"1,524.04",PHY LTS 65+,HOMECARE - C&V,2102929642,1000003398
08.03.2019,ADULT SOCIAL CARE,LONDON CARE LTD,"1,582.29",PHY LTS 65+,HOMECARE - C&V,2102929691,1000003398
08.03.2019,ADULT SOCIAL CARE,LONDON CARE LTD,"1,624.07",PHY LTS 65+,HOMECARE - C&V,2102929696,1000003398
08.03.2019,ADULT SOCIAL CARE,BLISSETT CARE LTD,"1,643.95",PHY LTS 65+,HOMECARE - C&V,2102929987,1000042627
08.03.2019,ADULT SOCIAL CARE,LONDON CARE LTD,"1,740.26",PHY LTS 65+,HOMECARE - C&V,2102929808,1000003398
08.03.2019,ADULT SOCIAL CARE,BLISSETT CARE LTD,"1,746.43",PHY LTS 65+,HOMECARE - C&V,2102929998,1000042627
08.03.2019,ADULT SOCIAL CARE,LONDON CARE LTD,"1,847.37",PHY LTS 65+,HOMECARE - C&V,2102929757,1000003398
08.03.2019,ADULT SOCIAL CARE,LONDON CARE LTD,"1,848.43",PHY LTS 65+,HOMECARE - C&V,2102929770,1000003398
08.03.2019,ADULT SOCIAL CARE,BLISSETT CARE LTD,"1,900.15",PHY LTS 65+,HOMECARE - C&V,2102929990,1000042627
08.03.2019,ADULT SOCIAL CARE,LONDON CARE LTD,"2,057.24",PHY LTS 65+,HOMECARE - C&V,2102929689,1000003398
08.03.2019,ADULT SOCIAL CARE,LONDON CARE LTD,"2,061.38",PHY LTS 65+,HOMECARE - C&V,2102929792,1000003398
08.03.2019,ADULT SOCIAL CARE,LONDON CARE LTD,"2,065.02",PHY LTS 65+,HOMECARE - C&V,2102929681,1000003398
08.03.2019,ADULT SOCIAL CARE,LONDON CARE LTD,"2,077.50",PHY LTS 65+,HOMECARE - C&V,2102929766,1000003398
08.03.2019,ADULT SOCIAL CARE,LONDON CARE LTD,"2,294.36",PHY LTS 65+,HOMECARE - C&V,2102929718,1000003398
08.03.2019,ADULT SOCIAL CARE,LONDON CARE LTD,"2,318.79",PHY LTS 65+,HOMECARE - C&V,2102929717,1000003398
08.03.2019,ADULT SOCIAL CARE,LONDON CARE LTD,"2,398.45",PHY LTS 65+,HOMECARE - C&V,2102929643,1000003398
08.03.2019,ADULT SOCIAL CARE,LONDON CARE LTD,"2,405.44",PHY LTS 65+,HOMECARE - C&V,2102929705,1000003398
08.03.2019,ADULT SOCIAL CARE,LONDON CARE LTD,"2,427.50",PHY LTS 65+,HOMECARE - C&V,2102929769,1000003398
08.03.2019,ADULT SOCIAL CARE,LONDON CARE LTD,"2,531.49",PHY LTS 65+,HOMECARE - C&V,2102929751,1000003398
08.03.2019,ADULT SOCIAL CARE,LONDON CARE LTD,"2,531.50",PHY LTS 65+,HOMECARE - C&V,2102929778,1000003398
08.03.2019,ADULT SOCIAL CARE,BLISSETT CARE LTD,"2,617.51",PHY LTS 65+,HOMECARE - C&V,2102929989,1000042627
08.03.2019,ADULT SOCIAL CARE,LONDON CARE LTD,"2,639.72",PHY LTS 65+,HOMECARE - C&V,2102929771,1000003398
08.03.2019,ADULT SOCIAL CARE,LONDON CARE LTD,"2,664.72",PHY LTS 65+,HOMECARE - C&V,2102929633,1000003398
08.03.2019,ADULT SOCIAL CARE,BLISSETT CARE LTD,"2,711.45",PHY LTS 65+,HOMECARE - C&V,2102929999,1000042627
08.03.2019,ADULT SOCIAL CARE,LONDON CARE LTD,"2,785.34",PHY LTS 65+,HOMECARE - C&V,2102929762,1000003398
08.03.2019,ADULT SOCIAL CARE,BLISSETT CARE LTD,"2,835.28",PHY LTS 65+,HOMECARE - C&V,2102930005,1000042627
08.03.2019,ADULT SOCIAL CARE,LONDON CARE LTD,"3,030.72",PHY LTS 65+,HOMECARE - C&V,2102929820,1000003398
08.03.2019,ADULT SOCIAL CARE,BLISSETT CARE LTD,"3,343.41",PHY LTS 65+,HOMECARE - C&V,2102930010,1000042627
08.03.2019,ADULT SOCIAL CARE,LONDON CARE LTD,"3,472.22",PHY LTS 65+,HOMECARE - C&V,2102929674,1000003398
08.03.2019,ADULT SOCIAL CARE,WESTMINSTER HOMECARE LTD,255.36,PHY LTS 65+,HOMECARE - SPOT,2102930056,1000075287
08.03.2019,ADULT SOCIAL CARE,LONDON CARE LTD,258.19,PHY LTS 65+,HOMECARE - SPOT,2102929773,1000003398
08.03.2019,ADULT SOCIAL CARE,WESTMINSTER HOMECARE LTD,378.48,PHY LTS 65+,HOMECARE - SPOT,2102930051,1000075287
08.03.2019,ADULT SOCIAL CARE,LONDON CARE LTD,416.32,PHY LTS 65+,HOMECARE - SPOT,2102929731,1000003398
08.03.2019,ADULT SOCIAL CARE,WESTMINSTER HOMECARE LTD,474.24,PHY LTS 65+,HOMECARE - SPOT,2102930059,1000075287
08.03.2019,ADULT SOCIAL CARE,CARE DIRECT UK LTD,497,PHY LTS 65+,HOMECARE - SPOT,2102930083,1000066322
08.03.2019,ADULT SOCIAL CARE,CARE DIRECT UK LTD,497,PHY LTS 65+,HOMECARE - SPOT,2102930093,1000066322
08.03.2019,ADULT SOCIAL CARE,CARE DIRECT UK LTD,559.13,PHY LTS 65+,HOMECARE - SPOT,2102930075,1000066322
08.03.2019,ADULT SOCIAL CARE,CARE DIRECT UK LTD,559.13,PHY LTS 65+,HOMECARE - SPOT,2102930076,1000066322
08.03.2019,ADULT SOCIAL CARE,CARE DIRECT UK LTD,559.13,PHY LTS 65+,HOMECARE - SPOT,2102930100,1000066322
08.03.2019,ADULT SOCIAL CARE,CARE DIRECT UK LTD,612.38,PHY LTS 65+,HOMECARE - SPOT,2102930089,1000066322
08.03.2019,ADULT SOCIAL CARE,CARE DIRECT UK LTD,612.38,PHY LTS 65+,HOMECARE - SPOT,2102930094,1000066322
08.03.2019,ADULT SOCIAL CARE,WESTMINSTER HOMECARE LTD,638.4,PHY LTS 65+,HOMECARE - SPOT,2102930064,1000075287
08.03.2019,ADULT SOCIAL CARE,WESTMINSTER HOMECARE LTD,638.4,PHY LTS 65+,HOMECARE - SPOT,2102930068,1000075287
08.03.2019,ADULT SOCIAL CARE,WESTMINSTER HOMECARE LTD,638.4,PHY LTS 65+,HOMECARE - SPOT,2102930071,1000075287
08.03.2019,ADULT SOCIAL CARE,WESTMINSTER HOMECARE LTD,674.88,PHY LTS 65+,HOMECARE - SPOT,2102930070,1000075287
08.03.2019,ADULT SOCIAL CARE,CARE DIRECT UK LTD,683.37,PHY LTS 65+,HOMECARE - SPOT,2102930090,1000066322
08.03.2019,ADULT SOCIAL CARE,CARE DIRECT UK LTD,683.37,PHY LTS 65+,HOMECARE - SPOT,2102930103,1000066322
08.03.2019,ADULT SOCIAL CARE,WESTMINSTER HOMECARE LTD,747.84,PHY LTS 65+,HOMECARE - SPOT,2102930067,1000075287
08.03.2019,ADULT SOCIAL CARE,WESTMINSTER HOMECARE LTD,921.12,PHY LTS 65+,HOMECARE - SPOT,2102930060,1000075287
08.03.2019,ADULT SOCIAL CARE,WESTMINSTER HOMECARE LTD,939.45,PHY LTS 65+,HOMECARE - SPOT,2102930073,1000075287
08.03.2019,ADULT SOCIAL CARE,LONDON CARE LTD,999.28,PHY LTS 65+,HOMECARE - SPOT,2102929735,1000003398
08.03.2019,ADULT SOCIAL CARE,WESTMINSTER HOMECARE LTD,"1,085.28",PHY LTS 65+,HOMECARE - SPOT,2102930063,1000075287
08.03.2019,ADULT SOCIAL CARE,WESTMINSTER HOMECARE LTD,"1,605.12",PHY LTS 65+,HOMECARE - SPOT,2102930053,1000075287
08.03.2019,ADULT SOCIAL CARE,WESTMINSTER HOMECARE LTD,"2,403.12",PHY LTS 65+,HOMECARE - SPOT,2102930049,1000075287
08.03.2019,ADULT SOCIAL CARE,CHOICE SUPPORT,293.92,PHY LTS 65+,SUPPORTED LIVING,2102930028,1104183
08.03.2019,ADULT SOCIAL CARE,BLISSETT CARE LTD,644.77,PHY STS 18-64,HOMECARE - IC,2102929992,1000042627
08.03.2019,ADULT SOCIAL CARE,CARE DIRECT UK LTD,279.56,PHY STS 65+,HOMECARE - IC,2102930085,1000066322
08.03.2019,ADULT SOCIAL CARE,CARE DIRECT UK LTD,279.56,PHY STS 65+,HOMECARE - IC,2102930101,1000066322
08.03.2019,ADULT SOCIAL CARE,WESTMINSTER HOMECARE LTD,373.92,PHY STS 65+,HOMECARE - IC,2102930055,1000075287
08.03.2019,ADULT SOCIAL CARE,WESTMINSTER HOMECARE LTD,419.52,PHY STS 65+,HOMECARE - IC,2102930047,1000075287
08.03.2019,ADULT SOCIAL CARE,BLISSETT CARE LTD,747.25,PHY STS 65+,HOMECARE - IC,2102929984,1000042627
08.03.2019,ADULT SOCIAL CARE,BLISSETT CARE LTD,"1,037.61",SEN LTS 65+,HOMECARE - C&V,2102929963,1000042627
08.03.2019,ADULT SOCIAL CARE,BLISSETT CARE LTD,307.44,SOCIAL ISOLATION,HOMECARE - C&V,2102929986,1000042627
08.03.2019,ADULT SOCIAL CARE,LONDON CARE LTD,324.79,SOCIAL ISOLATION,HOMECARE - C&V,2102929794,1000003398
08.03.2019,ADULT SOCIAL CARE,LONDON CARE LTD,349.72,SOCIAL ISOLATION,HOMECARE - C&V,2102929746,1000003398
08.03.2019,ADULT SOCIAL CARE,LONDON CARE LTD,516.15,SOCIAL ISOLATION,HOMECARE - C&V,2102929654,1000003398
08.03.2019,ADULT SOCIAL CARE,LONDON CARE LTD,624.6,SOCIAL ISOLATION,HOMECARE - C&V,2102929732,1000003398
08.03.2019,ADULT SOCIAL CARE,LONDON CARE LTD,828.72,SOCIAL ISOLATION,HOMECARE - C&V,2102929818,1000003398
08.03.2019,ADULT SOCIAL CARE,BLISSETT CARE LTD,"1,182.79",SOCIAL ISOLATION,HOMECARE - C&V,2102929981,1000042627
08.03.2019,ADULT SOCIAL CARE,LONDON CARE LTD,"1,315.84",SOCIAL ISOLATION,HOMECARE - C&V,2102929716,1000003398
08.03.2019,ADULT SOCIAL CARE,WESTMINSTER HOMECARE LTD,355.68,SOCIAL ISOLATION,HOMECARE - SPOT,2102930065,1000075287
08.03.2019,ADULT SOCIAL CARE,LONDON CARE LTD,"2,331.28",SOCIAL ISOLATION,HOMECARE - SPOT,2102929628,1000003398
08.03.2019,ADULT SOCIAL CARE,ADDICTION RECOVERY CENTRES LTD,580,SUB LTS 18-64,PLACEMENTS - REHAB,2102929432,1000060881
08.03.2019,ADULT SOCIAL CARE,ADDICTION RECOVERY CENTRES LTD,"1,740.00",SUB LTS 18-64,PLACEMENTS - REHAB,2102929428,1000060881
08.03.2019,ADULT SOCIAL CARE,ADDICTION RECOVERY CENTRES LTD,"1,740.00",SUB LTS 18-64,PLACEMENTS - REHAB,2102929442,1000060881
08.03.2019,ADULT SOCIAL CARE,ADDICTION RECOVERY CENTRES LTD,"2,320.00",SUB LTS 18-64,PLACEMENTS - REHAB,2102929426,1000060881
08.03.2019,ADULT SOCIAL CARE,ADDICTION RECOVERY CENTRES LTD,"2,320.00",SUB LTS 18-64,PLACEMENTS - REHAB,2102929434,1000060881
08.03.2019,ADULT SOCIAL CARE,ADDICTION RECOVERY CENTRES LTD,"2,320.00",SUB LTS 18-64,PLACEMENTS - REHAB,2102929436,1000060881
08.03.2019,ADULT SOCIAL CARE,ADDICTION RECOVERY CENTRES LTD,"2,320.00",SUB LTS 18-64,PLACEMENTS - REHAB,2102929446,1000060881
08.03.2019,ADULT SOCIAL CARE,ADDICTION RECOVERY CENTRES LTD,"2,900.00",SUB LTS 18-64,PLACEMENTS - REHAB,2102929444,1000060881
08.03.2019,ASSET MANAGEMENT,FRANKHAM CONSULTANCY GROUP LTD,612.79,ADAPTATIONS,BUILDING R&M,5902346397,1000043952
08.03.2019,ASSET MANAGEMENT,FRANKHAM CONSULTANCY GROUP LTD,802.93,ADAPTATIONS,BUILDING R&M,5902346396,1000043952
08.03.2019,ASSET MANAGEMENT,HM COURTS & TRIBUNALS SERVICE,255,DISREPAIR,LEGAL FEES & COURT COSTS,2102930540,1000075260
08.03.2019,CENTRAL FUNCTIONS,OCO LIMITED,"4,880.80",AYLESBURY,OTHER R&M,5902347633,1006066
08.03.2019,CENTRAL FUNCTIONS,VPS (UK) LTD,"16,390.08",AYLESBURY,SECURITY SERVICES,5902347434,1000040614
08.03.2019,CENTRAL FUNCTIONS,STANBURY BUILDING SERVICES LTD,395,COMMERCIAL PROPERTIES,BUILDING R&M,5902347727,1000078207
08.03.2019,CENTRAL FUNCTIONS,STANBURY BUILDING SERVICES LTD,425,COMMERCIAL PROPERTIES,BUILDING R&M,2102929592,3000001967
08.03.2019,CENTRAL FUNCTIONS,STANBURY BUILDING SERVICES LTD,495,COMMERCIAL PROPERTIES,BUILDING R&M,2102929597,3000001967
08.03.2019,CENTRAL FUNCTIONS,OPEN COMMUNITIES LTD,"3,758.75",LEDBURY ESTATE,MISCELLANEOUS EXPENSES,5902347622,1000065800
08.03.2019,CENTRAL FUNCTIONS,CASTLE WATER LTD,261.59,LEDBURY ESTATE,WATER,5902347747,1000078867
08.03.2019,CENTRAL FUNCTIONS HGF,K3 PROPERTY MANAGEMENT LTD,"1,085.00",SWEP/SPOT,EXTERNAL AGENCIES AND BODIES,5902347609,1000068219
08.03.2019,CHIEF EXECUTIVE,DBR (LONDON) LTD,"11,104.38",CAPITAL PS (REGEN),CONSTRUCTION FEES  - EXTERNAL,2102928646,3000000585
08.03.2019,CHILDREN'S SERVICES,IMAGO LTD,"27,819.00",ACTION FOR CHILDRENS,EXTERNAL AGENCIES AND BODIES,5902347811,1000076913
08.03.2019,CHILDREN'S SERVICES,ANCHOR FOSTERCARE,"-1,044.96",AGENCY FOSTERING,EXTERNAL AGENCIES AND BODIES,2102926029,1000065675
08.03.2019,CHILDREN'S SERVICES,ANCHOR FOSTERCARE,-398.08,AGENCY FOSTERING,EXTERNAL AGENCIES AND BODIES,2102926030,1000065675
08.03.2019,CHILDREN'S SERVICES,DIVERSE CARE (UK) LTD,"1,632.00",AGENCY FOSTERING,EXTERNAL AGENCIES AND BODIES,2102929925,1000055636
08.03.2019,CHILDREN'S SERVICES,THE FOSTER CARE AGENCY LTD,"1,857.93",AGENCY FOSTERING,EXTERNAL AGENCIES AND BODIES,2102929946,1000043235
08.03.2019,CHILDREN'S SERVICES,COMPASS FOSTERING SOUTH LTD,"2,717.96",AGENCY FOSTERING,EXTERNAL AGENCIES AND BODIES,2102929949,1000073772
08.03.2019,CHILDREN'S SERVICES,KENT HOMEFINDING & FOSTERING LTD,"2,746.80",AGENCY FOSTERING,EXTERNAL AGENCIES AND BODIES,2102929876,1000033978
08.03.2019,CHILDREN'S SERVICES,KENT HOMEFINDING & FOSTERING LTD,"2,746.80",AGENCY FOSTERING,EXTERNAL AGENCIES AND BODIES,2102929895,1000033978
08.03.2019,CHILDREN'S SERVICES,KENT HOMEFINDING & FOSTERING LTD,"2,746.80",AGENCY FOSTERING,EXTERNAL AGENCIES AND BODIES,2102929947,1000033978
08.03.2019,CHILDREN'S SERVICES,COMPASS FOSTERING LONDON LTD,"2,780.12",AGENCY FOSTERING,EXTERNAL AGENCIES AND BODIES,2102929906,1000057908
08.03.2019,CHILDREN'S SERVICES,HORIZON FOSTERING SERVICES LTD,"2,793.00",AGENCY FOSTERING,EXTERNAL AGENCIES AND BODIES,2102929891,1000075679
08.03.2019,CHILDREN'S SERVICES,HORIZON FOSTERING SERVICES LTD,"2,793.00",AGENCY FOSTERING,EXTERNAL AGENCIES AND BODIES,2102929899,1000075679
08.03.2019,CHILDREN'S SERVICES,SUPPORTED FOSTERING SERVICES,"2,796.08",AGENCY FOSTERING,EXTERNAL AGENCIES AND BODIES,2102929848,1927554
08.03.2019,CHILDREN'S SERVICES,THE XCEL 2000 PARTNERSHIP LTD,"2,852.00",AGENCY FOSTERING,EXTERNAL AGENCIES AND BODIES,2102929930,1000024427
08.03.2019,CHILDREN'S SERVICES,GREATER LONDON FOSTERING,"2,908.64",AGENCY FOSTERING,EXTERNAL AGENCIES AND BODIES,2102929902,1000029184
08.03.2019,CHILDREN'S SERVICES,HORIZON FOSTERING SERVICES LTD,"2,940.00",AGENCY FOSTERING,EXTERNAL AGENCIES AND BODIES,2102929942,1000075679
08.03.2019,CHILDREN'S SERVICES,FOSTERING FOR YOU LTD,"2,954.64",AGENCY FOSTERING,EXTERNAL AGENCIES AND BODIES,2102929854,1000080380
08.03.2019,CHILDREN'S SERVICES,FOSTERING FOR YOU LTD,"2,954.64",AGENCY FOSTERING,EXTERNAL AGENCIES AND BODIES,2102929921,1000080380
08.03.2019,CHILDREN'S SERVICES,GREATER LONDON FOSTERING,"2,968.00",AGENCY FOSTERING,EXTERNAL AGENCIES AND BODIES,2102929858,1000029184
08.03.2019,CHILDREN'S SERVICES,GREATER LONDON FOSTERING,"2,968.00",AGENCY FOSTERING,EXTERNAL AGENCIES AND BODIES,2102929873,1000029184
08.03.2019,CHILDREN'S SERVICES,SELECT FOSTERCARE SERVICES LTD,"2,968.00",AGENCY FOSTERING,EXTERNAL AGENCIES AND BODIES,2102929893,1000079277
08.03.2019,CHILDREN'S SERVICES,COMPASS FOSTERING SOUTH LTD,"2,987.96",AGENCY FOSTERING,EXTERNAL AGENCIES AND BODIES,2102929884,1000073772
08.03.2019,CHILDREN'S SERVICES,SHINING STARS FOSTERING AGENCY LTD,"2,999.92",AGENCY FOSTERING,EXTERNAL AGENCIES AND BODIES,2102929878,1000079431
08.03.2019,CHILDREN'S SERVICES,CONNECT FOSTERING SERVICES LTD,"3,020.00",AGENCY FOSTERING,EXTERNAL AGENCIES AND BODIES,2102929920,1000079969
08.03.2019,CHILDREN'S SERVICES,HORIZON FOSTERING SERVICES LTD,"3,039.96",AGENCY FOSTERING,EXTERNAL AGENCIES AND BODIES,2102929934,1000075679
08.03.2019,CHILDREN'S SERVICES,FIVE RIVERS CHILD CARE LTD,"3,040.00",AGENCY FOSTERING,EXTERNAL AGENCIES AND BODIES,2102929896,1000018792
08.03.2019,CHILDREN'S SERVICES,RAINBOW FOSTERING SERVICES LTD,"3,050.88",AGENCY FOSTERING,EXTERNAL AGENCIES AND BODIES,2102929866,1000076620
08.03.2019,CHILDREN'S SERVICES,FOSTERING FOR YOU LTD,"3,110.16",AGENCY FOSTERING,EXTERNAL AGENCIES AND BODIES,2102929898,1000080380
08.03.2019,CHILDREN'S SERVICES,FOSTERING FOR YOU LTD,"3,110.16",AGENCY FOSTERING,EXTERNAL AGENCIES AND BODIES,2102929909,1000080380
08.03.2019,CHILDREN'S SERVICES,FOSTERING FOR YOU LTD,"3,110.16",AGENCY FOSTERING,EXTERNAL AGENCIES AND BODIES,2102929943,1000080380
08.03.2019,CHILDREN'S SERVICES,CHILDREN OF COLOUR,"3,136.00",AGENCY FOSTERING,EXTERNAL AGENCIES AND BODIES,2102929849,1000044955
08.03.2019,CHILDREN'S SERVICES,CAPSTONE FOSTER CARE,"3,171.84",AGENCY FOSTERING,EXTERNAL AGENCIES AND BODIES,2102929847,1000050353
08.03.2019,CHILDREN'S SERVICES,GREATER LONDON FOSTERING,"3,176.60",AGENCY FOSTERING,EXTERNAL AGENCIES AND BODIES,2102929927,1000029184
08.03.2019,CHILDREN'S SERVICES,ST CHRISTOPHER FELLOWSHIP,"3,179.96",AGENCY FOSTERING,EXTERNAL AGENCIES AND BODIES,2102929913,1000045269
08.03.2019,CHILDREN'S SERVICES,CONNECT FOSTERING SERVICES LTD,"3,180.00",AGENCY FOSTERING,EXTERNAL AGENCIES AND BODIES,2102929918,1000079969
08.03.2019,CHILDREN'S SERVICES,SUPPORTED FOSTERING SERVICES,"3,185.84",AGENCY FOSTERING,EXTERNAL AGENCIES AND BODIES,2102929917,1927554
08.03.2019,CHILDREN'S SERVICES,RYANCARE FOSTERING,"3,199.00",AGENCY FOSTERING,EXTERNAL AGENCIES AND BODIES,2102929887,1000062376
08.03.2019,CHILDREN'S SERVICES,SHINING STARS FOSTERING AGENCY LTD,"3,199.84",AGENCY FOSTERING,EXTERNAL AGENCIES AND BODIES,2102929877,1000079431
08.03.2019,CHILDREN'S SERVICES,CHILDREN OF COLOUR,"3,214.40",AGENCY FOSTERING,EXTERNAL AGENCIES AND BODIES,2102929883,1000044955
08.03.2019,CHILDREN'S SERVICES,CHILDREN OF COLOUR,"3,214.40",AGENCY FOSTERING,EXTERNAL AGENCIES AND BODIES,2102929933,1000044955
08.03.2019,CHILDREN'S SERVICES,BARNARDOS SERVICES LTD,"3,214.68",AGENCY FOSTERING,EXTERNAL AGENCIES AND BODIES,2102929935,1000063730
08.03.2019,CHILDREN'S SERVICES,KENT HOMEFINDING & FOSTERING LTD,"3,220.00",AGENCY FOSTERING,EXTERNAL AGENCIES AND BODIES,2102929880,1000033978
08.03.2019,CHILDREN'S SERVICES,KENT HOMEFINDING & FOSTERING LTD,"3,220.00",AGENCY FOSTERING,EXTERNAL AGENCIES AND BODIES,2102929928,1000033978
08.03.2019,CHILDREN'S SERVICES,KENT HOMEFINDING & FOSTERING LTD,"3,220.00",AGENCY FOSTERING,EXTERNAL AGENCIES AND BODIES,2102929931,1000033978
08.03.2019,CHILDREN'S SERVICES,FUTURES FOR CHILDREN LIMITED,"3,254.72",AGENCY FOSTERING,EXTERNAL AGENCIES AND BODIES,2102929860,1000041984
08.03.2019,CHILDREN'S SERVICES,FUTURES FOR CHILDREN LIMITED,"3,296.72",AGENCY FOSTERING,EXTERNAL AGENCIES AND BODIES,2102929915,1000041984
08.03.2019,CHILDREN'S SERVICES,SELECT FOSTERCARE SERVICES LTD,"3,299.80",AGENCY FOSTERING,EXTERNAL AGENCIES AND BODIES,2102929892,1000079277
08.03.2019,CHILDREN'S SERVICES,SYNERGY FOSTERING LTD,"3,315.98",AGENCY FOSTERING,EXTERNAL AGENCIES AND BODIES,2102929867,1000031559
08.03.2019,CHILDREN'S SERVICES,COMPASS FOSTERING LONDON LTD,"3,319.96",AGENCY FOSTERING,EXTERNAL AGENCIES AND BODIES,2102929850,1000057908
08.03.2019,CHILDREN'S SERVICES,ETHELBERT SPECIALIST HOMES,"3,322.16",AGENCY FOSTERING,EXTERNAL AGENCIES AND BODIES,2102929852,1796129
08.03.2019,CHILDREN'S SERVICES,ETHELBERT SPECIALIST HOMES,"3,322.16",AGENCY FOSTERING,EXTERNAL AGENCIES AND BODIES,2102929886,1796129
08.03.2019,CHILDREN'S SERVICES,ETHELBERT SPECIALIST HOMES,"3,322.16",AGENCY FOSTERING,EXTERNAL AGENCIES AND BODIES,2102929951,1796129
08.03.2019,CHILDREN'S SERVICES,DIVERSE CARE (UK) LTD,"3,331.32",AGENCY FOSTERING,EXTERNAL AGENCIES AND BODIES,2102929856,1000055636
08.03.2019,CHILDREN'S SERVICES,ORANGE GROVE FOSTERCARE LTD,"3,388.68",AGENCY FOSTERING,EXTERNAL AGENCIES AND BODIES,2102929875,1000078716
08.03.2019,CHILDREN'S SERVICES,ORANGE GROVE FOSTERCARE LTD,"3,388.68",AGENCY FOSTERING,EXTERNAL AGENCIES AND BODIES,2102929879,1000078716
08.03.2019,CHILDREN'S SERVICES,FUSION FOSTERING LTD,"3,403.00",AGENCY FOSTERING,EXTERNAL AGENCIES AND BODIES,2102929904,1000081674
08.03.2019,CHILDREN'S SERVICES,ANCHOR FOSTERCARE,"3,431.96",AGENCY FOSTERING,EXTERNAL AGENCIES AND BODIES,2102929885,1000065675
08.03.2019,CHILDREN'S SERVICES,TIME FOR CHILDREN LTD,"3,463.88",AGENCY FOSTERING,EXTERNAL AGENCIES AND BODIES,2102929859,1000024439
08.03.2019,CHILDREN'S SERVICES,ANCHOR FOSTERCARE,"3,483.48",AGENCY FOSTERING,EXTERNAL AGENCIES AND BODIES,2102929863,1000065675
08.03.2019,CHILDREN'S SERVICES,CHILDREN FIRST FOSTERING AGENCY LTD,"3,500.00",AGENCY FOSTERING,EXTERNAL AGENCIES AND BODIES,2102929853,1000060081
08.03.2019,CHILDREN'S SERVICES,CHILDREN FIRST FOSTERING AGENCY LTD,"3,500.00",AGENCY FOSTERING,EXTERNAL AGENCIES AND BODIES,2102929908,1000060081
08.03.2019,CHILDREN'S SERVICES,ETHELBERT SPECIALIST HOMES,"3,506.68",AGENCY FOSTERING,EXTERNAL AGENCIES AND BODIES,2102929864,1796129
08.03.2019,CHILDREN'S SERVICES,ETHELBERT SPECIALIST HOMES,"3,506.68",AGENCY FOSTERING,EXTERNAL AGENCIES AND BODIES,2102929865,1796129
08.03.2019,CHILDREN'S SERVICES,NEXT STEP FOSTERING SERVICES LTD,"3,600.80",AGENCY FOSTERING,EXTERNAL AGENCIES AND BODIES,2102929903,1000044973
08.03.2019,CHILDREN'S SERVICES,BY THE BRIDGE LTD,"3,810.28",AGENCY FOSTERING,EXTERNAL AGENCIES AND BODIES,2102929869,1000043961
08.03.2019,CHILDREN'S SERVICES,COMPASS FOSTERING SOUTH EAST LTD,"3,857.00",AGENCY FOSTERING,EXTERNAL AGENCIES AND BODIES,2102929851,1000081155
08.03.2019,CHILDREN'S SERVICES,BY THE BRIDGE LTD,"3,926.40",AGENCY FOSTERING,EXTERNAL AGENCIES AND BODIES,2102929939,1000043961
08.03.2019,CHILDREN'S SERVICES,NEXT STEP FOSTERING SERVICES LTD,"3,928.40",AGENCY FOSTERING,EXTERNAL AGENCIES AND BODIES,2102929916,1000044973
08.03.2019,CHILDREN'S SERVICES,BY THE BRIDGE LTD,"3,942.32",AGENCY FOSTERING,EXTERNAL AGENCIES AND BODIES,2102929938,1000043961
08.03.2019,CHILDREN'S SERVICES,CONNECT FOSTERING SERVICES LTD,"3,980.00",AGENCY FOSTERING,EXTERNAL AGENCIES AND BODIES,2102929907,1000079969
08.03.2019,CHILDREN'S SERVICES,CONNECT FOSTERING SERVICES LTD,"3,980.00",AGENCY FOSTERING,EXTERNAL AGENCIES AND BODIES,2102929919,1000079969
08.03.2019,CHILDREN'S SERVICES,GREATER LONDON FOSTERING,"3,995.88",AGENCY FOSTERING,EXTERNAL AGENCIES AND BODIES,2102929912,1000029184
08.03.2019,CHILDREN'S SERVICES,BY THE BRIDGE LTD,"4,010.84",AGENCY FOSTERING,EXTERNAL AGENCIES AND BODIES,2102929868,1000043961
08.03.2019,CHILDREN'S SERVICES,BY THE BRIDGE LTD,"4,010.84",AGENCY FOSTERING,EXTERNAL AGENCIES AND BODIES,2102929941,1000043961
08.03.2019,CHILDREN'S SERVICES,BY THE BRIDGE LTD,"4,042.68",AGENCY FOSTERING,EXTERNAL AGENCIES AND BODIES,2102929923,1000043961
08.03.2019,CHILDREN'S SERVICES,BY THE BRIDGE LTD,"4,069.00",AGENCY FOSTERING,EXTERNAL AGENCIES AND BODIES,2102929894,1000043961
08.03.2019,CHILDREN'S SERVICES,CHILDREN OF ALL NATIONS LTD,"4,123.40",AGENCY FOSTERING,EXTERNAL AGENCIES AND BODIES,2102929900,1000060151
08.03.2019,CHILDREN'S SERVICES,BY THE BRIDGE LTD,"4,127.76",AGENCY FOSTERING,EXTERNAL AGENCIES AND BODIES,2102929870,1000043961
08.03.2019,CHILDREN'S SERVICES,BY THE BRIDGE LTD,"4,127.76",AGENCY FOSTERING,EXTERNAL AGENCIES AND BODIES,2102929890,1000043961
08.03.2019,CHILDREN'S SERVICES,BY THE BRIDGE LTD,"4,127.76",AGENCY FOSTERING,EXTERNAL AGENCIES AND BODIES,2102929924,1000043961
08.03.2019,CHILDREN'S SERVICES,BY THE BRIDGE LTD,"4,127.76",AGENCY FOSTERING,EXTERNAL AGENCIES AND BODIES,2102929940,1000043961
08.03.2019,CHILDREN'S SERVICES,BY THE BRIDGE LTD,"4,137.48",AGENCY FOSTERING,EXTERNAL AGENCIES AND BODIES,2102929871,1000043961
08.03.2019,CHILDREN'S SERVICES,BY THE BRIDGE LTD,"4,161.08",AGENCY FOSTERING,EXTERNAL AGENCIES AND BODIES,2102929926,1000043961
08.03.2019,CHILDREN'S SERVICES,GREATER LONDON FOSTERING,"4,195.80",AGENCY FOSTERING,EXTERNAL AGENCIES AND BODIES,2102929901,1000029184
08.03.2019,CHILDREN'S SERVICES,ST CHRISTOPHER FELLOWSHIP,"4,200.00",AGENCY FOSTERING,EXTERNAL AGENCIES AND BODIES,2102929914,1000045269
08.03.2019,CHILDREN'S SERVICES,ST CHRISTOPHER FELLOWSHIP,"4,200.00",AGENCY FOSTERING,EXTERNAL AGENCIES AND BODIES,2102929929,1000045269
08.03.2019,CHILDREN'S SERVICES,BY THE BRIDGE LTD,"4,221.92",AGENCY FOSTERING,EXTERNAL AGENCIES AND BODIES,2102929953,1000043961
08.03.2019,CHILDREN'S SERVICES,BY THE BRIDGE LTD,"4,340.44",AGENCY FOSTERING,EXTERNAL AGENCIES AND BODIES,2102929922,1000043961
08.03.2019,CHILDREN'S SERVICES,BY THE BRIDGE LTD,"4,340.44",AGENCY FOSTERING,EXTERNAL AGENCIES AND BODIES,2102929936,1000043961
08.03.2019,CHILDREN'S SERVICES,BY THE BRIDGE LTD,"4,429.00",AGENCY FOSTERING,EXTERNAL AGENCIES AND BODIES,2102929857,1000043961
08.03.2019,CHILDREN'S SERVICES,BY THE BRIDGE LTD,"4,429.00",AGENCY FOSTERING,EXTERNAL AGENCIES AND BODIES,2102929952,1000043961
08.03.2019,CHILDREN'S SERVICES,HYTHE HOUSE SUPPORT LTD,"4,463.00",AGENCY FOSTERING,EXTERNAL AGENCIES AND BODIES,2102929862,1000081618
08.03.2019,CHILDREN'S SERVICES,FOSTERING SUPPORT GROUP LTD,"4,799.76",AGENCY FOSTERING,EXTERNAL AGENCIES AND BODIES,2102929911,1000065830
08.03.2019,CHILDREN'S SERVICES,HEATH FARM FAMILY SOLUTION (FOSTERING),"4,807.04",AGENCY FOSTERING,EXTERNAL AGENCIES AND BODIES,2102929950,11271268
08.03.2019,CHILDREN'S SERVICES,BY THE BRIDGE LTD,"4,940.00",AGENCY FOSTERING,EXTERNAL AGENCIES AND BODIES,2102929855,1000043961
08.03.2019,CHILDREN'S SERVICES,BY THE BRIDGE LTD,"4,940.00",AGENCY FOSTERING,EXTERNAL AGENCIES AND BODIES,2102929889,1000043961
08.03.2019,CHILDREN'S SERVICES,BY THE BRIDGE LTD,"4,940.00",AGENCY FOSTERING,EXTERNAL AGENCIES AND BODIES,2102929937,1000043961
08.03.2019,CHILDREN'S SERVICES,SUPPORTED FOSTERING SERVICES,"4,979.80",AGENCY FOSTERING,EXTERNAL AGENCIES AND BODIES,2102929882,1927554
08.03.2019,CHILDREN'S SERVICES,COMPASS FOSTERING SOUTH EAST LTD,"4,999.96",AGENCY FOSTERING,EXTERNAL AGENCIES AND BODIES,2102929948,1000081155
08.03.2019,CHILDREN'S SERVICES,BY THE BRIDGE LTD,"5,200.00",AGENCY FOSTERING,EXTERNAL AGENCIES AND BODIES,2102929910,1000043961
08.03.2019,CHILDREN'S SERVICES,LIGHTHOUSE FOSTERING LTD,"5,208.80",AGENCY FOSTERING,EXTERNAL AGENCIES AND BODIES,2102929874,1000080372
08.03.2019,CHILDREN'S SERVICES,BY THE BRIDGE LTD,"5,628.00",AGENCY FOSTERING,EXTERNAL AGENCIES AND BODIES,2102929888,1000043961
08.03.2019,CHILDREN'S SERVICES,DIVERSE CARE (UK) LTD,"5,712.00",AGENCY FOSTERING,EXTERNAL AGENCIES AND BODIES,2102929872,1000055636
08.03.2019,CHILDREN'S SERVICES,ALL4U FOSTERING LTD,"5,819.52",AGENCY FOSTERING,EXTERNAL AGENCIES AND BODIES,2102929944,1000080663
08.03.2019,CHILDREN'S SERVICES,FIVE RIVERS CHILD CARE LTD,"5,896.00",AGENCY FOSTERING,EXTERNAL AGENCIES AND BODIES,2102929897,1000018792
08.03.2019,CHILDREN'S SERVICES,MOSAIC FOSTER CARE LTD,"5,999.84",AGENCY FOSTERING,EXTERNAL AGENCIES AND BODIES,2102929881,1000076259
08.03.2019,CHILDREN'S SERVICES,MOSAIC FOSTER CARE LTD,"6,300.00",AGENCY FOSTERING,EXTERNAL AGENCIES AND BODIES,2102929861,1000076259
08.03.2019,CHILDREN'S SERVICES,MOSAIC FOSTER CARE LTD,"6,300.00",AGENCY FOSTERING,EXTERNAL AGENCIES AND BODIES,2102929945,1000076259
08.03.2019,CHILDREN'S SERVICES,GREATER LONDON FOSTERING,"6,664.00",AGENCY FOSTERING,EXTERNAL AGENCIES AND BODIES,2102929905,1000029184
08.03.2019,CHILDREN'S SERVICES,PARENT AND CHILD FOSTERING ASSESSMENTS,"7,400.00",AGENCY FOSTERING,EXTERNAL AGENCIES AND BODIES,2102929932,1000078962
08.03.2019,CHILDREN'S SERVICES,THE SPEECH CENTRE,275,CENTRAL SUPPORT,COMMS & COMPUTING CONTRACT CHARGES,5902347780,1000035799
08.03.2019,CHILDREN'S SERVICES,ISABELLE GRAVENSTEIN T/A REVIVAL,928,CENTRAL SUPPORT,MEDICAL / HEALTH & SAFETY SERVICES,5902347813,1000027424
08.03.2019,CHILDREN'S SERVICES,OFFICE DEPOT UK LTD,719.38,CENTRAL SUPPORT,STATIONERY,5902347816,1109426
08.03.2019,CHILDREN'S SERVICES,THE SPEECH CENTRE,490,CENTRAL SUPPORT,TRAINING,5902347780,1000035799
08.03.2019,CHILDREN'S SERVICES,THE SPEECH CENTRE,"1,715.00",CENTRAL SUPPORT,TRAINING,5902347780,1000035799
08.03.2019,CHILDREN'S SERVICES,PHS GROUP PLC,"3,802.27",CHILDRENS CENTRE,TRAINING,5902347761,1851993
08.03.2019,CHILDREN'S SERVICES,THE GROVE CHILDRENS CENTRE,"4,472.50",DSG CONTINGENCY,SCHOOLS CAPITATION,2102930171,5001000090
08.03.2019,CHILDREN'S SERVICES,DULWICH WOOD CHILDRENS CENTRE,"4,694.88",DSG CONTINGENCY,SCHOOLS CAPITATION,2102930169,5001000099
08.03.2019,CHILDREN'S SERVICES,ANN BERNADT NURSERY SCHOOL,"5,446.02",DSG CONTINGENCY,SCHOOLS CAPITATION,2102930168,5001000085
08.03.2019,CHILDREN'S SERVICES,NELL GWYNN NURSERY SCHOOL,"6,155.43",DSG CONTINGENCY,SCHOOLS CAPITATION,2102930170,5001000049
08.03.2019,CHILDREN'S SERVICES,SOUTHWARK INCLUSIVE LEARNING SERVICE,"10,704.00",DSG CONTINGENCY,SCHOOLS CAPITATION,2102930216,5001000105
08.03.2019,CHILDREN'S SERVICES,BEORMUND PRIMARY SCHOOL,"6,370.50",DSG CONTINGENCY,SCHOOLS CAPITATION,2102930210,5001000008
08.03.2019,CHILDREN'S SERVICES,CHERRY GARDEN SCHOOL,"7,526.10",DSG CONTINGENCY,SCHOOLS CAPITATION,2102930212,5001000020
08.03.2019,CHILDREN'S SERVICES,KINTORE WAY CHILDRENS CENTRE,"8,046.12",DSG CONTINGENCY,SCHOOLS CAPITATION,2102930167,5001000047
08.03.2019,CHILDREN'S SERVICES,VICTORY SCHOOL,"8,405.64",DSG CONTINGENCY,SCHOOLS CAPITATION,2102930199,5001000098
08.03.2019,CHILDREN'S SERVICES,BETHLEM & MAUDSLEY HOSPITAL SCHOOL,"8,874.30",DSG CONTINGENCY,SCHOOLS CAPITATION,2102930208,5001000010
08.03.2019,CHILDREN'S SERVICES,CRAMPTON PRIMARY SCHOOL,"9,420.00",DSG CONTINGENCY,SCHOOLS CAPITATION,2102930178,5001000023
08.03.2019,CHILDREN'S SERVICES,TUKE SCHOOL,"9,452.10",DSG CONTINGENCY,SCHOOLS CAPITATION,2102930211,5001000097
08.03.2019,CHILDREN'S SERVICES,FRIARS PRIMARY SCHOOL,"9,548.40",DSG CONTINGENCY,SCHOOLS CAPITATION,2102930205,5001000033
08.03.2019,CHILDREN'S SERVICES,TOWNSEND PRIMARY SCHOOL,"9,766.68",DSG CONTINGENCY,SCHOOLS CAPITATION,2102930198,5001000096
08.03.2019,CHILDREN'S SERVICES,TOWER BRIDGE PRIMARY SCHOOL,"9,850.14",DSG CONTINGENCY,SCHOOLS CAPITATION,2102930197,5001000095
08.03.2019,CHILDREN'S SERVICES,SNOWSFIELDS PRIMARY SCHOOL,"10,049.16",DSG CONTINGENCY,SCHOOLS CAPITATION,2102930195,5001000061
08.03.2019,CHILDREN'S SERVICES,HAYMERLE SCHOOL,"10,222.50",DSG CONTINGENCY,SCHOOLS CAPITATION,2102930209,5001000045
08.03.2019,CHILDREN'S SERVICES,PILGRIM'S WAY PRIMARY SCHOOL,"10,594.86",DSG CONTINGENCY,SCHOOLS CAPITATION,2102930202,5001000054
08.03.2019,CHILDREN'S SERVICES,HOLLYDALE PRIMARY SCHOOL,"10,607.70",DSG CONTINGENCY,SCHOOLS CAPITATION,2102930184,5001000036
08.03.2019,CHILDREN'S SERVICES,EVELINA HOSPITAL SCHOOL,"10,896.60",DSG CONTINGENCY,SCHOOLS CAPITATION,2102930207,5001000031
08.03.2019,CHILDREN'S SERVICES,BELLENDEN PRIMARY SCHOOL,"10,909.44",DSG CONTINGENCY,SCHOOLS CAPITATION,2102930173,5001000007
08.03.2019,CHILDREN'S SERVICES,DULWICH WOOD PRIMARY SCHOOL,"11,731.20",DSG CONTINGENCY,SCHOOLS CAPITATION,2102930189,5001000042
08.03.2019,CHILDREN'S SERVICES,RIVERSIDE PRIMARY SCHOOL,"13,015.20",DSG CONTINGENCY,SCHOOLS CAPITATION,2102930192,5001000056
08.03.2019,CHILDREN'S SERVICES,COMBER GROVE PRIMARY SCHOOL,"13,272.00",DSG CONTINGENCY,SCHOOLS CAPITATION,2102930177,5001000022
08.03.2019,CHILDREN'S SERVICES,ROBERT BROWNING PRIMARY SCHOOL,"13,637.94",DSG CONTINGENCY,SCHOOLS CAPITATION,2102930193,5001000057
08.03.2019,CHILDREN'S SERVICES,CHARLOTTE  SHARMAN PRIMARY SCHOOL,"13,753.50",DSG CONTINGENCY,SCHOOLS CAPITATION,2102930200,5001000016
08.03.2019,CHILDREN'S SERVICES,ALBION PRIMARY SCHOOL,"13,933.26",DSG CONTINGENCY,SCHOOLS CAPITATION,2102930172,5001000000
08.03.2019,CHILDREN'S SERVICES,GRANGE PRIMARY SCHOOL,"14,620.20",DSG CONTINGENCY,SCHOOLS CAPITATION,2102930182,5001000029
08.03.2019,CHILDREN'S SERVICES,HIGHSHORE SCHOOL,"15,519.00",DSG CONTINGENCY,SCHOOLS CAPITATION,2102930206,5001000046
08.03.2019,CHILDREN'S SERVICES,ILDERTON PRIMARY SCHOOL,"15,673.08",DSG CONTINGENCY,SCHOOLS CAPITATION,2102930185,5001000037
08.03.2019,CHILDREN'S SERVICES,KEYWORTH PRIMARY SCHOOL,"15,724.44",DSG CONTINGENCY,SCHOOLS CAPITATION,2102930188,5001000041
08.03.2019,CHILDREN'S SERVICES,MICHAEL FARADAY PRIMARY SCHOOL,"15,994.08",DSG CONTINGENCY,SCHOOLS CAPITATION,2102930191,5001000048
08.03.2019,CHILDREN'S SERVICES,CHARLES DICKENS PRIMARY SCHOOL,"16,302.24",DSG CONTINGENCY,SCHOOLS CAPITATION,2102930175,5001000015
08.03.2019,CHILDREN'S SERVICES,LYNDHURST PRIMARY SCHOOL,"16,302.24",DSG CONTINGENCY,SCHOOLS CAPITATION,2102930190,5001000043
08.03.2019,CHILDREN'S SERVICES,RYE OAK PRIMARY SCHOOL,"16,340.76",DSG CONTINGENCY,SCHOOLS CAPITATION,2102930215,5001000059
08.03.2019,CHILDREN'S SERVICES,COBOURG PRIMARY SCHOOL,"16,526.94",DSG CONTINGENCY,SCHOOLS CAPITATION,2102930176,5001000021
08.03.2019,CHILDREN'S SERVICES,OLIVER GOLDSMITH PRIMARY SCHOOL,"16,719.54",DSG CONTINGENCY,SCHOOLS CAPITATION,2102930204,5001000051
08.03.2019,CHILDREN'S SERVICES,ALFRED SALTER PRIMARY SCHOOL,"16,732.38",DSG CONTINGENCY,SCHOOLS CAPITATION,2102930203,5001000005
08.03.2019,CHILDREN'S SERVICES,HEBER PRIMARY SCHOOL,"17,130.42",DSG CONTINGENCY,SCHOOLS CAPITATION,2102930183,5001000035
08.03.2019,CHILDREN'S SERVICES,SOUTHWARK PARK PRIMARY SCHOOL,"17,149.68",DSG CONTINGENCY,SCHOOLS CAPITATION,2102930196,5001000062
08.03.2019,CHILDREN'S SERVICES,DOG KENNEL HILL PRIMARY SCHOOL,"17,297.34",DSG CONTINGENCY,SCHOOLS CAPITATION,2102930180,5001000025
08.03.2019,CHILDREN'S SERVICES,JOHN RUSKIN PRIMARY SCHOOL,"17,894.40",DSG CONTINGENCY,SCHOOLS CAPITATION,2102930187,5001000040
08.03.2019,CHILDREN'S SERVICES,ROTHERHITHE PRIMARY SCHOOL,"18,087.00",DSG CONTINGENCY,SCHOOLS CAPITATION,2102930194,5001000058
08.03.2019,CHILDREN'S SERVICES,CAMELOT PRIMARY SCHOOL,"18,806.04",DSG CONTINGENCY,SCHOOLS CAPITATION,2102930174,5001000014
08.03.2019,CHILDREN'S SERVICES,BRUNSWICK PARK PRIMARY SCHOOL,"19,332.48",DSG CONTINGENCY,SCHOOLS CAPITATION,2102930214,5001000013
08.03.2019,CHILDREN'S SERVICES,IVYDALE PRIMARY SCHOOL,"19,371.00",DSG CONTINGENCY,SCHOOLS CAPITATION,2102930186,5001000038
08.03.2019,CHILDREN'S SERVICES,CRAWFORD PRIMARY SCHOOL,"19,852.50",DSG CONTINGENCY,SCHOOLS CAPITATION,2102930179,5001000024
08.03.2019,CHILDREN'S SERVICES,PHOENIX PRIMARY SCHOOL,"19,913.49",DSG CONTINGENCY,SCHOOLS CAPITATION,2102930201,5001000032
08.03.2019,CHILDREN'S SERVICES,BESSEMER GRANGE PRIMARY SCHOOL,"22,491.12",DSG CONTINGENCY,SCHOOLS CAPITATION,2102930213,5001000009
